Workbook

Sheet Figure 1
A2: Source raw data 1: 61 HPV16-related breakpoints for Figure 1a and Figure 1b | G2: Source raw data 2: All 63 breakpoints occurring in the human genome and sample information for Figure 1c
A3: Chr | B3: Pos | C3: HPV | D3: HPVPos | E3: GeneHPV16 | G3: Sample | H3: Chr | I3: Pos
A4: chr17 | B4: 36095944 | C4: hpv16 | D4: 3409 | E4: E2,E4 | G4: ZLR-01 | H4: chr4 | I4: 182138890
A5: chr3 | B5: 137186017 | C5: hpv16 | D5: 6291 | E5: L1 | G5: ZLR-01 | H5: chr4 | I5: 182273142
A6: chr4 | B6: 81210954 | C6: hpv16 | D6: 2026 | E6: E1 | G6: ZLR-02 | H6: chr11 | I6: 64974748
A7: chr15 | B7: 86031825 | C7: hpv16 | D7: 2797 | E7: E2,E1 | G7: ZLR-02 | H7: chr11 | I7: 64975398
A8: chr8 | B8: 128323818 | C8: hpv16 | D8: 2799 | E8: E2,E1 | G8: ZLR-03 | H8: chr10 | I8: 104080663
A9: chr4 | B9: 142864411 | C9: hpv16 | D9: 4003 | E9: E5 | G9: ZLR-03 | H9: chr10 | I9: 104080707
A10: chr14 | B10: 91451921 | C10: hpv16 | D10: 2972 | E10: E2 | G10: ZLR-03 | H10: chr10 | I10: 104084259
A11: chr4 | B11: 81212477 | C11: hpv16 | D11: 1825 | E11: E1 | G11: ZLR-04 | H11: chr20 | I11: 14754684
A12: chr13 | B12: 73982893 | C12: hpv16 | D12: 3331 | E12: E2 | G12: ZLR-04 | H12: chr20 | I12: 14840951
A13: chr8 | B13: 128323153 | C13: hpv16 | D13: 4464 | E13: L2 | G13: ZLR-04 | H13: chr20 | I13: 14842487
A14: chr17 | B14: 36095602 | C14: hpv16 | D14: 37 | E14: URR | G14: ZLR-06 | H14: chr1 | I14: 48168486
A15: chr10 | B15: 79694897 | C15: hpv16 | D15: 3411 | E15: E2,E4 | G15: ZLR-06 | H15: chr12 | I15: 103589678
A16: chr9 | B16: 75392601 | C16: hpv16 | D16: 1093 | E16: E1 | G16: ZLR-06 | H16: chr12 | I16: 103589765
A17: chr8 | B17: 128323315 | C17: hpv16 | D17: 478 | E17: E6 | G17: ZLR-06 | H17: chr3 | I17: 137186017
A18: chr13 | B18: 73982772 | C18: hpv16 | D18: 4686 | E18: L2 | G18: ZLR-06 | H18: chr3 | I18: 137188183
A19: chr4 | B19: 142649381 | C19: hpv16 | D19: 3226 | E19: E2 | G19: ZLR-06 | H19: chr4 | I19: 81210954
A20: chr13 | B20: 73922258 | C20: hpv16 | D20: 2728 | E20: E1 | G20: ZLR-06 | H20: chr4 | I20: 81212477
A21: chr10 | B21: 104080707 | C21: hpv16 | D21: 2191 | E21: E1 | G21: ZLR-06 | H21: chr8 | I21: 49845725
A22: chr9 | B22: 75532466 | C22: hpv16 | D22: 1451 | E22: E1 | G22: ZLR-06 | H22: chr8 | I22: 49845734
A23: chr9 | B23: 75413449 | C23: hpv16 | D23: 1833 | E23: E1 | G23: ZLR-06 | H23: chr9 | I23: 75392601
A24: chr20 | B24: 14754684 | C24: hpv16 | D24: 2991 | E24: E2 | G24: ZLR-06 | H24: chr9 | I24: 75413449
A25: chr8 | B25: 128419658 | C25: hpv16 | D25: 2636 | E25: E1 | G25: ZLR-06 | H25: chr9 | I25: 75433908
A26: chr15 | B26: 85988611 | C26: hpv16 | D26: 4774 | E26: L2 | G26: ZLR-06 | H26: chr9 | I26: 75532466
A27: chr3 | B27: 137188183 | C27: hpv16 | D27: 1775 | E27: E1 | G27: ZLR-07 | H27: chr2 | I27: 146386905
A28: chr8 | B28: 128419658 | C28: hpv16 | D28: 7784 | E28: URR | G28: ZLR-07 | H28: chr2 | I28: 146498465
A29: chr8 | B29: 49845734 | C29: hpv16 | D29: 306 | E29: E6 | G29: ZLR-08 | H29: chr19 | I29: 54983022
A30: chr4 | B30: 182138890 | C30: hpv16 | D30: 3368 | E30: E2,E4 | G30: ZLR-08 | H30: chr19 | I30: 54974840
A31: chr12 | B31: 103589765 | C31: hpv16 | D31: 7339 | E31: URR | G31: ZLR-08 | H31: chr19 | I31: 54970568
A32: chr17 | B32: 36095602 | C32: hpv16 | D32: 5979 | E32: L1 | G32: ZLR-08 | H32: chr19 | I32: 54974755
A33: chr13 | B33: 73982955 | C33: hpv16 | D33: 3285 | E33: E2 | G33: ZLR-08 | H33: chr19 | I33: 54984924
A34: chr4 | B34: 182273142 | C34: hpv16 | D34: 5305 | E34: L2 | G34: ZLR-08 | H34: chr19 | I34: 54978308
A35: chr2 | B35: 146386905 | C35: hpv16 | D35: 1955 | E35: E1 | G35: ZLR-08 | H35: chr19 | I35: 54970599
A36: chr11 | B36: 64975398 | C36: hpv16 | D36: 2138 | E36: E1 | G36: ZLR-08 | H36: chr19 | I36: 54983028
A37: chr20 | B37: 14842487 | C37: hpv16 | D37: 2834 | E37: E2 | G37: ZLR-08 | H37: chr19 | I37: 54974755
A38: chr8 | B38: 128323084 | C38: hpv16 | D38: 4368 | E38: L2 | G38: ZLR-08 | H38: chr19 | I38: 54974756
A39: chr8 | B39: 128419610 | C39: hpv16 | D39: 7781 | E39: URR | G39: ZLR-08 | H39: chr19 | I39: 54979846
A40: chr8 | B40: 49845725 | C40: hpv16 | D40: 7050 | E40: L1 | G40: ZLR-08 | H40: chr19 | I40: 54978038
A41: chr17 | B41: 36094082 | C41: hpv16 | D41: 4573 | E41: L2 | G41: ZLR-09 | H41: chr4 | I41: 142649381
A42: chr15 | B42: 86014813 | C42: hpv16 | D42: 5226 | E42: L2 | G42: ZLR-09 | H42: chr4 | I42: 142864411
A43: chr20 | B43: 14840951 | C43: hpv16 | D43: 3086 | E43: E2 | G43: ZLR-10 | H43: chr10 | I43: 79694897
A44: chr14 | B44: 91451918 | C44: hpv16 | D44: 3049 | E44: E2 | G44: ZLR-11 | H44: chr15 | I44: 85988611
A45: chr1 | B45: 48168486 | C45: hpv16 | D45: 2339 | E45: E1 | G45: ZLR-11 | H45: chr15 | I45: 86014813
A46: chr12 | B46: 103589678 | C46: hpv16 | D46: 3478 | E46: E2,E4 | G46: ZLR-11 | H46: chr15 | I46: 86031825
A47: chr2 | B47: 146498465 | C47: hpv16 | D47: 909 | E47: E1 | G47: ZLR-11 | H47: chr8 | I47: 128323084
A48: chr10 | B48: 104084259 | C48: hpv16 | D48: 6139 | E48: L1 | G48: ZLR-11 | H48: chr8 | I48: 128323153
A49: chr9 | B49: 75433908 | C49: hpv16 | D49: 4628 | E49: L2 | G49: ZLR-11 | H49: chr8 | I49: 128323315
A50: chr11 | B50: 64974748 | C50: hpv16 | D50: 3570 | E50: E2,E4 | G50: ZLR-11 | H50: chr8 | I50: 128323818
A51: chr10 | B51: 104080663 | C51: hpv16 | D51: 2186 | E51: E1 | G51: ZLR-11 | H51: chr8 | I51: 128419610
A52: chr13 | B52: 73955322 | C52: hpv16 | D52: 1478 | E52: E1 | G52: ZLR-11 | H52: chr8 | I52: 128419658
A53: chr19 | B53: 54983022 | C53: hpv16 | D53: 2274 | E53: E1 | G53: ZLR-11 | H53: chr8 | I53: 128419658
A54: chr19 | B54: 54974840 | C54: hpv16 | D54: 2636 | E54: E1 | G54: ZLR-12 | H54: chr17 | I54: 36094082
A55: chr19 | B55: 54970568 | C55: hpv16 | D55: 7029 | E55: L1 | G55: ZLR-12 | H55: chr17 | I55: 36095602
A56: chr19 | B56: 54974755 | C56: hpv16 | D56: 7906 | E56: URR | G56: ZLR-12 | H56: chr17 | I56: 36095602
A57: chr19 | B57: 54984924 | C57: hpv16 | D57: 2024 | E57: E1 | G57: ZLR-12 | H57: chr17 | I57: 36095944
A58: chr19 | B58: 54978308 | C58: hpv16 | D58: 3050 | E58: E2 | G58: ZLR-13 | H58: chr13 | I58: 73982772
A59: chr19 | B59: 54970599 | C59: hpv16 | D59: 1686 | E59: E1 | G59: ZLR-13 | H59: chr13 | I59: 73982893
A60: chr19 | B60: 54983028 | C60: hpv16 | D60: 2276 | E60: E1 | G60: ZLR-13 | H60: chr13 | I60: 73982955
A61: chr19 | B61: 54974755 | C61: hpv16 | D61: 131 | E61: E6 | G61: ZLR-14 | H61: chr13 | I61: 73922258
A62: chr19 | B62: 54974756 | C62: hpv16 | D62: 6486 | E62: L1 | G62: ZLR-14 | H62: chr13 | I62: 73955322
A63: chr19 | B63: 54979846 | C63: hpv16 | D63: 4968 | E63: L2 | G63: ZLR-15 | H63: chr14 | I63: 91451918
A64: chr19 | B64: 54978038 | C64: hpv16 | D64: 1642 | E64: E1 | G64: ZLR-15 | H64: chr14 | I64: 91451921
G65: ZLR-16 | H65: chr17 | I65: 57757805
G66: ZLR-16 | H66: chr17 | I66: 57879163

Sheet Figure 2
A1: Source raw data for demonstrating four integration types of Figure 2
A2: QueryID | B2: SubjectID | C2: Identity | D2: AlignmentLength | E2: Mismatches | F2: GapOpens | G2: Qstart | H2: Qend | I2: Sstart | J2: Send | K2: Evalue | L2: BitScore | M2: QueryLength | N2: EventName | O2: IsBP
A3: e07d996d-ea67-4757-ac62-732f9a408fad | B3: Chr4 | C3: 90.19 | D3: 1489 | E3: 47 | F3: 68 | G3: 4 | H3: 1440 | I3: 182274565 | J3: 182273124 | K3: 0 | L3: 1849 | M3: 10153 | N3: ZLR-01 | O3: YesR
A4: e07d996d-ea67-4757-ac62-732f9a408fad | B4: HPV16 | C4: 90.28 | D4: 2665 | E4: 106 | F4: 113 | G4: 1449 | H4: 4024 | I4: 5305 | J4: 7905 | K4: 0 | L4: 3345 | M4: 10153 | N4: ZLR-01 | O4: YesL
A5: e07d996d-ea67-4757-ac62-732f9a408fad | B5: HPV16 | C5: 90.93 | D5: 3462 | E5: 90 | F5: 154 | G5: 4025 | H5: 7352 | I5: 1 | J5: 3372 | K5: 0 | L5: 4447 | M5: 10153 | N5: ZLR-01 | O5: YesR
A6: e07d996d-ea67-4757-ac62-732f9a408fad | B6: Chr4 | C6: 88.29 | D6: 2945 | E6: 129 | F6: 159 | G6: 7352 | H6: 10153 | I6: 182138887 | J6: 182136016 | K6: 0 | L6: 3328 | M6: 10153 | N6: ZLR-01 | O6: YesL
A7: 0518482b-d636-424c-8b93-3972fa0bd422 | B7: Chr3 | C7: 91.29 | D7: 2239 | E7: 56 | F7: 102 | G7: 1 | H7: 2158 | I7: 137190364 | J7: 137188184 | K7: 0 | L7: 2926 | M7: 15245 | N7: ZLR−06_e1 | O7: YesR
A8: 0518482b-d636-424c-8b93-3972fa0bd422 | B8: HPV16 | C8: 88.7 | D8: 4645 | E8: 232 | F8: 212 | G8: 2153 | H8: 6625 | I8: 1769 | J8: 6292 | K8: 0 | L8: 5398 | M8: 15245 | N8: ZLR−06_e1 | O8: YesLR
A9: 0518482b-d636-424c-8b93-3972fa0bd422 | B9: Chr3 | C9: 90.41 | D9: 8954 | E9: 305 | F9: 405 | G9: 6625 | H9: 15241 | I9: 137186017 | J9: 137194753 | K9: 0 | L9: 11265 | M9: 15245 | N9: ZLR−06_e1 | O9: YesL
A10: 358433ad-82e6-40bc-a21d-0d4d1345689c | B10: Chr13 | C10: 93.13 | D10: 8966 | E10: 208 | F10: 304 | G10: 7 | H10: 8698 | I10: 73946491 | J10: 73955322 | K10: 0 | L10: 12768 | M10: 20072 | N10: ZLR-14 | O10: YesR
A11: 358433ad-82e6-40bc-a21d-0d4d1345689c | B11: HPV16 | C11: 91.17 | D11: 6583 | E11: 242 | F11: 247 | G11: 8692 | H11: 15083 | I11: 1471 | J11: 7905 | K11: 0 | L11: 8624 | M11: 20072 | N11: ZLR-14 | O11: YesL
A12: 358433ad-82e6-40bc-a21d-0d4d1345689c | B12: HPV16 | C12: 92.76 | D12: 2750 | E12: 73 | F12: 88 | G12: 15093 | H12: 17751 | I12: 13 | J12: 2727 | K12: 0 | L12: 3860 | M12: 20072 | N12: ZLR-14 | O12: YesR
A13: 358433ad-82e6-40bc-a21d-0d4d1345689c | B13: Chr13 | C13: 93.51 | D13: 2387 | E13: 49 | F13: 83 | G13: 17748 | H13: 20063 | I13: 73922259 | J13: 73924610 | K13: 0 | L13: 3452 | M13: 20072 | N13: ZLR-14 | O13: YesL
A14: 689d58c5-3dba-423d-8b48-552e41891251 | B14: Chr17 | C14: 90.82 | D14: 1928 | E14: 68 | F14: 81 | G14: 4 | H14: 1856 | I14: 36093709 | J14: 36095602 | K14: 0 | L14: 2479 | M14: 27686 | N14: ZLR−12_e2 | O14: YesR
A15: 689d58c5-3dba-423d-8b48-552e41891251 | B15: HPV16 | C15: 91.02 | D15: 1959 | E15: 69 | F15: 82 | G15: 1856 | H15: 3743 | I15: 5983 | J15: 7905 | K15: 0 | L15: 2543 | M15: 27686 | N15: ZLR−12_e2 | O15: YesL
A16: 689d58c5-3dba-423d-8b48-552e41891251 | B16: HPV16 | C16: 91.62 | D16: 8056 | E16: 262 | F16: 307 | G16: 3744 | H16: 11537 | I16: 1 | J16: 7905 | K16: 0 | L16: 10756 | M16: 27686 | N16: ZLR−12_e2 | O16: No
A17: 689d58c5-3dba-423d-8b48-552e41891251 | B17: HPV16 | C17: 91.24 | D17: 8060 | E17: 294 | F17: 306 | G17: 11566 | H17: 19401 | I17: 34 | J17: 7905 | K17: 0 | L17: 10593 | M17: 27686 | N17: ZLR−12_e2 | O17: No
A18: 689d58c5-3dba-423d-8b48-552e41891251 | B18: HPV16 | C18: 90.47 | D18: 3474 | E18: 149 | F18: 135 | G18: 19402 | H18: 22759 | I18: 1 | J18: 3408 | K18: 0 | L18: 4414 | M18: 27686 | N18: ZLR−12_e2 | O18: YesR
A19: 689d58c5-3dba-423d-8b48-552e41891251 | B19: Chr17 | C19: 91.01 | D19: 5129 | E19: 135 | F19: 238 | G19: 22763 | H19: 27686 | I19: 36095944 | J19: 36100951 | K19: 0 | L19: 6617 | M19: 27686 | N19: ZLR−12_e2 | O19: YesL
A20: 06a202d1-230e-4758-a9e1-ccb37ec419ea | B20: Chr11 | C20: 90.94 | D20: 11694 | E20: 345 | F20: 527 | G20: 3 | H20: 11209 | I20: 64963283 | J20: 64974748 | K20: 0 | L20: 15062 | M20: 23998 | N20: ZLR-02 | O20: YesR
A21: 06a202d1-230e-4758-a9e1-ccb37ec419ea | B21: HPV16 | C21: 89.09 | D21: 3676 | E21: 185 | F21: 169 | G21: 11207 | H21: 14770 | I21: 3572 | J21: 1 | K21: 0 | L21: 4368 | M21: 23998 | N21: ZLR-02 | O21: YesL
A22: 06a202d1-230e-4758-a9e1-ccb37ec419ea | B22: HPV16 | C22: 90.97 | D22: 3953 | E22: 137 | F22: 162 | G22: 14771 | H22: 18601 | I22: 7905 | J22: 4051 | K22: 0 | L22: 5120 | M22: 23998 | N22: ZLR-02 | O22: No
A23: 06a202d1-230e-4758-a9e1-ccb37ec419ea | B23: HPV16 | C23: 89.48 | D23: 1274 | E23: 65 | F23: 52 | G23: 18607 | H23: 19839 | I23: 6654 | J23: 7899 | K23: 0 | L23: 1546 | M23: 23998 | N23: ZLR-02 | O23: No
A24: 06a202d1-230e-4758-a9e1-ccb37ec419ea | B24: HPV16 | C24: 93.76 | D24: 2179 | E24: 47 | F24: 72 | G24: 19847 | H24: 21971 | I24: 1 | J24: 2144 | K24: 0 | L24: 3188 | M24: 23998 | N24: ZLR-02 | O24: YesR
A25: 06a202d1-230e-4758-a9e1-ccb37ec419ea | B25: Chr11 | C25: 84.88 | D25: 2130 | E25: 129 | F25: 139 | G25: 21966 | H25: 23968 | I25: 64975399 | J25: 64977462 | K25: 0 | L25: 1971 | M25: 23998 | N25: ZLR-02 | O25: YesL
A26: 864fadab-b36c-458a-8355-1a9519caa8ed | B26: Chr11 | C26: 91.83 | D26: 6771 | E26: 181 | F26: 280 | G26: 1 | H26: 6510 | I26: 100583463 | J26: 100590122 | K26: 0 | L26: 9097 | M26: 21759 | N26: ZLR−12_e3 | O26: YesR
A27: 864fadab-b36c-458a-8355-1a9519caa8ed | B27: HPV16 | C27: 91.1 | D27: 2022 | E27: 78 | F27: 72 | G27: 6511 | H27: 8478 | I27: 2599 | J27: 4572 | K27: 0 | L27: 2643 | M27: 21759 | N27: ZLR−12_e3 | O27: YesLR
A28: 864fadab-b36c-458a-8355-1a9519caa8ed | B28: Chr17 | C28: 93.09 | D28: 1562 | E28: 27 | F28: 62 | G28: 8490 | H28: 10007 | I28: 36094082 | J28: 36095606 | K28: 0 | L28: 2211 | M28: 21759 | N28: ZLR−12_e3 | O28: YesLR
A29: 864fadab-b36c-458a-8355-1a9519caa8ed | B29: HPV16 | C29: 91.08 | D29: 1961 | E29: 75 | F29: 81 | G29: 10002 | H29: 11900 | I29: 5979 | J29: 7901 | K29: 0 | L29: 2560 | M29: 21759 | N29: ZLR−12_e3 | O29: YesL
A30: 864fadab-b36c-458a-8355-1a9519caa8ed | B30: HPV16 | C30: 91.45 | D30: 4666 | E30: 152 | F30: 185 | G30: 11908 | H30: 16420 | I30: 1 | J30: 4572 | K30: 0 | L30: 6178 | M30: 21759 | N30: ZLR−12_e3 | O30: YesR
A31: 864fadab-b36c-458a-8355-1a9519caa8ed | B31: Chr17 | C31: 92.79 | D31: 1540 | E31: 29 | F31: 62 | G31: 16432 | H31: 17908 | I31: 36094082 | J31: 36095602 | K31: 0 | L31: 2154 | M31: 21759 | N31: ZLR−12_e3 | O31: YesLR
A32: 864fadab-b36c-458a-8355-1a9519caa8ed | B32: HPV16 | C32: 90.58 | D32: 1964 | E32: 84 | F32: 72 | G32: 17907 | H32: 19808 | I32: 5981 | J32: 7905 | K32: 0 | L32: 2508 | M32: 21759 | N32: ZLR−12_e3 | O32: YesL
A33: 864fadab-b36c-458a-8355-1a9519caa8ed | B33: HPV16 | C33: 92.83 | D33: 2009 | E33: 59 | F33: 63 | G33: 19809 | H33: 21759 | I33: 1 | J33: 1982 | K33: 0 | L33: 2833 | M33: 21759 | N33: ZLR−12_e3 | O33: No

Sheet Figure 3
A1: Source data of 21 HPV16 related integration events for Figure 3
A2: Sample | B2: LeftIPS | C2: LeftIPE | D2: LeftPolar | E2: RightIPS | F2: RightIPE | G2: RightPolar | H2: HpvType | I2: BPType | J2: Rep | K2: Validation
A3: ZLR-01 | B3: 5305 | C3: 7905 | D3: pos | E3: 1 | F3: 3374 | G3: pos | H3: hpv16 | I3: Type_A | J3: No | K3: Yes
A4: ZLR-02 | B4: 3572 | C4: 1 | D4: neg | E4: 7905 | F4: 4051 | G4: neg | H4: hpv16 | I4: Type_D | J4: No | K4: Yes
A5: ZLR-02 | B5: 6654 | C5: 7905 | D5: pos | E5: 1 | F5: 2144 | G5: pos | H5: hpv16 | I5: Type_D | J5: No | K5: Yes
A6: ZLR-03 | B6: 2190 | C6: 1 | D6: neg | E6: 7905 | F6: 6139 | G6: neg | H6: hpv16 | I6: Type_A | J6: No | K6: Yes
A7: ZLR-04 | B7: 2991 | C7: 7905 | D7: pos | E7: 1 | F7: 3087 | G7: pos | H7: hpv16 | I7: Type_C | J7: No | K7: Yes
A8: ZLR-06_e1 | B8: 1769 | C8: 6292 | D8: pos | E8: 1769 | F8: 6292 | G8: pos | H8: hpv16 | I8: Type_B | J8: No | K8: Yes
A9: ZLR-06_e2 | B9: 1447 | C9: 1 | D9: neg | E9: 7905 | F9: 1833 | G9: neg | H9: hpv16 | I9: Type_A | J9: No | K9: Yes
A10: ZLR-08_e1 | B10: 2276 | C10: 7029 | D10: pos | E10: 2276 | F10: 7029 | G10: pos | H10: hpv16 | I10: Type_B | J10: No | K10: Yes
A11: ZLR-08_e2 | B11: 2276 | C11: 7905 | D11: pos | E11: 1 | F11: 2636 | G11: pos | H11: hpv16 | I11: Type_C | J11: No | K11: Yes
A12: ZLR-08_e3 | B12: 2270 | C12: 3050 | D12: pos | E12: 2270 | F12: 3050 | G12: pos | H12: hpv16 | I12: Type_B | J12: No | K12: Yes
A13: ZLR-08_e4 | B13: 2276 | C13: 7905 | D13: pos | E13: 1 | F13: 1686 | G13: pos | H13: hpv16 | I13: Type_A | J13: No | K13: Yes
A14: ZLR-08_e5 | B14: 2276 | C14: 7905 | D14: pos | E14: 1 | F14: 1642 | G14: pos | H14: hpv16 | I14: Type_A | J14: No | K14: Yes
A15: ZLR-11_e1 | B15: 7783 | C15: 4368 | D15: neg | E15: 7783 | F15: 4368 | G15: neg | H15: hpv16 | I15: Type_B | J15: No | K15: Yes
A16: ZLR-11_e2 | B16: 7783 | C16: 4774 | D16: neg | E16: 7783 | F16: 4774 | G16: neg | H16: hpv16 | I16: Type_B | J16: No | K16: Yes
A17: ZLR-11_e3 | B17: 4774 | C17: 7905 | D17: pos | E17: 1 | F17: 473 | G17: pos | H17: hpv16 | I17: Type_D | J17: No | K17: Yes
A18: ZLR-11_e3 | B18: 4368 | C18: 7783 | D18: pos | E18: 4368 | F18: 7783 | G18: pos | H18: hpv16 | I18: Type_D | J18: No | K18: Yes
A19: ZLR-11_e4 | B19: 2797 | C19: 1 | D19: neg | E19: 7905 | F19: 4368 | G19: neg | H19: hpv16 | I19: Type_A | J19: No | K19: Yes
A20: ZLR-12_e1 | B20: 5979 | C20: 7905 | D20: pos | E20: 1 | F20: 3408 | G20: pos | H20: hpv16 | I20: Type_C | J20: No | K20: Yes
A21: ZLR-12_e1 | B21: 1 | C21: 7905 | D21: pos | E21: 1 | F21: 7905 | G21: pos | H21: hpv16 | I21: Type_C | J21: No | K21: Yes
A22: ZLR-12_e2 | B22: 5983 | C22: 7905 | D22: pos | E22: 1 | F22: 3408 | G22: pos | H22: hpv16 | I22: Type_C | J22: No | K22: Yes
A23: ZLR-12_e2 | B23: 1 | C23: 7905 | D23: pos | E23: 1 | F23: 7905 | G23: pos | H23: hpv16 | I23: Type_C | J23: No | K23: Yes
A24: ZLR-12_e2 | B24: 1 | C24: 7905 | D24: pos | E24: 1 | F24: 7905 | G24: pos | H24: hpv16 | I24: Type_C | J24: No | K24: Yes
A25: ZLR-12_e3 | B25: 2599 | C25: 4572 | D25: pos | E25: 2599 | F25: 4572 | G25: pos | H25: hpv16 | I25: Type_D | J25: No | K25: Yes
A26: ZLR-12_e3 | B26: 5979 | C26: 7905 | D26: pos | E26: 1 | F26: 4572 | G26: pos | H26: hpv16 | I26: Type_D | J26: Yes | K26: Yes
A27: ZLR-13 | B27: 3331 | C27: 7905 | D27: pos | E27: 1 | F27: 3285 | G27: pos | H27: hpv16 | I27: Type_A | J27: Yes | K27: Yes
A28: ZLR-14 | B28: 1471 | C28: 7905 | D28: pos | E28: 1 | F28: 2727 | G28: pos | H28: hpv16 | I28: Type_C | J28: No | K28: Yes
A29: ZLR-15 | B29: 2967 | C29: 7894 | D29: pos | E29: 1 | F29: 3048 | G29: pos | H29: hpv16 | I29: Type_C | J29: No | K29: Yes
A30: Note: the integration event in ZLR-16 is HPV58 related and its integration type is Type D.

Sheet Figure 4
A1: Five representive chimeric reads (integration events) in ZLR-08 for Figure 4a
A2: # Query: 7b61eb30-2ee8-41d3-9016-acbc1a524e31 | B2: Chr | C2: Qstart | D2: Qend | E2: Sstart | F2: Send | G2: Evalue | H2: BitScore | I2: QueryLength
A3: 7b61eb30-2ee8-41d3-9016-acbc1a524e31 | B3: 19 | C3: 15 | D3: 3760 | E3: 54979274 | F3: 54983028 | G3: 0 | H3: 5103 | I3: 9553
A4: 7b61eb30-2ee8-41d3-9016-acbc1a524e31 | B4: 27 | C4: 3758 | D4: 8548 | E4: 2274 | F4: 7026 | G4: 0 | H4: 6359 | I4: 9553
A5: 7b61eb30-2ee8-41d3-9016-acbc1a524e31 | B5: 19 | C5: 8550 | D5: 9528 | E5: 54970567 | F5: 54971543 | G5: 0 | H5: 793 | I5: 9553
A6: # Query: 91190f7e-7d0f-47d7-b3bb-ad5a99511fb3 | B6: Chr | C6: Qstart | D6: Qend | E6: Sstart | F6: Send | G6: Evalue | H6: BitScore | I6: QueryLength
A7: 91190f7e-7d0f-47d7-b3bb-ad5a99511fb3 | B7: 19 | C7: 25 | D7: 3065 | E7: 54980018 | F7: 54983028 | G7: 0 | H7: 4242 | I7: 12613
A8: 91190f7e-7d0f-47d7-b3bb-ad5a99511fb3 | B8: 27 | C8: 3063 | D8: 8670 | E8: 2274 | F8: 7905 | G8: 0 | H8: 8368 | I8: 12613
A9: 91190f7e-7d0f-47d7-b3bb-ad5a99511fb3 | B9: 27 | C9: 8671 | D9: 11330 | E9: 1 | F9: 2635 | G9: 0 | H9: 3249 | I9: 12613
A10: 91190f7e-7d0f-47d7-b3bb-ad5a99511fb3 | B10: 19 | C10: 11352 | D10: 12600 | E10: 54974841 | F10: 54976079 | G10: 0 | H10: 1639 | I10: 12613
A11: # Query: fa932f53-1420-4c4d-a9d2-e8747a0b8550 | B11: Chr | C11: Qstart | D11: Qend | E11: Sstart | F11: Send | G11: Evalue | H11: BitScore | I11: QueryLength
A12: fa932f53-1420-4c4d-a9d2-e8747a0b8550 | B12: 19 | C12: 28 | D12: 6911 | E12: 54976094 | F12: 54983028 | G12: 0 | H12: 10305 | I12: 8195
A13: fa932f53-1420-4c4d-a9d2-e8747a0b8550 | B13: 27 | C13: 6909 | D13: 7669 | E13: 2274 | F13: 3049 | G13: 0 | H13: 1170 | I13: 8195
A14: fa932f53-1420-4c4d-a9d2-e8747a0b8550 | B14: 19 | C14: 7670 | D14: 8194 | E14: 54978307 | F14: 54977785 | G14: 0 | H14: 802 | I14: 8195
A15: # Query: 1c221c87-4fca-4757-bc89-a7c6f595bb1c | B15: Chr | C15: Qstart | D15: Qend | E15: Sstart | F15: Send | G15: Evalue | H15: BitScore | I15: QueryLength
A16: 1c221c87-4fca-4757-bc89-a7c6f595bb1c | B16: 19 | C16: 8787 | D16: 9325 | E16: 54982485 | F16: 54983028 | G16: 0 | H16: 833 | I16: 20072
A17: 1c221c87-4fca-4757-bc89-a7c6f595bb1c | B17: 27 | C17: 9323 | D17: 14924 | E17: 2274 | F17: 7905 | G17: 0 | H17: 7620 | I17: 20072
A18: 1c221c87-4fca-4757-bc89-a7c6f595bb1c | B18: 27 | C18: 14925 | D18: 16597 | E18: 1 | F18: 1686 | G18: 0 | H18: 2314 | I18: 20072
A19: 1c221c87-4fca-4757-bc89-a7c6f595bb1c | B19: 19 | C19: 16599 | D19: 20045 | E19: 54970602 | F19: 54974072 | G19: 0 | H19: 4992 | I19: 20072
A20: # Query: 81806d14-5732-42ad-b573-84bdf9eb53ce | B20: Chr | C20: Qstart | D20: Qend | E20: Sstart | F20: Send | G20: Evalue | H20: BitScore | I20: QueryLength
A21: 81806d14-5732-42ad-b573-84bdf9eb53ce | B21: 19 | C21: 23 | D21: 4237 | E21: 54978803 | F21: 54983028 | G21: 0 | H21: 6436 | I21: 14380
A22: 81806d14-5732-42ad-b573-84bdf9eb53ce | B22: 27 | C22: 4235 | D22: 9862 | E22: 2274 | F22: 7905 | G22: 0 | H22: 8619 | I22: 14380
A23: 81806d14-5732-42ad-b573-84bdf9eb53ce | B23: 27 | C23: 9863 | D23: 11540 | E23: 1 | F23: 1691 | G23: 0 | H23: 2645 | I23: 14380
A24: 81806d14-5732-42ad-b573-84bdf9eb53ce | B24: 19 | C24: 11544 | D24: 14361 | E24: 54978038 | F24: 54980852 | G24: 0 | H24: 4497 | I24: 14380
A26: Four representive chimeric reads (integration events) in ZLR-11 for Figure 4b
A27: # Query: 57852b25-4641-4be5-8095-01cb7cea15c5 | B27: Chr | C27: Qstart | D27: Qend | E27: Sstart | F27: Send | G27: Evalue | H27: BitScore | I27: QueryLength
A28: 57852b25-4641-4be5-8095-01cb7cea15c5 | B28: 8 | C28: 1 | D28: 9070 | E28: 128410384 | F28: 128419658 | G28: 0 | H28: 11603 | I28: 13790
A29: 57852b25-4641-4be5-8095-01cb7cea15c5 | B29: 27 | C29: 9070 | D29: 12410 | E29: 7783 | F29: 4368 | G29: 0 | H29: 3978 | I29: 13790
A30: 57852b25-4641-4be5-8095-01cb7cea15c5 | B30: 8 | C30: 12458 | D30: 13790 | E30: 128323084 | F30: 128324456 | G30: 0 | H30: 1635 | I30: 13790
A31: # Query: 79b023da-3498-4843-80f2-9be0a5722c77 | B31: Chr | C31: Qstart | D31: Qend | E31: Sstart | F31: Send | G31: Evalue | H31: BitScore | I31: QueryLength
A32: 79b023da-3498-4843-80f2-9be0a5722c77 | B32: 8 | C32: 1 | D32: 6264 | E32: 128413198 | F32: 128419658 | G32: 0 | H32: 8048 | I32: 18072
A33: 79b023da-3498-4843-80f2-9be0a5722c77 | B33: 27 | C33: 6264 | D33: 9204 | E33: 7783 | F33: 4774 | G33: 0 | H33: 3655 | I33: 18072
A34: 79b023da-3498-4843-80f2-9be0a5722c77 | B34: 15 | C34: 9212 | D34: 18072 | E34: 85988612 | F34: 85997716 | G34: 0 | H34: 11980 | I34: 18072
A35: # Query: 150de598-edc6-4ba7-9437-a7a80b0de12c | B35: Chr | C35: Qstart | D35: Qend | E35: Sstart | F35: Send | G35: Evalue | H35: BitScore | I35: QueryLength
A36: 150de598-edc6-4ba7-9437-a7a80b0de12c | B36: 8 | C36: 1 | D36: 1462 | E36: 128418162 | F36: 128419658 | G36: 0 | H36: 1807 | I36: 10210
A37: 150de598-edc6-4ba7-9437-a7a80b0de12c | B37: 27 | C37: 1462 | D37: 4853 | E37: 7783 | F37: 4368 | G37: 0 | H37: 4170 | I37: 10210
A38: 150de598-edc6-4ba7-9437-a7a80b0de12c | B38: 8 | C38: 4905 | D38: 5117 | E38: 128323085 | F38: 128323314 | G38: 1.00E-43 | H38: 187 | I38: 10210
A39: 150de598-edc6-4ba7-9437-a7a80b0de12c | B39: 27 | C39: 5121 | D39: 5580 | E39: 473 | F39: 1 | G39: 3.00E-163 | H39: 584 | I39: 10210
A40: 150de598-edc6-4ba7-9437-a7a80b0de12c | B40: 27 | C40: 5581 | D40: 8664 | E40: 7905 | F40: 4774 | G40: 0 | H40: 3823 | I40: 10210
A41: 150de598-edc6-4ba7-9437-a7a80b0de12c | B41: 15 | C41: 8672 | D41: 10210 | E41: 85988612 | F41: 85990193 | G41: 0 | H41: 1879 | I41: 10210
A42: # Query: ae97e0a9-4867-40b3-a1da-9552fd0572ec | B42: Chr | C42: Qstart | D42: Qend | E42: Sstart | F42: Send | G42: Evalue | H42: BitScore | I42: QueryLength
A43: ae97e0a9-4867-40b3-a1da-9552fd0572ec | B43: 15 | C43: 1 | D43: 3591 | E43: 86028195 | F43: 86031825 | G43: 0 | H43: 4414 | I43: 11798
A44: ae97e0a9-4867-40b3-a1da-9552fd0572ec | B44: 27 | C44: 3592 | D44: 6299 | E44: 2797 | F44: 6 | G44: 0 | H44: 2270 | I44: 11798
A45: ae97e0a9-4867-40b3-a1da-9552fd0572ec | B45: 27 | C45: 6308 | D45: 9829 | E45: 7905 | F45: 4368 | G45: 0 | H45: 4331 | I45: 11798
A46: ae97e0a9-4867-40b3-a1da-9552fd0572ec | B46: 8 | C46: 9877 | D46: 11798 | E46: 128323084 | F46: 128325058 | G46: 0 | H46: 2257 | I46: 11798
A48: Three representive chimeric reads (integration events) in ZLR-12 for Figure 4c
A49: # Query: 1b64d0d1-8213-4b45-aabb-3a1d15543913 | B49: Chr | C49: Qstart | D49: Qend | E49: Sstart | F49: Send | G49: Evalue | H49: BitScore | I49: QueryLength
A50: 1b64d0d1-8213-4b45-aabb-3a1d15543913 | B50: 17 | C50: 19 | D50: 14442 | E50: 36080776 | F50: 36095606 | G50: 0 | H50: 11727 | I50: 30152
A51: 1b64d0d1-8213-4b45-aabb-3a1d15543913 | B51: 27 | C51: 14437 | D51: 16254 | E51: 5979 | F51: 7839 | G51: 0 | H51: 1696 | I51: 30152
A52: 1b64d0d1-8213-4b45-aabb-3a1d15543913 | B52: 27 | C52: 16321 | D52: 24102 | E52: 1 | F52: 7869 | G52: 0 | H52: 6745 | I52: 30152
A53: 1b64d0d1-8213-4b45-aabb-3a1d15543913 | B53: 27 | C53: 24161 | D53: 27425 | E53: 25 | F53: 3408 | G53: 0 | H53: 2028 | I53: 30152
A54: 1b64d0d1-8213-4b45-aabb-3a1d15543913 | B54: 17 | C54: 27428 | D54: 30119 | E54: 36095946 | F54: 36098665 | G54: 0 | H54: 2422 | I54: 30152
A55: # Query: 689d58c5-3dba-423d-8b48-552e41891251 | B55: Chr | C55: Qstart | D55: Qend | E55: Sstart | F55: Send | G55: Evalue | H55: BitScore | I55: QueryLength
A56: 689d58c5-3dba-423d-8b48-552e41891251 | B56: 17 | C56: 4 | D56: 1856 | E56: 36093709 | F56: 36095602 | G56: 0 | H56: 2479 | I56: 27686
A57: 689d58c5-3dba-423d-8b48-552e41891251 | B57: 27 | C57: 1856 | D57: 3743 | E57: 5983 | F57: 7905 | G57: 0 | H57: 2543 | I57: 27686
A58: 689d58c5-3dba-423d-8b48-552e41891251 | B58: 27 | C58: 3744 | D58: 11537 | E58: 1 | F58: 7905 | G58: 0 | H58: 10756 | I58: 27686
A59: 689d58c5-3dba-423d-8b48-552e41891251 | B59: 27 | C59: 11566 | D59: 19401 | E59: 34 | F59: 7905 | G59: 0 | H59: 10593 | I59: 27686
A60: 689d58c5-3dba-423d-8b48-552e41891251 | B60: 27 | C60: 19402 | D60: 22759 | E60: 1 | F60: 3408 | G60: 0 | H60: 4414 | I60: 27686
A61: 689d58c5-3dba-423d-8b48-552e41891251 | B61: 17 | C61: 22763 | D61: 27686 | E61: 36095944 | F61: 36100951 | G61: 0 | H61: 6617 | I61: 27686
A62: # Query: 864fadab-b36c-458a-8355-1a9519caa8ed | B62: Chr | C62: Qstart | D62: Qend | E62: Sstart | F62: Send | G62: Evalue | H62: BitScore | I62: QueryLength
A63: 864fadab-b36c-458a-8355-1a9519caa8ed | B63: 11 | C63: 1 | D63: 6510 | E63: 100583463 | F63: 100590122 | G63: 0 | H63: 9097 | I63: 21759
A64: 864fadab-b36c-458a-8355-1a9519caa8ed | B64: 27 | C64: 6511 | D64: 8478 | E64: 2599 | F64: 4572 | G64: 0 | H64: 2643 | I64: 21759
A65: 864fadab-b36c-458a-8355-1a9519caa8ed | B65: 17 | C65: 8490 | D65: 10007 | E65: 36094082 | F65: 36095606 | G65: 0 | H65: 2211 | I65: 21759
A66: 864fadab-b36c-458a-8355-1a9519caa8ed | B66: 27 | C66: 10002 | D66: 11900 | E66: 5979 | F66: 7901 | G66: 0 | H66: 2560 | I66: 21759
A67: 864fadab-b36c-458a-8355-1a9519caa8ed | B67: 27 | C67: 11908 | D67: 16420 | E67: 1 | F67: 4572 | G67: 0 | H67: 6178 | I67: 21759
A68: 864fadab-b36c-458a-8355-1a9519caa8ed | B68: 17 | C68: 16432 | D68: 17908 | E68: 36094082 | F68: 36095602 | G68: 0 | H68: 2154 | I68: 21759
A69: 864fadab-b36c-458a-8355-1a9519caa8ed | B69: 27 | C69: 17907 | D69: 19808 | E69: 5981 | F69: 7905 | G69: 0 | H69: 2508 | I69: 21759
A70: 864fadab-b36c-458a-8355-1a9519caa8ed | B70: 27 | C70: 19809 | D70: 21759 | E70: 1 | F70: 1982 | G70: 0 | H70: 2833 | I70: 21759

Sheet Figure 5
A2: Figure 5c | B2: Raw gels of PCR validation for eight selected regions in the clonal integration event ZLR-11_e1

Sheet Figure 6
A3: Figure 6c
B4: Well | C4: Well Position | D4: Sample Name | E4: Target Name | F4: CT | H4: Well | I4: Well Position | J4: Sample Name | K4: Target Name | L4: CT | N4: △ct | O4: average △ct | P4: △△ct | Q4: 2^-△△ct
B5: 49 | C5: E1 | D5: 9 Caski EV 11.26 | E5: 1 LENG9_F/R | F5: 24.154 | H5: 61 | I5: F1 | J5: 9 Caski EV 11.26 | K5: 2 GAPDH | L5: 12.655 | N5: =F5-L5 -> 11.4990196228027 | O5: =AVERAGE(N5:N7) -> 12.5096473693848 | P5: =N5-O5 -> -1.0106277465820 | Q5: =2^-P5 -> 2.0147875853436
B6: 50 | C6: E2 | D6: 9 Caski EV 11.26 | E6: 1 LENG9_F/R | F6: 25.580 | H6: 62 | I6: F2 | J6: 9 Caski EV 11.26 | K6: 2 GAPDH | L6: 12.945 | N6: =F6-L6 -> 12.6350774765015 | O6: =AVERAGE(N5:N7) -> 12.5096473693848 | P6: =N6-O6 -> 0.1254301071167 | Q6: =2^-P6 -> 0.9167306997971 | Y6: PLVX-3XFlag | AB6: PLVX-LENG9
B7: 51 | C7: E3 | D7: 9 Caski EV 11.26 | E7: 1 LENG9_F/R | F7: 25.389 | H7: 63 | I7: F3 | J7: 9 Caski EV 11.26 | K7: 2 GAPDH | L7: 11.994 | N7: 13.3948450088501 | O7: =AVERAGE(N5:N7) -> 12.5096473693848 | P7: 0.8851976394653 | Q7: 0.5414133477147 | Y7: Mean | Z7: SEM | AA7: N | AB7: Mean | AC7: SEM | AD7: N
B8: 52 | C8: E4 | D8: 10 Caski OV 11.26 | E8: 1 LENG9_F/R | F8: 14.218 | H8: 64 | I8: F4 | J8: 10 Caski OV 11.26 | K8: 2 GAPDH | L8: 12.264 | N8: 1.9543485641480 | O8: 12.5096473693848 | P8: -10.5552988052368 | Q8: 1,504.7403040087600 | X8: CaSki | Y8: 1.157644033 | Z8: 0.4420548999 | AA8: 3 | AB8: 1876.840333 | AC8: 271.635508 | AD8: 3
B9: 53 | C9: E5 | D9: 10 Caski OV 11.26 | E9: 1 LENG9_F/R | F9: 14.221 | H9: 65 | I9: F5 | J9: 10 Caski OV 11.26 | K9: 2 GAPDH | L9: 12.460 | N9: 1.7613811492920 | O9: 12.5096473693848 | P9: -10.7482662200928 | Q9: 1,720.0874755032500 | X9: SiHa | Y9: 1.032134033 | Z9: 0.1729664244 | AA9: 3 | AB9: 744.8855667 | AC9: 27.37192306 | AD9: 3
B10: 54 | C10: E6 | D10: 10 Caski OV 11.26 | E10: 1 LENG9_F/R | F10: 14.286 | H10: 66 | I10: F6 | J10: 10 Caski OV 11.26 | K10: 2 GAPDH | L10: 13.008 | N10: 1.2774105072022 | O10: 12.5096473693848 | P10: -11.2322368621826 | Q10: 2,405.6930521614500
B13: Well | C13: Well Position | D13: Sample Name | E13: Target Name | F13: CT | H13: Well | I13: Well Position | J13: Sample Name | K13: Target Name | L13: CT | N13: △ct | O13: average △ct | P13: △△ct | Q13: 2^-△△ct
B14: 25 | C14: C1 | D14: 5 siha EV 11.24 | E14: 1 LENG9_F/R | F14: 25.866 | H14: 37 | I14: D1 | J14: 5 siha EV 11.24 | K14: 2 GAPDH | L14: 13.609 | N14: =F14-L14 -> 12.256233215332 | O14: =AVERAGE(N14:N16) -> 11.7410790125529 | P14: =N14-O14 -> 0.5151542027791 | Q14: =2^-P14 -> 0.6997181392721
B15: 26 | C15: C2 | D15: 5 siha EV 11.24 | E15: 1 LENG9_F/R | F15: 25.763 | H15: 38 | I15: D2 | J15: 5 siha EV 11.24 | K15: 2 GAPDH | L15: 14.179 | N15: =F15-L15 -> 11.583498001099 | O15: =AVERAGE(N14:N16) -> 11.7410790125529 | P15: =N15-O15 -> -0.1575810114543 | Q15: =2^-P15 -> 1.1154153355459
B16: 27 | C16: C3 | D16: 5 siha EV 11.24 | E16: 1 LENG9_F/R | F16: 25.535 | H16: 39 | I16: D3 | J16: 5 siha EV 11.24 | K16: 2 GAPDH | L16: 14.152 | N16: 11.383505821228 | O16: =AVERAGE(N14:N16) -> 11.7410790125529 | P16: -0.3575731913249 | Q16: 1.2812688159428
B17: 28 | C17: C4 | D17: 6 siha OV 11.24 | E17: 1 LENG9_F/R | F17: 15.853 | H17: 40 | I17: D4 | J17: 6 siha OV 11.24 | K17: 2 GAPDH | L17: 13.715 | N17: 2.138032913208 | O17: 11.7410790125529 | P17: -9.6030460993449 | Q17: 777.6871547163450
B18: 29 | C18: C5 | D18: 6 siha OV 11.24 | E18: 1 LENG9_F/R | F18: 16.005 | H18: 41 | I18: D5 | J18: 6 siha OV 11.24 | K18: 2 GAPDH | L18: 13.846 | N18: 2.159047126770 | O18: 11.7410790125529 | P18: -9.5820318857829 | Q18: 766.4415085887080
B19: 30 | C19: C6 | D19: 6 siha OV 11.24 | E19: 1 LENG9_F/R | F19: 16.269 | H19: 42 | I19: D6 | J19: 6 siha OV 11.24 | K19: 2 GAPDH | L19: 13.959 | N19: 2.309522628784 | O19: 11.7410790125529 | P19: -9.4315563837687 | Q19: 690.5281335124860
A41: Figure 6d
B42: CaSki | O42: SiHa
C43: Absorption | D43: PLVX-3XFlag | I43: PLVX-LENG9 | P43: Absorption | Q43: PLVX-3XFlag | V43: PLVX-LENG9
C44: 0H | D44: 0.1865 | E44: 0.1736 | F44: 0.1884 | G44: 0.1755 | H44: 0.1925 | I44: 0.1801 | J44: 0.1909 | K44: 0.1813 | L44: 0.2006 | M44: 0.1859 | P44: 0H | Q44: 0.2918 | R44: 0.2923 | S44: 0.2919 | T44: 0.2844 | U44: 0.2938 | V44: 0.2958 | W44: 0.309 | X44: 0.3015 | Y44: 0.3169 | Z44: 0.3078
C45: 24H | D45: 0.2371 | E45: 0.2394 | F45: 0.2388 | G45: 0.2391 | H45: 0.2324 | I45: 0.2371 | J45: 0.2481 | K45: 0.2471 | L45: 0.2482 | M45: 0.2464 | P45: 24H | Q45: 0.3277 | R45: 0.3137 | S45: 0.3201 | T45: 0.307 | U45: 0.3284 | V45: 0.3594 | W45: 0.382 | X45: 0.3688 | Y45: 0.3931 | Z45: 0.3813
C46: 48H | D46: 0.3196 | E46: 0.3258 | F46: 0.3307 | G46: 0.3207 | H46: 0.3364 | I46: 0.3801 | J46: 0.3754 | K46: 0.3752 | L46: 0.3691 | M46: 0.3663 | P46: 48H | Q46: 0.4509 | R46: 0.3982 | S46: 0.4169 | T46: 0.4152 | U46: 0.4334 | V46: 0.521 | W46: 0.5443 | X46: 0.5221 | Y46: 0.566 | Z46: 0.5297
C47: 72H | D47: 0.459 | E47: 0.4799 | F47: 0.4673 | G47: 0.4523 | H47: 0.4564 | I47: 0.596 | J47: 0.591 | K47: 0.5907 | L47: 0.5809 | M47: 0.5979 | P47: 72H | Q47: 0.5427 | R47: 0.5603 | S47: 0.5769 | T47: 0.5739 | U47: 0.5609 | V47: 0.7496 | W47: 0.7337 | X47: 0.7236 | Y47: 0.7565 | Z47: 0.7495
C48: 96H | D48: 0.6281 | E48: 0.6328 | F48: 0.6341 | G48: 0.6729 | H48: 0.6252 | I48: 0.8908 | J48: 0.8797 | K48: 0.8824 | L48: 0.9189 | M48: 0.8587 | P48: 96H | Q48: 0.8097 | R48: 0.8098 | S48: 0.8508 | T48: 0.8124 | U48: 0.8666 | V48: 1.0171 | W48: 1.0094 | X48: 0.9989 | Y48: 1.0509 | Z48: 1.0615
C49: 120H | D49: 0.6908 | E49: 0.6924 | F49: 0.7308 | G49: 0.6987 | H49: 0.7715 | I49: 0.9548 | J49: 0.9594 | K49: 0.9725 | L49: 0.9751 | M49: 0.9746 | P49: 120H | Q49: 1.0637 | R49: 1.0716 | S49: 1.0828 | T49: 1.0664 | U49: 1.0533 | V49: 1.2921 | W49: 1.3083 | X49: 1.2255 | Y49: 1.2871 | Z49: 1.3554
C51: Cell Proliferation Rate | D51: PLVX-3XFlag | I51: PLVX-LENG9 | N51: P value | P51: Cell Proliferation Rate | Q51: PLVX-3XFlag | V51: PLVX-LENG9 | AA51: P value
C52: 0H | D52: =(D44-D44)/D44 -> 0 | E52: =(E44-E44)/E44 -> 0 | F52: 0 | G52: 0 | H52: 0 | I52: 0 | J52: 0 | K52: 0 | L52: 0 | M52: 0 | P52: 0H | Q52: =(Q44-Q44)/Q44 -> 0 | R52: =(R44-R44)/R44 -> 0 | S52: 0 | T52: 0 | U52: 0 | V52: 0 | W52: 0 | X52: 0 | Y52: 0 | Z52: 0
C53: 24H | D53: =(D45-D44)/D44 -> 0.2713136729 | E53: =(E45-E44)/E44 -> 0.3790322581 | F53: 0.2675159236 | G53: 0.3623931624 | H53: 0.2072727273 | I53: 0.3164908384 | J53: 0.2996333159 | K53: 0.3629343629 | L53: 0.2372881356 | M53: 0.325443787 | N53: 0.783058 | P53: 24H | Q53: =(Q45-Q44)/Q44 -> 0.1230294722 | R53: =(R45-R44)/R44 -> 0.07321245296 | S53: 0.09660842754 | T53: 0.07946554149 | U53: 0.1177671886 | V53: 0.215010142 | W53: 0.2362459547 | X53: 0.2232172471 | Y53: 0.240454402 | Z53: 0.238791423 | AA53: 2e-06
C54: 48H | D54: =(D46-D44)/D44 -> 0.7136729223 | E54: =(E46-E44)/E44 -> 0.8767281106 | F54: 0.7553078556 | G54: 0.8273504274 | H54: 0.7475324675 | I54: 1.11049417 | J54: 0.966474594 | K54: 1.069498069 | L54: 0.8399800598 | M54: 0.9704142012 | N54: 0.005813 | P54: 48H | Q54: =(Q46-Q44)/Q44 -> 0.5452364633 | R54: =(R46-R44)/R44 -> 0.3622990079 | S54: 0.4282288455 | T54: 0.4599156118 | U54: 0.4751531654 | V54: 0.7613252197 | W54: 0.7614886731 | X54: 0.7316749585 | Y54: 0.7860523825 | Z54: 0.7209226771 | AA54: 1.5e-05
C55: 72H | D55: =(D47-D44)/D44 -> 1.461126005 | E55: =(E47-E44)/E44 -> 1.764400922 | F55: 1.480360934 | G55: 1.577207977 | H55: 1.370909091 | I55: 2.309272626 | J55: 2.095861708 | K55: 2.258135687 | L55: 1.895812562 | M55: 2.216245293 | N55: 0.000242 | P55: 72H | Q55: =(Q47-Q44)/Q44 -> 0.8598355038 | R55: =(R47-R44)/R44 -> 0.9168662333 | S55: 0.9763617677 | T55: 1.017932489 | U55: 0.9091218516 | V55: 1.534144692 | W55: 1.374433657 | X55: 1.4 | Y55: 1.387188388 | Z55: 1.435022742 | AA55: 2e-06
C56: 96H | D56: =(D48-D44)/D44 -> 2.367828418 | E56: =(E48-E44)/E44 -> 2.64516129 | F56: 2.365711253 | G56: 2.834188034 | H56: 2.247792208 | I56: 3.946141033 | J56: 3.608171818 | K56: 3.867071153 | L56: 3.580757727 | M56: 3.619150081 | N56: 1.4e-05 | P56: 96H | Q56: =(Q48-Q44)/Q44 -> 1.774845785 | R56: =(R48-R44)/R44 -> 1.770441327 | S56: 1.914696814 | T56: 1.856540084 | U56: 1.949625596 | V56: 2.438471941 | W56: 2.266666667 | X56: 2.313101161 | Y56: 2.316188072 | Z56: 2.448667966 | AA56: 1e-05
C57: 120H | D57: =(D49-D44)/D44 -> 2.704021448 | E57: =(E49-E44)/E44 -> 2.988479263 | F57: 2.878980892 | G57: 2.981196581 | H57: 3.007792208 | I57: 4.301499167 | J57: 4.025667889 | K57: 4.364037507 | L57: 3.860917248 | M57: 4.24260355 | N57: 3e-06 | P57: 120H | Q57: =(Q49-Q44)/Q44 -> 2.645305003 | R57: =(R49-R44)/R44 -> 2.666096476 | S57: 2.709489551 | T57: 2.749648383 | U57: 2.585091899 | V57: 3.368154158 | W57: 3.233980583 | X57: 3.064676617 | Y57: 3.061533607 | Z57: 3.403508772 | AA57: 9.7e-05
M60: PLVX-3XFlag | P60: PLVX-LENG9 | Y60: SiHa | Z60: PLVX-3XFlag | AC60: PLVX-LENG9
M61: Mean | N61: SEM | O61: N | P61: Mean | Q61: SEM | R61: N | Z61: Mean | AA61: SEM | AB61: N | AC61: Mean | AD61: SEM | AE61: N
L62: 0H | M62: 0 | N62: 0 | O62: 5 | P62: 0 | Q62: 0 | R62: 5 | Y62: 0H | Z62: 0 | AA62: 0 | AB62: 5 | AC62: 0 | AD62: 0 | AE62: 5
L63: 24H | M63: 0.2975056 | N63: 0.07173602076 | O63: 5 | P63: 0.308358 | Q63: 0.0459991505 | R63: 5 | Y63: 24H | Z63: 0.0980164 | AA63: 0.02223215885 | AB63: 5 | AC63: 0.2307436 | AD63: 0.011107709 | AE63: 5
L64: 48H | M64: 0.7841182 | N64: 0.06628851229 | O64: 5 | P64: 0.9913722 | Q64: 0.1052049889 | R64: 5 | Y64: 48H | Z64: 0.4541666 | AA64: 0.06685718964 | AB64: 5 | AC64: 0.7522928 | AD64: 0.02605279421 | AE64: 5
L65: 72H | M65: 1.530801 | N65: 0.1497387897 | O65: 5 | P65: 2.1550658 | Q65: 0.1649722139 | R65: 5 | Y65: 72H | Z65: 0.9360236 | AA65: 0.06170784516 | AB65: 5 | AC65: 1.426158 | AD65: 0.06445551651 | AE65: 5
L66: 96H | M66: 2.492136 | N66: 0.240601315 | O66: 5 | P66: 3.7242584 | Q66: 0.1693690643 | R66: 5 | Y66: 96H | Z66: 1.85323 | AA66: 0.08074559892 | AB66: 5 | AC66: 2.3566192 | AD66: 0.08184249568 | AE66: 5
L67: 120H | M67: 2.912094 | N67: 0.1266479808 | O67: 5 | P67: 4.1589452 | Q67: 0.2097421377 | R67: 5 | Y67: 120H | Z67: 2.6711262 | AA67: 0.06271238928 | AB67: 5 | AC67: 3.226371 | AD67: 0.1619061367 | AE67: 5
A77: Figure 6e
B78: CaSki | J78: SiHa
C80: PLVX-3XFlag | F80: PLVX-LENG9 | K80: PLVX-3XFlag | N80: PLVX-LENG9
B81: numbers(counted by imageJ) | C81: 88 | D81: 83 | E81: 126 | F81: 258 | G81: 233 | H81: 285 | J81: numbers(counted by imageJ) | K81: 292 | L81: 228 | M81: 231 | N81: 408 | O81: 338 | P81: 421
B82: averge | C82: 99 | J82: averge | K82: 250.3333333
B83: Relative cell numbers | C83: 0.8888888889 | D83: 0.8383838384 | E83: 1.272727273 | F83: 2.606060606 | G83: 2.353535354 | H83: 2.878787879 | J83: Relative cell numbers | K83: 1.16644474 | L83: 0.9107856192 | M83: 0.9227696405 | N83: 1.629826897 | O83: 1.350199734 | P83: 1.681757656
C87: PLVX-3XFlag | F87: PLVX-LENG9
C88: Mean | D88: SEM | E88: N | F88: Mean | G88: SEM | H88: N
B89: CaSki | C89: 1 | D89: 0.2375346315 | E89: 3 | F89: 2.612794667 | G89: 0.2626912355 | H89: 3
B90: SiHa | C90: 1.000000333 | D90: 0.1442697971 | E90: 3 | F90: 1.553928333 | G90: 0.178334328 | H90: 3
A99: Figure 6f
B100: CaSki | J100: SiHa
C102: PLVX-3XFlag | F102: PLVX-LENG9 | K102: PLVX-3XFlag | N102: PLVX-LENG9
B103: numbers(counted by imageJ) | C103: 39 | D103: 29 | E103: 32 | F103: 66 | G103: 70 | H103: 59 | J103: numbers(counted by imageJ) | K103: 123 | L103: 71 | M103: 73 | N103: 240 | O103: 189 | P103: 150
B104: averge | C104: 33.33333333 | J104: averge | K104: 89
B105: Relative cell numbers | C105: 1.17 | D105: 0.87 | E105: 0.96 | F105: 1.98 | G105: 2.1 | H105: 1.77 | J105: Relative cell numbers | K105: 1.382022472 | L105: 0.797752809 | M105: 0.8202247191 | N105: 2.696629213 | O105: 2.123595506 | P105: 1.685393258
C109: PLVX-3XFlag | F109: PLVX-LENG9
C110: Mean | D110: SEM | E110: N | F110: Mean | G110: SEM | H110: N
B111: CaSki | C111: 1 | D111: 0.1539480432 | E111: 3 | F111: 1.95 | G111: 0.1670329309 | H111: 3
B112: SiHa | C112: 1 | D112: 0.3310315001 | E112: 3 | F112: 2.168539333 | G112: 0.507113882 | H112: 3
A115: Figure 6b
A116: Sample.ID | B116: Sample.Type | C116: Gene.Name | D116: Expr | E116: zscore | F116: pval | G116: FDR
A117: ZLR-08 | B117: Tumor | C117: CDC42EP5 | D117: 50.004456 | E117: 1.164963392 | F117: 0.1220169057 | G117: 0.2655662065
A118: ZLR-08 | B118: Tumor | C118: LENG8 | D118: 113.806114 | E118: 1.385734059 | F118: 0.08291406202 | G118: 0.204521353
A119: ZLR-08 | B119: Tumor | C119: LENG9 | D119: 58.861588 | E119: 16.24015933 | F119: 1.311210873e-59 | G119: 1.212870058e-58
A120: HC2016033C | B120: Tumor | C120: CDC42EP5 | D120: 2.41635
A121: HC2016044C | B121: Tumor | C121: CDC42EP5 | D121: 26.402287
A122: HC2017020C | B122: Tumor | C122: CDC42EP5 | D122: 20.614067
A123: HC2017028C | B123: Tumor | C123: CDC42EP5 | D123: 16.275522
A124: HC2017030C | B124: Tumor | C124: CDC42EP5 | D124: 9.492887
A125: HC2017058C | B125: Tumor | C125: CDC42EP5 | D125: 62.330502
A126: HC2017109C | B126: Tumor | C126: CDC42EP5 | D126: 57.891232
A127: HC2017116C | B127: Tumor | C127: CDC42EP5 | D127: 24.318054
A128: HC2019096C | B128: Tumor | C128: CDC42EP5 | D128: 29.150871
A129: HC2019101C | B129: Tumor | C129: CDC42EP5 | D129: 21.430122
A130: HC2019107C | B130: Tumor | C130: CDC42EP5 | D130: 20.402216
A131: HC2019200C | B131: Tumor | C131: CDC42EP5 | D131: 50.248547
A132: RC1 | B132: Tumor | C132: CDC42EP5 | D132: 37.789658
A133: RC101 | B133: Tumor | C133: CDC42EP5 | D133: 4.071896
A134: RC11 | B134: Tumor | C134: CDC42EP5 | D134: 15.643784
A135: RC12 | B135: Tumor | C135: CDC42EP5 | D135: 35.863098
A136: RC14 | B136: Tumor | C136: CDC42EP5 | D136: 25.405523
A137: RC15 | B137: Tumor | C137: CDC42EP5 | D137: 17.554264
A138: RC16 | B138: Tumor | C138: CDC42EP5 | D138: 48.011032
A139: RC17 | B139: Tumor | C139: CDC42EP5 | D139: 42.946198
A140: RC18 | B140: Tumor | C140: CDC42EP5 | D140: 17.090305
A141: RC2 | B141: Tumor | C141: CDC42EP5 | D141: 11.01837
A142: RC20 | B142: Tumor | C142: CDC42EP5 | D142: 21.261908
A143: RC21 | B143: Tumor | C143: CDC42EP5 | D143: 11.990975
A144: RC22 | B144: Tumor | C144: CDC42EP5 | D144: 39.049572
A145: RC23 | B145: Tumor | C145: CDC42EP5 | D145: 3.364515
A146: RC24 | B146: Tumor | C146: CDC42EP5 | D146: 5.553544
A147: RC25 | B147: Tumor | C147: CDC42EP5 | D147: 21.298199
A148: RC26 | B148: Tumor | C148: CDC42EP5 | D148: 2.766546
A149: RC27 | B149: Tumor | C149: CDC42EP5 | D149: 8.136749
A150: RC28 | B150: Tumor | C150: CDC42EP5 | D150: 24.169901
A151: RC29 | B151: Tumor | C151: CDC42EP5 | D151: 18.563925
A152: RC3 | B152: Tumor | C152: CDC42EP5 | D152: 42.583481
A153: RC30 | B153: Tumor | C153: CDC42EP5 | D153: 49.368359
A154: RC31 | B154: Tumor | C154: CDC42EP5 | D154: 39.586033
A155: RC32 | B155: Tumor | C155: CDC42EP5 | D155: 35.355629
A156: RC33 | B156: Tumor | C156: CDC42EP5 | D156: 70.805687
A157: RC34 | B157: Tumor | C157: CDC42EP5 | D157: 24.416208
A158: RC35 | B158: Tumor | C158: CDC42EP5 | D158: 1.663598
A159: RC36 | B159: Tumor | C159: CDC42EP5 | D159: 5.80933
A160: RC37 | B160: Tumor | C160: CDC42EP5 | D160: 4.413193
A161: RC39 | B161: Tumor | C161: CDC42EP5 | D161: 11.515317
A162: RC4 | B162: Tumor | C162: CDC42EP5 | D162: 28.128292
A163: RC41 | B163: Tumor | C163: CDC42EP5 | D163: 29.910513
A164: RC42 | B164: Tumor | C164: CDC42EP5 | D164: 6.710168
A165: RC43 | B165: Tumor | C165: CDC42EP5 | D165: 5.972965
A166: RC44 | B166: Tumor | C166: CDC42EP5 | D166: 11.293273
A167: RC45 | B167: Tumor | C167: CDC42EP5 | D167: 16.850153
A168: RC46 | B168: Tumor | C168: CDC42EP5 | D168: 30.140747
A169: RC47 | B169: Tumor | C169: CDC42EP5 | D169: 12.759211
A170: RC49 | B170: Tumor | C170: CDC42EP5 | D170: 67.396301
A171: RC5 | B171: Tumor | C171: CDC42EP5 | D171: 11.977051
A172: RC50 | B172: Tumor | C172: CDC42EP5 | D172: 21.619972
A173: RC51 | B173: Tumor | C173: CDC42EP5 | D173: 26.915003
A174: RC52 | B174: Tumor | C174: CDC42EP5 | D174: 20.367489
A175: RC53 | B175: Tumor | C175: CDC42EP5 | D175: 19.533102
A176: RC54 | B176: Tumor | C176: CDC42EP5 | D176: 23.44072
A177: RC55 | B177: Tumor | C177: CDC42EP5 | D177: 35.525093
A178: RC56 | B178: Tumor | C178: CDC42EP5 | D178: 27.291664
A179: RC57 | B179: Tumor | C179: CDC42EP5 | D179: 34.361153
A180: RC58 | B180: Tumor | C180: CDC42EP5 | D180: 35.668758
A181: RC59 | B181: Tumor | C181: CDC42EP5 | D181: 9.307159
A182: RC6 | B182: Tumor | C182: CDC42EP5 | D182: 22.265961
A183: RC60 | B183: Tumor | C183: CDC42EP5 | D183: 4.88553
A184: RC61 | B184: Tumor | C184: CDC42EP5 | D184: 15.783068
A185: RC62 | B185: Tumor | C185: CDC42EP5 | D185: 19.367556
A186: RC63 | B186: Tumor | C186: CDC42EP5 | D186: 55.43478
A187: RC64 | B187: Tumor | C187: CDC42EP5 | D187: 19.617912
A188: RC65 | B188: Tumor | C188: CDC42EP5 | D188: 88.931618
A189: RC67 | B189: Tumor | C189: CDC42EP5 | D189: 26.083223
A190: RC68 | B190: Tumor | C190: CDC42EP5 | D190: 32.135094
A191: RC7 | B191: Tumor | C191: CDC42EP5 | D191: 6.84062
A192: RC70 | B192: Tumor | C192: CDC42EP5 | D192: 38.531139
A193: RC72 | B193: Tumor | C193: CDC42EP5 | D193: 2.739924
A194: RC73 | B194: Tumor | C194: CDC42EP5 | D194: 13.663964
A195: RC74 | B195: Tumor | C195: CDC42EP5 | D195: 19.908611
A196: RC75 | B196: Tumor | C196: CDC42EP5 | D196: 70.014961
A197: RC76 | B197: Tumor | C197: CDC42EP5 | D197: 69.577492
A198: RC77 | B198: Tumor | C198: CDC42EP5 | D198: 9.394422
A199: RC78 | B199: Tumor | C199: CDC42EP5 | D199: 32.010921
A200: RC79 | B200: Tumor | C200: CDC42EP5 | D200: 17.015587
A201: RC8 | B201: Tumor | C201: CDC42EP5 | D201: 31.672438
A202: RC80 | B202: Tumor | C202: CDC42EP5 | D202: 11.162051
A203: RC81 | B203: Tumor | C203: CDC42EP5 | D203: 9.403548
A204: RC82 | B204: Tumor | C204: CDC42EP5 | D204: 24.958235
A205: RC83 | B205: Tumor | C205: CDC42EP5 | D205: 16.48105
A206: RC84 | B206: Tumor | C206: CDC42EP5 | D206: 6.178555
A207: RC85 | B207: Tumor | C207: CDC42EP5 | D207: 31.12751
A208: RC86 | B208: Tumor | C208: CDC42EP5 | D208: 83.680084
A209: RC87 | B209: Tumor | C209: CDC42EP5 | D209: 6.034185
A210: RC88 | B210: Tumor | C210: CDC42EP5 | D210: 43.444889
A211: RC89 | B211: Tumor | C211: CDC42EP5 | D211: 5.759181
A212: RC9 | B212: Tumor | C212: CDC42EP5 | D212: 32.907486
A213: RC90 | B213: Tumor | C213: CDC42EP5 | D213: 30.541044
A214: RC91 | B214: Tumor | C214: CDC42EP5 | D214: 50.518192
A215: RC92 | B215: Tumor | C215: CDC42EP5 | D215: 91.629654
A216: RC93 | B216: Tumor | C216: CDC42EP5 | D216: 24.052456
A217: RC94 | B217: Tumor | C217: CDC42EP5 | D217: 31.358145
A218: RC97 | B218: Tumor | C218: CDC42EP5 | D218: 5.100755
A219: RC98 | B219: Tumor | C219: CDC42EP5 | D219: 49.701202
A220: RC99 | B220: Tumor | C220: CDC42EP5 | D220: 37.950863
A221: HC2016151C | B221: Tumor | C221: CDC42EP5 | D221: 44.548332
A222: RC103 | B222: Normal | C222: CDC42EP5 | D222: 70.029366
A223: RC19 | B223: Normal | C223: CDC42EP5 | D223: 103.224075
A224: RC48 | B224: Normal | C224: CDC42EP5 | D224: 86.932205
A225: RC69 | B225: Normal | C225: CDC42EP5 | D225: 64.868805
A226: RC71 | B226: Normal | C226: CDC42EP5 | D226: 57.867802
A227: RN1 | B227: Normal | C227: CDC42EP5 | D227: 14.840023
A228: RN11 | B228: Normal | C228: CDC42EP5 | D228: 39.537674
A229: RN12 | B229: Normal | C229: CDC42EP5 | D229: 19.707069
A230: RN14 | B230: Normal | C230: CDC42EP5 | D230: 33.197281
A231: RN15 | B231: Normal | C231: CDC42EP5 | D231: 59.65374
A232: RN16 | B232: Normal | C232: CDC42EP5 | D232: 75.536659
A233: RN17 | B233: Normal | C233: CDC42EP5 | D233: 33.320667
A234: RN18 | B234: Normal | C234: CDC42EP5 | D234: 26.062984
A235: RN2 | B235: Normal | C235: CDC42EP5 | D235: 72.032234
A236: RN20 | B236: Normal | C236: CDC42EP5 | D236: 47.26347
A237: RN21 | B237: Normal | C237: CDC42EP5 | D237: 33.631939
A238: RN22 | B238: Normal | C238: CDC42EP5 | D238: 8.499713
A239: RN24 | B239: Normal | C239: CDC42EP5 | D239: 25.698259
A240: RN26 | B240: Normal | C240: CDC42EP5 | D240: 71.549942
A241: RN28 | B241: Normal | C241: CDC42EP5 | D241: 17.030689
A242: RN3 | B242: Normal | C242: CDC42EP5 | D242: 73.440514
A243: RN31 | B243: Normal | C243: CDC42EP5 | D243: 28.910746
A244: RN32 | B244: Normal | C244: CDC42EP5 | D244: 30.918415
A245: RN33 | B245: Normal | C245: CDC42EP5 | D245: 25.474844
A246: RN34 | B246: Normal | C246: CDC42EP5 | D246: 74.930031
A247: RN36 | B247: Normal | C247: CDC42EP5 | D247: 21.279049
A248: RN4 | B248: Normal | C248: CDC42EP5 | D248: 55.29187
A249: RN5 | B249: Normal | C249: CDC42EP5 | D249: 34.559391
A250: RN6 | B250: Normal | C250: CDC42EP5 | D250: 13.997562
A251: RN7 | B251: Normal | C251: CDC42EP5 | D251: 39.453075
A252: RN8 | B252: Normal | C252: CDC42EP5 | D252: 15.138344
A253: RN89 | B253: Normal | C253: CDC42EP5 | D253: 40.418205
A254: RN9 | B254: Normal | C254: CDC42EP5 | D254: 52.20929
A255: RN90 | B255: Normal | C255: CDC42EP5 | D255: 38.69706
... 287 more rows

Sheet Figure 7
A1: Figure 7a | G1: Figure 7b | K1: Figure 7c | P1: Figure 7d | T1: Figure 7e | X1: Figure 7f | AB1: Figure 7g | AG1: Figure 7h
A2: PLID | B2: bin | C2: count | D2: intType | E2: windows | G2: intType | H2: svType | I2: percentage | K2: intType | L2: svType | M2: svLength_bin | N2: percentage | P2: intType | Q2: svType | R2: IntDisSign | T2: intType | U2: svType | V2: repTime | X2: intType | Y2: svType | Z2: TADDis | AB2: intType | AC2: svType | AD2: pLI_bin | AE2: percentage | AG2: intType | AH2: svType | AI2: zscore_bin | AJ2: percentage
A3: ZLR-06 | B3: chr4_182137890_182274142 | C3: 0 | D3: intRegion | E3: 1 kb | G3: background | H3: BND | I3: 0.03610070911 | K3: background | L3: DEL | M3: (50,1e+03] | N3: 0.7245627002 | P3: background | Q3: BND | R3: 48126500 | T3: background | U3: BND | V3: 53.8993 | X3: background | Y3: BND | Z3: 3568140 | AB3: background | AC3: DUP | AD3: (0,0.1] | AE3: 0.6211566618 | AG3: background | AH3: DUP | AI3: < -1.96 | AJ3: 0.03418207185
A4: ZLR-06 | B4: chr11_64973748_64976398 | C4: 0 | D4: intRegion | E4: 1 kb | G4: background | H4: DEL | I4: 0.1611505059 | K4: intRegion | L4: DEL | M4: (50,1e+03] | N4: 0.8235294118 | P4: background | Q4: BND | R4: 47597500 | T4: background | U4: BND | V4: 45.2987 | X4: background | Y4: BND | Z4: 3039140 | AB4: background | AC4: DUP | AD4: (0.1,0.9] | AE4: 0.2027818448 | AG4: background | AH4: DUP | AI4: (-1.96,1.96] | AJ4: 0.9110568539
A5: ZLR-06 | B5: chr10_104079707_104085259 | C5: 0 | D5: intRegion | E5: 1 kb | G5: background | H5: DUP | I5: 0.05609114812 | K5: intSample | L5: DEL | M5: (50,1e+03] | N5: 0.6923076923 | P5: background | Q5: INS | R5: 47453500 | T5: background | U5: INS | V5: 62.8963 | X5: background | Y5: INS | Z5: 2895140 | AB5: background | AC5: DUP | AD5: (0.9,1] | AE5: 0.1760614934 | AG5: background | AH5: DUP | AI5: > 1.96 | AJ5: 0.05476107429
A6: ZLR-06 | B6: chr20_14753684_14841951 | C6: 0 | D6: intRegion | E6: 1 kb | G6: background | H6: INS | I6: 0.05901521791 | K6: background | L6: DUP | M6: (50,1e+03] | N6: 0.4188251946 | P6: background | Q6: DEL | R6: 47441500 | T6: background | U6: DEL | V6: 62.8084 | X6: background | Y6: DEL | Z6: 2883140 | AB6: intRegion | AC6: DUP | AD6: (0,0.1] | AE6: 0.6666666667 | AG6: intRegion | AH6: DUP | AI6: (-1.96,1.96] | AJ6: 1
A7: ZLR-06 | B7: chr3_137185017_137189183 | C7: 1 | D7: intSample | E7: 1 kb | G7: background | H7: INV | I7: 0.06601864393 | K7: intRegion | L7: DUP | M7: (50,1e+03] | N7: 0.2142857143 | P7: background | Q7: BND | R7: 47381500 | T7: background | U7: BND | V7: 64.66 | X7: background | Y7: BND | Z7: 2823140 | AB7: intRegion | AC7: DUP | AD7: (0.1,0.9] | AE7: 0.3333333333 | AG7: intSample | AH7: DUP | AI7: (-1.96,1.96] | AJ7: 0.6666666667
A8: ZLR-06 | B8: chr9_75412449_75533466 | C8: 2 | D8: intSample | E8: 1 kb | G8: background | H8: INVDUP | I8: 0.621623775 | K8: intSample | L8: DUP | M8: (50,1e+03] | N8: 0.08695652174 | P8: background | Q8: BND | R8: 47376500 | T8: background | U8: BND | V8: 65.0205 | X8: background | Y8: BND | Z8: 2818140 | AB8: intSample | AC8: DUP | AD8: (0.1,0.9] | AE8: 0.4 | AG8: intSample | AH8: DUP | AI8: > 1.96 | AJ8: 0.3333333333
A9: ZLR-06 | B9: chr8_128322084_128420658 | C9: 0 | D9: intRegion | E9: 1 kb | G9: intRegion | H9: BND | I9: 0.01230425056 | K9: background | L9: INS | M9: (50,1e+03] | N9: 0.822255113 | P9: background | Q9: BND | R9: 47371500 | T9: background | U9: BND | V9: 65.4108 | X9: background | Y9: BND | Z9: 2813140 | AB9: intSample | AC9: DUP | AD9: (0.9,1] | AE9: 0.6 | AG9: background | AH9: INV | AI9: < -1.96 | AJ9: 0.03033637221
A10: ZLR-06 | B10: chr15_85987611_85989611 | C10: 1 | D10: intRegion | E10: 1 kb | G10: intRegion | H10: DEL | I10: 0.1532438479 | K10: intRegion | L10: INS | M10: (50,1e+03] | N10: 0.8846153846 | P10: background | Q10: DEL | R10: 47359500 | T10: background | U10: DEL | V10: 66.4653 | X10: background | Y10: DEL | Z10: 2801140 | AB10: background | AC10: INS | AD10: (0,0.1] | AE10: 0.6608058608 | AG10: background | AH10: INV | AI10: (-1.96,1.96] | AJ10: 0.9341402075
A11: ZLR-06 | B11: chr8_128418658_128420658 | C11: 0 | D11: intRegion | E11: 1 kb | G11: intRegion | H11: DUP | I11: 0.04362416107 | K11: intSample | L11: INS | M11: (50,1e+03] | N11: 1 | P11: background | Q11: DEL | R11: 47156500 | T11: background | U11: DEL | V11: 77.6271 | X11: background | Y11: DEL | Z11: 2598140 | AB11: background | AC11: INS | AD11: (0.1,0.9] | AE11: 0.136996337 | AG11: background | AH11: INV | AI11: > 1.96 | AJ11: 0.03552342031
A12: ZLR-06 | B12: chr15_85987611_85989611 | C12: 1 | D12: intRegion | E12: 1 kb | G12: intRegion | H12: INS | I12: 0.05704697987 | K12: background | L12: INV | M12: (50,1e+03] | N12: 0.09156108056 | P12: background | Q12: INS | R12: 47036500 | T12: background | U12: INS | V12: 74.4226 | X12: background | Y12: INS | Z12: 2478140 | AB12: background | AC12: INS | AD12: (0.9,1] | AE12: 0.2021978022 | AG12: intRegion | AH12: INV | AI12: < -1.96 | AJ12: 0.0289017341
A13: ZLR-06 | B13: chr8_128322315_128324315 | C13: 0 | D13: intRegion | E13: 1 kb | G13: intRegion | H13: INV | I13: 0.1823266219 | K13: intRegion | L13: INV | M13: (50,1e+03] | N13: 0.01204819277 | P13: background | Q13: DEL | R13: 47006500 | T13: background | U13: DEL | V13: 75.159 | X13: background | Y13: DEL | Z13: 2448140 | AB13: intRegion | AC13: INS | AD13: (0,0.1] | AE13: 0.3333333333 | AG13: intRegion | AH13: INV | AI13: (-1.96,1.96] | AJ13: 0.8843930636
A14: ZLR-06 | B14: chr8_128322084_128324084 | C14: 0 | D14: intRegion | E14: 1 kb | G14: intRegion | H14: INVDUP | I14: 0.5514541387 | K14: background | L14: INVDUP | M14: (50,1e+03] | N14: 0.5084747929 | P14: background | Q14: DEL | R14: 47005500 | T14: background | U14: DEL | V14: 75.1916 | X14: background | Y14: DEL | Z14: 2447140 | AB14: intRegion | AC14: INS | AD14: (0.1,0.9] | AE14: 0.2222222222 | AG14: intRegion | AH14: INV | AI14: > 1.96 | AJ14: 0.08670520231
A15: ZLR-06 | B15: chr8_128418658_128420658 | C15: 0 | D15: intRegion | E15: 1 kb | G15: intSample | H15: BND | I15: 0.0701754386 | K15: intRegion | L15: INVDUP | M15: (50,1e+03] | N15: 0.4697508897 | P15: background | Q15: INS | R15: 46942500 | T15: background | U15: INS | V15: 77.5627 | X15: background | Y15: INS | Z15: 2384140 | AB15: intRegion | AC15: INS | AD15: (0.9,1] | AE15: 0.4444444444 | AG15: intSample | AH15: INV | AI15: (-1.96,1.96] | AJ15: 1
A16: ZLR-06 | B16: chr15_86030825_86032825 | C16: 1 | D16: intRegion | E16: 1 kb | G16: intSample | H16: DEL | I16: 0.1140350877 | K16: intSample | L16: INVDUP | M16: (50,1e+03] | N16: 0.6666666667 | P16: background | Q16: DEL | R16: 46891500 | T16: background | U16: DEL | V16: 78.6543 | X16: background | Y16: DEL | Z16: 2333140 | AB16: intSample | AC16: INS | AD16: (0,0.1] | AE16: 0.3333333333 | AG16: background | AH16: INVDUP | AI16: < -1.96 | AJ16: 0.0466541285
A17: ZLR-06 | B17: chr8_128322084_128324084 | C17: 0 | D17: intRegion | E17: 1 kb | G17: intSample | H17: DUP | I17: 0.201754386 | K17: background | L17: DEL | M17: (1e+03,5e+03] | N17: 0.08908598177 | P17: background | Q17: DUP | R17: 46600500 | T17: background | U17: DUP | V17: 76.7092 | X17: background | Y17: DUP | Z17: 2042140 | AB17: intSample | AC17: INS | AD17: (0.9,1] | AE17: 0.6666666667 | AG17: background | AH17: INVDUP | AI17: (-1.96,1.96] | AJ17: 0.9382393982
A18: ZLR-06 | B18: chr17_36094602_36096944 | C18: 3 | D18: intRegion | E18: 1 kb | G18: intSample | H18: INS | I18: 0.04385964912 | K18: intRegion | L18: DEL | M18: (1e+03,5e+03] | N18: 0.04411764706 | P18: background | Q18: DUP | R18: 46583500 | T18: background | U18: DUP | V18: 77.0989 | X18: background | Y18: DUP | Z18: 2025140 | AB18: background | AC18: INV | AD18: (0,0.1] | AE18: 0.2854039965 | AG18: background | AH18: INVDUP | AI18: > 1.96 | AJ18: 0.01510647334
A19: ZLR-06 | B19: chr11_100589122_100591122 | C19: 2 | D19: intRegion | E19: 1 kb | G19: intSample | H19: INV | I19: 0.09649122807 | K19: intSample | L19: DEL | M19: (1e+03,5e+03] | N19: 0.07692307692 | P19: background | Q19: DEL | R19: 46536500 | T19: background | U19: DEL | V19: 77.7584 | X19: background | Y19: DEL | Z19: 1978140 | AB19: background | AC19: INV | AD19: (0.1,0.9] | AE19: 0.4022589053 | AG19: intRegion | AH19: INVDUP | AI19: < -1.96 | AJ19: 0.009345794393
A20: ZLR-06 | B20: chr17_36093082_36096602 | C20: 3 | D20: intRegion | E20: 1 kb | G20: intSample | H20: INVDUP | I20: 0.4736842105 | K20: background | L20: DUP | M20: (1e+03,5e+03] | N20: 0.1503184713 | P20: background | Q20: INVDUP | R20: 46451500 | T20: background | U20: INVDUP | V20: 77.8873 | X20: background | Y20: INVDUP | Z20: 1893140 | AB20: background | AC20: INV | AD20: (0.9,1] | AE20: 0.3123370982 | AG20: intRegion | AH20: INVDUP | AI20: (-1.96,1.96] | AJ20: 0.9906542056
A21: ZLR-06 | B21: chr13_73981892_73983911 | C21: 1 | D21: intRegion | E21: 1 kb | K21: background | L21: INS | M21: (1e+03,5e+03] | N21: 0.147335845 | P21: background | Q21: DUP | R21: 46114500 | T21: background | U21: DUP | V21: 74.8255 | X21: background | Y21: DUP | Z21: 1556140 | AB21: intRegion | AC21: INV | AD21: (0,0.1] | AE21: 0.8666666667 | AG21: intSample | AH21: INVDUP | AI21: (-1.96,1.96] | AJ21: 1
A22: ZLR-06 | B22: chr13_73981911_73990111 | C22: 1 | D22: intRegion | E22: 1 kb | K22: intRegion | L22: INS | M22: (1e+03,5e+03] | N22: 0.1153846154 | P22: background | Q22: DEL | R22: 46114500 | T22: background | U22: DEL | V22: 74.8255 | X22: background | Y22: DEL | Z22: 1556140 | AB22: intRegion | AC22: INV | AD22: (0.9,1] | AE22: 0.1333333333
A23: ZLR-06 | B23: chr13_73979114_73983892 | C23: 1 | D23: intRegion | E23: 1 kb | K23: background | L23: INV | M23: (1e+03,5e+03] | N23: 0.08080325126 | P23: background | Q23: DUP | R23: 45800500 | T23: background | U23: DUP | V23: 70.4757 | X23: background | Y23: DUP | Z23: 1242140 | AB23: intSample | AC23: INV | AD23: (0,0.1] | AE23: 1
A24: ZLR-06 | B24: chr13_73921258_73956322 | C24: 2 | D24: intRegion | E24: 1 kb | K24: intRegion | L24: INV | M24: (1e+03,5e+03] | N24: 0.03614457831 | P24: background | Q24: DUP | R24: 45581500 | T24: background | U24: DUP | V24: 55.1703 | X24: background | Y24: DUP | Z24: 1023140 | AB24: background | AC24: INVDUP | AD24: (0,0.1] | AE24: 0.5912279406
A25: ZLR-06 | B25: chr14_91450918_91452921 | C25: 3 | D25: intRegion | E25: 1 kb | K25: background | L25: INVDUP | M25: (1e+03,5e+03] | N25: 0.4604509664 | P25: background | Q25: DUP | R25: 45581500 | T25: background | U25: DUP | V25: 55.1703 | X25: background | Y25: DUP | Z25: 1023140 | AB25: background | AC25: INVDUP | AD25: (0.1,0.9] | AE25: 0.1681311379
A26: ZLR-06 | B26: chr17_57756805_57880164 | C26: 9 | D26: intRegion | E26: 1 kb | K26: intRegion | L26: INVDUP | M26: (1e+03,5e+03] | N26: 0.5088967972 | P26: background | Q26: DEL | R26: 45553500 | T26: background | U26: DEL | V26: 49.1806 | X26: background | Y26: DEL | Z26: 995141 | AB26: background | AC26: INVDUP | AD26: (0.9,1] | AE26: 0.2406409215
A27: ZLR-06 | B27: chr19_54969568_54984028 | C27: 2 | D27: intRegion | E27: 1 kb | K27: intSample | L27: INVDUP | M27: (1e+03,5e+03] | N27: 0.3148148148 | P27: background | Q27: DEL | R27: 45550500 | T27: background | U27: DEL | V27: 48.581 | X27: background | Y27: DEL | Z27: 992141 | AB27: intRegion | AC27: INVDUP | AD27: (0,0.1] | AE27: 0.3953488372
A28: ZLR-06 | B28: chr19_54973840_54984028 | C28: 2 | D28: intRegion | E28: 1 kb | K28: background | L28: DEL | M28: (5e+03,1e+04] | N28: 0.0342448879 | P28: background | Q28: DUP | R28: 45536500 | T28: background | U28: DUP | V28: 45.9465 | X28: background | Y28: DUP | Z28: 978141 | AB28: intRegion | AC28: INVDUP | AD28: (0.1,0.9] | AE28: 0.3372093023
A29: ZLR-06 | B29: chr19_54977308_54984028 | C29: 2 | D29: intRegion | E29: 1 kb | K29: intRegion | L29: DEL | M29: (5e+03,1e+04] | N29: 0.01470588235 | P29: background | Q29: DEL | R29: 45480500 | T29: background | U29: DEL | V29: 38.9011 | X29: background | Y29: DEL | Z29: 922141 | AB29: intRegion | AC29: INVDUP | AD29: (0.9,1] | AE29: 0.2674418605
A30: ZLR-06 | B30: chr19_54969599_54984028 | C30: 2 | D30: intRegion | E30: 1 kb | K30: background | L30: DUP | M30: (5e+03,1e+04] | N30: 0.05690021231 | P30: background | Q30: DEL | R30: 45104500 | T30: background | U30: DEL | V30: 41.1082 | X30: background | Y30: DEL | Z30: 546141 | AB30: intSample | AC30: INVDUP | AD30: (0,0.1] | AE30: 0.5
A31: ZLR-06 | B31: chr19_54977038_54984028 | C31: 2 | D31: intRegion | E31: 1 kb | K31: intSample | L31: DUP | M31: (5e+03,1e+04] | N31: 0.1304347826 | P31: background | Q31: DEL | R31: 45100500 | T31: background | U31: DEL | V31: 41.2898 | X31: background | Y31: DEL | Z31: 542141 | AB31: intSample | AC31: INVDUP | AD31: (0.9,1] | AE31: 0.5
A32: ZLR-06 | B32: chr4_182137890_182139890 | C32: 0 | D32: intRegion | E32: 1 kb | K32: background | L32: INS | M32: (5e+03,1e+04] | N32: 0.02812163617 | P32: background | Q32: DUP | R32: 45086500 | T32: background | U32: DUP | V32: 41.9728 | X32: background | Y32: DUP | Z32: 528141
A33: ZLR-06 | B33: chr4_182272142_182274142 | C33: 0 | D33: intRegion | E33: 1 kb | K33: background | L33: INV | M33: (5e+03,1e+04] | N33: 0.02844848195 | P33: background | Q33: INS | R33: 45083500 | T33: background | U33: INS | V33: 42.1292 | X33: background | Y33: INS | Z33: 525141
A34: ZLR-06 | B34: chr11_64973748_64975748 | C34: 0 | D34: intRegion | E34: 1 kb | K34: background | L34: INVDUP | M34: (5e+03,1e+04] | N34: 0.02956590653 | P34: background | Q34: DEL | R34: 45070500 | T34: background | U34: DEL | V34: 42.8505 | X34: background | Y34: DEL | Z34: 512141
A35: ZLR-06 | B35: chr11_64974398_64976398 | C35: 0 | D35: intRegion | E35: 1 kb | K35: intRegion | L35: INVDUP | M35: (5e+03,1e+04] | N35: 0.01779359431 | P35: background | Q35: DEL | R35: 44925500 | T35: background | U35: DEL | V35: 55.9182 | X35: background | Y35: DEL | Z35: 367141
A36: ZLR-06 | B36: chr10_104079663_104081663 | C36: 0 | D36: intRegion | E36: 1 kb | K36: intSample | L36: INVDUP | M36: (5e+03,1e+04] | N36: 0.01851851852 | P36: background | Q36: INVDUP | R36: 44779500 | T36: background | U36: INVDUP | V36: 73.155 | X36: background | Y36: INVDUP | Z36: 221141
A37: ZLR-06 | B37: chr10_104079707_104081707 | C37: 0 | D37: intRegion | E37: 1 kb | K37: background | L37: DEL | M37: (1e+04,1e+05] | N37: 0.05794530673 | P37: background | Q37: DEL | R37: 44758500 | T37: background | U37: DEL | V37: 74.9323 | X37: background | Y37: DEL | Z37: 200141
A38: ZLR-06 | B38: chr10_104083259_104085259 | C38: 0 | D38: intRegion | E38: 1 kb | K38: intRegion | L38: DEL | M38: (1e+04,1e+05] | N38: 0.02941176471 | P38: background | Q38: INS | R38: 42102500 | T38: background | U38: INS | V38: 68.3067 | X38: background | Y38: INS | Z38: 11414
A39: ZLR-06 | B39: chr20_14753684_14755684 | C39: 0 | D39: intRegion | E39: 1 kb | K39: intSample | L39: DEL | M39: (1e+04,1e+05] | N39: 0.2307692308 | P39: background | Q39: INS | R39: 41549500 | T39: background | U39: INS | V39: 78.4797 | X39: background | Y39: INS | Z39: 340588
A40: ZLR-06 | B40: chr20_14839951_14841951 | C40: 0 | D40: intRegion | E40: 1 kb | K40: background | L40: DUP | M40: (1e+04,1e+05] | N40: 0.1429582449 | P40: background | Q40: INVDUP | R40: 40968500 | T40: background | U40: INVDUP | V40: 59.7092 | X40: background | Y40: INVDUP | Z40: 797414
A41: ZLR-06 | B41: chr20_14841487_14843487 | C41: 0 | D41: intRegion | E41: 1 kb | K41: intRegion | L41: DUP | M41: (1e+04,1e+05] | N41: 0.3571428571 | P41: background | Q41: INS | R41: 40607500 | T41: background | U41: INS | V41: 62.2907 | X41: background | Y41: INS | Z41: 436414
A42: ZLR-06 | B42: chr1_48167486_48169486 | C42: 2 | D42: intSample | E42: 1 kb | K42: intSample | L42: DUP | M42: (1e+04,1e+05] | N42: 0.347826087 | P42: background | Q42: INVDUP | R42: 39922500 | T42: background | U42: INVDUP | V42: 75.2546 | X42: background | Y42: INVDUP | Z42: 207588
A43: ZLR-06 | B43: chr12_103588678_103590678 | C43: 0 | D43: intSample | E43: 1 kb | K43: background | L43: INS | M43: (1e+04,1e+05] | N43: 0.002287405813 | P43: background | Q43: DEL | R43: 38339500 | T43: background | U43: DEL | V43: 73.1218 | X43: background | Y43: DEL | Z43: 1790590
A44: ZLR-06 | B44: chr12_103588765_103590765 | C44: 0 | D44: intSample | E44: 1 kb | K44: background | L44: INV | M44: (1e+04,1e+05] | N44: 0.1972268707 | P44: background | Q44: INVDUP | R44: 36697500 | T44: background | U44: INVDUP | V44: 56.9215 | X44: background | Y44: INVDUP | Z44: 3432590
A45: ZLR-06 | B45: chr3_137185017_137187017 | C45: 1 | D45: intSample | E45: 1 kb | K45: intRegion | L45: INV | M45: (1e+04,1e+05] | N45: 0.2530120482 | P45: background | Q45: INVDUP | R45: 36589500 | T45: background | U45: INVDUP | V45: 57.9873 | X45: background | Y45: INVDUP | Z45: 3540590
A46: ZLR-06 | B46: chr3_137187183_137189183 | C46: 1 | D46: intSample | E46: 1 kb | K46: intSample | L46: INV | M46: (1e+04,1e+05] | N46: 0.2727272727 | P46: background | Q46: INV | R46: 35019500 | T46: background | U46: INV | V46: 13.3915 | X46: background | Y46: INV | Z46: 3218410
A47: ZLR-06 | B47: chr4_81209954_81211954 | C47: 4 | D47: intSample | E47: 1 kb | K47: background | L47: INVDUP | M47: (1e+04,1e+05] | N47: 0.001508334185 | P47: background | Q47: INV | R47: 35017500 | T47: background | U47: INV | V47: 13.3651 | X47: background | Y47: INV | Z47: 3216410
A48: ZLR-06 | B48: chr4_81211477_81213477 | C48: 4 | D48: intSample | E48: 1 kb | K48: intRegion | L48: INVDUP | M48: (1e+04,1e+05] | N48: 0.003558718861 | P48: background | Q48: INV | R48: 35014500 | T48: background | U48: INV | V48: 13.3261 | X48: background | Y48: INV | Z48: 3213410
A49: ZLR-06 | B49: chr8_49844725_49846725 | C49: 0 | D49: intSample | E49: 1 kb | K49: background | L49: DEL | M49: > 1e+05 | N49: 0.09416112343 | P49: background | Q49: DUP | R49: 34613500 | T49: background | U49: DUP | V49: 29.0574 | X49: background | Y49: DUP | Z49: 2812410
A50: ZLR-06 | B50: chr8_49844734_49846734 | C50: 0 | D50: intSample | E50: 1 kb | K50: intRegion | L50: DEL | M50: > 1e+05 | N50: 0.08823529412 | P50: background | Q50: INVDUP | R50: 33885500 | T50: background | U50: INVDUP | V50: 14.4069 | X50: background | Y50: INVDUP | Z50: 2084410
A51: ZLR-06 | B51: chr9_75391601_75393601 | C51: 0 | D51: intSample | E51: 1 kb | K51: background | L51: DUP | M51: > 1e+05 | N51: 0.2309978769 | P51: background | Q51: DEL | R51: 31809500 | T51: background | U51: DEL | V51: 77.1071 | X51: background | Y51: DEL | Z51: 8414
A52: ZLR-06 | B52: chr9_75412449_75414449 | C52: 0 | D52: intSample | E52: 1 kb | K52: intRegion | L52: DUP | M52: > 1e+05 | N52: 0.4285714286 | P52: background | Q52: INV | R52: 31337500 | T52: background | U52: INV | V52: 72.9666 | X52: background | Y52: INV | Z52: 422588
A53: ZLR-06 | B53: chr9_75432908_75434908 | C53: 0 | D53: intSample | E53: 1 kb | K53: intSample | L53: DUP | M53: > 1e+05 | N53: 0.4347826087 | P53: background | Q53: INV | R53: 31298500 | T53: background | U53: INV | V53: 70.5534 | X53: background | Y53: INV | Z53: 461588
A54: ZLR-06 | B54: chr9_75531466_75533466 | C54: 0 | D54: intSample | E54: 1 kb | K54: background | L54: INV | M54: > 1e+05 | N54: 0.6019603156 | P54: background | Q54: DUP | R54: 31261500 | T54: background | U54: DUP | V54: 68.732 | X54: background | Y54: DUP | Z54: 498588
A55: ZLR-06 | B55: chr2_146385905_146387905 | C55: 0 | D55: intRegion | E55: 1 kb | K55: intRegion | L55: INV | M55: > 1e+05 | N55: 0.6987951807 | P55: background | Q55: INVDUP | R55: 31241500 | T55: background | U55: INVDUP | V55: 67.988 | X55: background | Y55: INVDUP | Z55: 518588
A56: ZLR-06 | B56: chr2_146497465_146499465 | C56: 0 | D56: intRegion | E56: 1 kb | K56: intSample | L56: INV | M56: > 1e+05 | N56: 0.7272727273 | P56: background | Q56: INV | R56: 31232500 | T56: background | U56: INV | V56: 67.7014 | X56: background | Y56: INV | Z56: 527588
A57: ZLR-06 | B57: chr4_142648381_142650381 | C57: 2 | D57: intRegion | E57: 1 kb | P57: background | Q57: INVDUP | R57: 31225500 | T57: background | U57: INVDUP | V57: 67.4964 | X57: background | Y57: INVDUP | Z57: 534588
A58: ZLR-06 | B58: chr4_142863411_142865411 | C58: 2 | D58: intRegion | E58: 1 kb | P58: background | Q58: DEL | R58: 31222500 | T58: background | U58: DEL | V58: 67.4127 | X58: background | Y58: DEL | Z58: 537588
A59: ZLR-06 | B59: chr10_79693897_79695897 | C59: 7 | D59: intRegion | E59: 1 kb | P59: background | Q59: DUP | R59: 31221500 | T59: background | U59: DUP | V59: 67.3853 | X59: background | Y59: DUP | Z59: 538588
A60: ZLR-06 | B60: chr15_86013813_86015813 | C60: 1 | D60: intRegion | E60: 1 kb | P60: background | Q60: INV | R60: 31180500 | T60: background | U60: INV | V60: 66.39 | X60: background | Y60: INV | Z60: 579588
A61: ZLR-06 | B61: chr15_86030825_86032825 | C61: 1 | D61: intRegion | E61: 1 kb | P61: background | Q61: DEL | R61: 31180500 | T61: background | U61: DEL | V61: 66.39 | X61: background | Y61: DEL | Z61: 579588
A62: ZLR-06 | B62: chr8_128322084_128324084 | C62: 0 | D62: intRegion | E62: 1 kb | P62: background | Q62: INV | R62: 31177500 | T62: background | U62: INV | V62: 66.3205 | X62: background | Y62: INV | Z62: 582588
A63: ZLR-06 | B63: chr8_128322153_128324153 | C63: 0 | D63: intRegion | E63: 1 kb | P63: background | Q63: DUP | R63: 31170500 | T63: background | U63: DUP | V63: 66.1573 | X63: background | Y63: DUP | Z63: 589588
A64: ZLR-06 | B64: chr8_128322315_128324315 | C64: 0 | D64: intRegion | E64: 1 kb | P64: background | Q64: INV | R64: 31169500 | T64: background | U64: INV | V64: 66.1338 | X64: background | Y64: INV | Z64: 590588
A65: ZLR-06 | B65: chr8_128322818_128324818 | C65: 0 | D65: intRegion | E65: 1 kb | P65: background | Q65: DEL | R65: 31168500 | T65: background | U65: DEL | V65: 66.1104 | X65: background | Y65: DEL | Z65: 591588
A66: ZLR-06 | B66: chr8_128418610_128420610 | C66: 0 | D66: intRegion | E66: 1 kb | P66: background | Q66: BND | R66: 31158500 | T66: background | U66: BND | V66: 65.8736 | X66: background | Y66: BND | Z66: 601588
A67: ZLR-06 | B67: chr8_128418658_128420658 | C67: 0 | D67: intRegion | E67: 1 kb | P67: background | Q67: INV | R67: 31105500 | T67: background | U67: INV | V67: 64.724 | X67: background | Y67: INV | Z67: 654588
A68: ZLR-06 | B68: chr17_36093082_36095082 | C68: 3 | D68: intRegion | E68: 1 kb | P68: background | Q68: BND | R68: 30686500 | T68: background | U68: BND | V68: 76.1054 | X68: background | Y68: BND | Z68: 245414
A69: ZLR-06 | B69: chr17_36094602_36096602 | C69: 3 | D69: intRegion | E69: 1 kb | P69: background | Q69: BND | R69: 30675500 | T69: background | U69: BND | V69: 76.179 | X69: background | Y69: BND | Z69: 234414
A70: ZLR-06 | B70: chr17_36094944_36096944 | C70: 3 | D70: intRegion | E70: 1 kb | P70: background | Q70: INVDUP | R70: 30662500 | T70: background | U70: INVDUP | V70: 76.1913 | X70: background | Y70: INVDUP | Z70: 221414
A71: ZLR-06 | B71: chr13_73981772_73983772 | C71: 1 | D71: intRegion | E71: 1 kb | P71: background | Q71: INS | R71: 29792500 | T71: background | U71: INS | V71: 35.9719 | X71: background | Y71: INS | Z71: 607588
A72: ZLR-06 | B72: chr13_73981893_73983893 | C72: 1 | D72: intRegion | E72: 1 kb | P72: background | Q72: INVDUP | R72: 29615500 | T72: background | U72: INVDUP | V72: 30.74 | X72: background | Y72: INVDUP | Z72: 784588
A73: ZLR-06 | B73: chr13_73981955_73983955 | C73: 1 | D73: intRegion | E73: 1 kb | P73: background | Q73: DEL | R73: 29568500 | T73: background | U73: DEL | V73: 30.1583 | X73: background | Y73: DEL | Z73: 831588
A74: ZLR-06 | B74: chr13_73921258_73923258 | C74: 1 | D74: intRegion | E74: 1 kb | P74: background | Q74: INS | R74: 29560500 | T74: background | U74: INS | V74: 30.0796 | X74: background | Y74: INS | Z74: 839588
A75: ZLR-06 | B75: chr13_73954322_73956322 | C75: 1 | D75: intRegion | E75: 1 kb | P75: background | Q75: INVDUP | R75: 29509500 | T75: background | U75: INVDUP | V75: 29.6142 | X75: background | Y75: INVDUP | Z75: 890588
A76: ZLR-06 | B76: chr14_91450918_91452918 | C76: 3 | D76: intRegion | E76: 1 kb | P76: background | Q76: INVDUP | R76: 29210500 | T76: background | U76: INVDUP | V76: 40.5323 | X76: background | Y76: INVDUP | Z76: 1189590
A77: ZLR-06 | B77: chr14_91450921_91452921 | C77: 3 | D77: intRegion | E77: 1 kb | P77: background | Q77: INVDUP | R77: 28638500 | T77: background | U77: INVDUP | V77: 66.1621 | X77: background | Y77: INVDUP | Z77: 1761590
A78: ZLR-06 | B78: chr17_57756805_57758805 | C78: 9 | D78: intRegion | E78: 1 kb | P78: background | Q78: INVDUP | R78: 28082500 | T78: background | U78: INVDUP | V78: 73.4304 | X78: background | Y78: INVDUP | Z78: 2317590
A79: ZLR-06 | B79: chr17_57878163_57880163 | C79: 9 | D79: intRegion | E79: 1 kb | P79: background | Q79: INVDUP | R79: 27412500 | T79: background | U79: INVDUP | V79: 59.969 | X79: background | Y79: INVDUP | Z79: 2987590
A80: ZLR-06 | B80: chr19_54969568_54971568 | C80: 2 | D80: intRegion | E80: 1 kb | P80: background | Q80: DUP | R80: 27128500 | T80: background | U80: DUP | V80: 73.8832 | X80: background | Y80: DUP | Z80: 3271590
A81: ZLR-06 | B81: chr19_54969599_54971599 | C81: 2 | D81: intRegion | E81: 1 kb | P81: background | Q81: DEL | R81: 26419500 | T81: background | U81: DEL | V81: 71.2378 | X81: background | Y81: DEL | Z81: 3418410
A82: ZLR-06 | B82: chr19_54973755_54975755 | C82: 2 | D82: intRegion | E82: 1 kb | P82: background | Q82: DEL | R82: 25866500 | T82: background | U82: DEL | V82: 80.4395 | X82: background | Y82: DEL | Z82: 2865410
A83: ZLR-06 | B83: chr19_54973756_54975756 | C83: 2 | D83: intRegion | E83: 1 kb | P83: background | Q83: DUP | R83: 25863500 | T83: background | U83: DUP | V83: 80.4453 | X83: background | Y83: DUP | Z83: 2862410
A84: ZLR-06 | B84: chr19_54973840_54975840 | C84: 2 | D84: intRegion | E84: 1 kb | P84: background | Q84: INVDUP | R84: 24743500 | T84: background | U84: INVDUP | V84: 77.2365 | X84: background | Y84: INVDUP | Z84: 1742410
A85: ZLR-06 | B85: chr19_54977038_54979038 | C85: 2 | D85: intRegion | E85: 1 kb | P85: background | Q85: INS | R85: 24564500 | T85: background | U85: INS | V85: 78.1683 | X85: background | Y85: INS | Z85: 1563410
A86: ZLR-06 | B86: chr19_54977308_54979308 | C86: 2 | D86: intRegion | E86: 1 kb | P86: background | Q86: INS | R86: 23629500 | T86: background | U86: INS | V86: 71.4307 | X86: background | Y86: INS | Z86: 628414
A87: ZLR-06 | B87: chr19_54978846_54980846 | C87: 2 | D87: intRegion | E87: 1 kb | P87: background | Q87: DEL | R87: 23363500 | T87: background | U87: DEL | V87: 67.0697 | X87: background | Y87: DEL | Z87: 362414
A88: ZLR-06 | B88: chr19_54982022_54984022 | C88: 2 | D88: intRegion | E88: 1 kb | P88: background | Q88: INVDUP | R88: 23189500 | T88: background | U88: INVDUP | V88: 74.0519 | X88: background | Y88: INVDUP | Z88: 188414
A89: ZLR-06 | B89: chr19_54983924_54985924 | C89: 2 | D89: intRegion | E89: 1 kb | P89: background | Q89: INS | R89: 23173500 | T89: background | U89: INS | V89: 74.8535 | X89: background | Y89: INS | Z89: 172414
A90: ZLR-06 | B90: chr19_54982028_54984028 | C90: 2 | D90: intRegion | E90: 1 kb | P90: background | Q90: INVDUP | R90: 22859500 | T90: background | U90: INVDUP | V90: 61.8984 | X90: background | Y90: INVDUP | Z90: 100588
A91: ZLR-06 | B91: chr4_182128890_182283142 | C91: 0 | D91: intRegion | E91: 10 kb | P91: background | Q91: INV | R91: 22544500 | T91: background | U91: INV | V91: 66.7963 | X91: background | Y91: INV | Z91: 415588
A92: ZLR-06 | B92: chr11_64964748_64985398 | C92: 0 | D92: intRegion | E92: 10 kb | P92: background | Q92: INV | R92: 22512500 | T92: background | U92: INV | V92: 66.557 | X92: background | Y92: INV | Z92: 447588
A93: ZLR-06 | B93: chr10_104070707_104094259 | C93: 0 | D93: intRegion | E93: 10 kb | P93: background | Q93: INVDUP | R93: 22048500 | T93: background | U93: INVDUP | V93: 70.2202 | X93: background | Y93: INVDUP | Z93: 47414
A94: ZLR-06 | B94: chr20_14744684_14850951 | C94: 0 | D94: intRegion | E94: 10 kb | P94: background | Q94: INVDUP | R94: 21344500 | T94: background | U94: INVDUP | V94: 76.7284 | X94: background | Y94: INVDUP | Z94: 615588
A95: ZLR-06 | B95: chr3_137176017_137198183 | C95: 1 | D95: intSample | E95: 10 kb | P95: background | Q95: INV | R95: 21200500 | T95: background | U95: INV | V95: 73.3218 | X95: background | Y95: INV | Z95: 759588
A96: ZLR-06 | B96: chr9_75403449_75542466 | C96: 2 | D96: intSample | E96: 10 kb | P96: background | Q96: INVDUP | R96: 20406500 | T96: background | U96: INVDUP | V96: 77.7814 | X96: background | Y96: INVDUP | Z96: 1553590
A97: ZLR-06 | B97: chr8_128313084_128429658 | C97: 0 | D97: intRegion | E97: 10 kb | P97: background | Q97: INVDUP | R97: 19257500 | T97: background | U97: INVDUP | V97: 77.9804 | X97: background | Y97: INVDUP | Z97: 2702590
A98: ZLR-06 | B98: chr15_85978611_85998611 | C98: 1 | D98: intRegion | E98: 10 kb | P98: background | Q98: INVDUP | R98: 18814500 | T98: background | U98: INVDUP | V98: 72.9004 | X98: background | Y98: INVDUP | Z98: 3145590
A99: ZLR-06 | B99: chr8_128409658_128429658 | C99: 0 | D99: intRegion | E99: 10 kb | P99: background | Q99: INVDUP | R99: 18673500 | T99: background | U99: INVDUP | V99: 76.0695 | X99: background | Y99: INVDUP | Z99: 3052410
A100: ZLR-06 | B100: chr15_85978611_85998611 | C100: 1 | D100: intRegion | E100: 10 kb | P100: background | Q100: DEL | R100: 18289500 | T100: background | U100: DEL | V100: 26.5436 | X100: background | Y100: DEL | Z100: 2668410
A101: ZLR-06 | B101: chr8_128313315_128333315 | C101: 0 | D101: intRegion | E101: 10 kb | P101: background | Q101: INVDUP | R101: 18033500 | T101: background | U101: INVDUP | V101: 35.2011 | X101: background | Y101: INVDUP | Z101: 2412410
A102: ZLR-06 | B102: chr8_128313084_128333084 | C102: 0 | D102: intRegion | E102: 10 kb | P102: background | Q102: DEL | R102: 17759500 | T102: background | U102: DEL | V102: 23.2814 | X102: background | Y102: DEL | Z102: 2138410
A103: ZLR-06 | B103: chr8_128409658_128429658 | C103: 0 | D103: intRegion | E103: 10 kb | P103: background | Q103: INS | R103: 17289500 | T103: background | U103: INS | V103: 28.6997 | X103: background | Y103: INS | Z103: 1668410
A104: ZLR-06 | B104: chr15_86021825_86041825 | C104: 1 | D104: intRegion | E104: 10 kb | P104: background | Q104: INS | R104: 17256500 | T104: background | U104: INS | V104: 30.9968 | X104: background | Y104: INS | Z104: 1635410
A105: ZLR-06 | B105: chr8_128313084_128333084 | C105: 0 | D105: intRegion | E105: 10 kb | P105: background | Q105: INV | R105: 17040500 | T105: background | U105: INV | V105: 52.6008 | X105: background | Y105: INV | Z105: 1419410
A106: ZLR-06 | B106: chr17_36085602_36105944 | C106: 3 | D106: intRegion | E106: 10 kb | P106: background | Q106: INV | R106: 14715500 | T106: background | U106: INV | V106: 76.2586 | X106: background | Y106: INV | Z106: 784588
A107: ZLR-06 | B107: chr11_100580122_100600122 | C107: 2 | D107: intRegion | E107: 10 kb | P107: background | Q107: BND | R107: 14651500 | T107: background | U107: BND | V107: 74.7353 | X107: background | Y107: BND | Z107: 848588
A108: ZLR-06 | B108: chr17_36084082_36105602 | C108: 3 | D108: intRegion | E108: 10 kb | P108: background | Q108: BND | R108: 14650500 | T108: background | U108: BND | V108: 74.6811 | X108: background | Y108: BND | Z108: 849588
A109: ZLR-06 | B109: chr13_73972892_73992911 | C109: 1 | D109: intRegion | E109: 10 kb | P109: background | Q109: INVDUP | R109: 14250500 | T109: background | U109: INVDUP | V109: 54.306 | X109: background | Y109: INVDUP | Z109: 1249590
A110: ZLR-06 | B110: chr13_73972911_73999111 | C110: 1 | D110: intRegion | E110: 10 kb | P110: background | Q110: INVDUP | R110: 14058500 | T110: background | U110: INVDUP | V110: 36.6381 | X110: background | Y110: INVDUP | Z110: 1117410
A111: ZLR-06 | B111: chr13_73970114_73992892 | C111: 1 | D111: intRegion | E111: 10 kb | P111: background | Q111: INVDUP | R111: 13852500 | T111: background | U111: INVDUP | V111: 19.5553 | X111: background | Y111: INVDUP | Z111: 911414
A112: ZLR-06 | B112: chr13_73912258_73965322 | C112: 2 | D112: intRegion | E112: 10 kb | P112: background | Q112: INVDUP | R112: 13453500 | T112: background | U112: INVDUP | V112: 17.1613 | X112: background | Y112: INVDUP | Z112: 512414
A113: ZLR-06 | B113: chr14_91441918_91461921 | C113: 3 | D113: intRegion | E113: 10 kb | P113: background | Q113: INVDUP | R113: 13327500 | T113: background | U113: INVDUP | V113: 19.9447 | X113: background | Y113: INVDUP | Z113: 386414
A114: ZLR-06 | B114: chr17_57747805_57889164 | C114: 9 | D114: intRegion | E114: 10 kb | P114: background | Q114: DUP | R114: 12924500 | T114: background | U114: DUP | V114: 55.4141 | X114: background | Y114: DUP | Z114: 0
A115: ZLR-06 | B115: chr19_54960568_54993028 | C115: 2 | D115: intRegion | E115: 10 kb | P115: background | Q115: INVDUP | R115: 12761500 | T115: background | U115: INVDUP | V115: 57.5827 | X115: background | Y115: INVDUP | Z115: 98588
A116: ZLR-06 | B116: chr19_54964840_54993028 | C116: 2 | D116: intRegion | E116: 10 kb | P116: background | Q116: INVDUP | R116: 11491500 | T116: background | U116: INVDUP | V116: 77.1435 | X116: background | Y116: INVDUP | Z116: 1368590
A117: ZLR-06 | B117: chr19_54968308_54993028 | C117: 2 | D117: intRegion | E117: 10 kb | P117: background | Q117: INVDUP | R117: 10977500 | T117: background | U117: INVDUP | V117: 46.5442 | X117: background | Y117: INVDUP | Z117: 1882590
A118: ZLR-06 | B118: chr19_54960599_54993028 | C118: 2 | D118: intRegion | E118: 10 kb | P118: background | Q118: INVDUP | R118: 10544500 | T118: background | U118: INVDUP | V118: 40.8167 | X118: background | Y118: INVDUP | Z118: 2315590
A119: ZLR-06 | B119: chr19_54968038_54993028 | C119: 2 | D119: intRegion | E119: 10 kb | P119: background | Q119: BND | R119: 10229500 | T119: background | U119: BND | V119: 72.3694 | X119: background | Y119: BND | Z119: 2630590
A120: ZLR-06 | B120: chr4_182128890_182148890 | C120: 0 | D120: intRegion | E120: 10 kb | P120: background | Q120: INVDUP | R120: 9120490 | T120: background | U120: INVDUP | V120: 40.6209 | X120: background | Y120: INVDUP | Z120: 3739590
A121: ZLR-06 | B121: chr4_182263142_182283142 | C121: 0 | D121: intRegion | E121: 10 kb | P121: background | Q121: INV | R121: 8191490 | T121: background | U121: INV | V121: 72.7644 | X121: background | Y121: INV | Z121: 3650410
A122: ZLR-06 | B122: chr11_64964748_64984748 | C122: 0 | D122: intRegion | E122: 10 kb | P122: background | Q122: INV | R122: 8179490 | T122: background | U122: INV | V122: 72.4213 | X122: background | Y122: INV | Z122: 3638410
A123: ZLR-06 | B123: chr11_64965398_64985398 | C123: 0 | D123: intRegion | E123: 10 kb | P123: background | Q123: INVDUP | R123: 6081490 | T123: background | U123: INVDUP | V123: 63.9127 | X123: background | Y123: INVDUP | Z123: 1540410
A124: ZLR-06 | B124: chr10_104070663_104090663 | C124: 0 | D124: intRegion | E124: 10 kb | P124: background | Q124: INVDUP | R124: 5775490 | T124: background | U124: INVDUP | V124: 56.2991 | X124: background | Y124: INVDUP | Z124: 1234410
A125: ZLR-06 | B125: chr10_104070707_104090707 | C125: 0 | D125: intRegion | E125: 10 kb | P125: background | Q125: INVDUP | R125: 5195490 | T125: background | U125: INVDUP | V125: 54.6127 | X125: background | Y125: INVDUP | Z125: 654414
A126: ZLR-06 | B126: chr10_104074259_104094259 | C126: 0 | D126: intRegion | E126: 10 kb | P126: background | Q126: INVDUP | R126: 5129490 | T126: background | U126: INVDUP | V126: 57.4842 | X126: background | Y126: INVDUP | Z126: 588414
A127: ZLR-06 | B127: chr20_14744684_14764684 | C127: 0 | D127: intRegion | E127: 10 kb | P127: background | Q127: INVDUP | R127: 4931490 | T127: background | U127: INVDUP | V127: 70.0735 | X127: background | Y127: INVDUP | Z127: 390414
A128: ZLR-06 | B128: chr20_14830951_14850951 | C128: 0 | D128: intRegion | E128: 10 kb | P128: background | Q128: INVDUP | R128: 4608490 | T128: background | U128: INVDUP | V128: 66.4285 | X128: background | Y128: INVDUP | Z128: 67414
A129: ZLR-06 | B129: chr20_14832487_14852487 | C129: 0 | D129: intRegion | E129: 10 kb | P129: background | Q129: DEL | R129: 3888490 | T129: background | U129: DEL | V129: 75.523 | X129: background | Y129: DEL | Z129: 611588
A130: ZLR-06 | B130: chr1_48158486_48178486 | C130: 2 | D130: intSample | E130: 10 kb | P130: background | Q130: DUP | R130: 1991490 | T130: background | U130: DUP | V130: 74.9852 | X130: background | Y130: DUP | Z130: 2210410
A131: ZLR-06 | B131: chr12_103579678_103599678 | C131: 0 | D131: intSample | E131: 10 kb | P131: background | Q131: INVDUP | R131: 959487 | T131: background | U131: INVDUP | V131: 66.318 | X131: background | Y131: INVDUP | Z131: 1178410
A132: ZLR-06 | B132: chr12_103579765_103599765 | C132: 0 | D132: intSample | E132: 10 kb | P132: background | Q132: INV | R132: 844487 | T132: background | U132: INV | V132: 54.8662 | X132: background | Y132: INV | Z132: 1063410
A133: ZLR-06 | B133: chr3_137176017_137196017 | C133: 1 | D133: intSample | E133: 10 kb | P133: background | Q133: INV | R133: 826487 | T133: background | U133: INV | V133: 53.02 | X133: background | Y133: INV | Z133: 1045410
A134: ZLR-06 | B134: chr3_137178183_137198183 | C134: 1 | D134: intSample | E134: 10 kb | P134: background | Q134: INV | R134: 824487 | T134: background | U134: INV | V134: 52.8236 | X134: background | Y134: INV | Z134: 1043410
A135: ZLR-06 | B135: chr4_81200954_81220954 | C135: 4 | D135: intSample | E135: 10 kb | P135: background | Q135: INV | R135: 811487 | T135: background | U135: INV | V135: 51.6074 | X135: background | Y135: INV | Z135: 1030410
A136: ZLR-06 | B136: chr4_81202477_81222477 | C136: 4 | D136: intSample | E136: 10 kb | P136: background | Q136: INV | R136: 808487 | T136: background | U136: INV | V136: 51.3438 | X136: background | Y136: INV | Z136: 1027410
A137: ZLR-06 | B137: chr8_49835725_49855725 | C137: 1 | D137: intSample | E137: 10 kb | P137: background | Q137: INV | R137: 804487 | T137: background | U137: INV | V137: 51.0036 | X137: background | Y137: INV | Z137: 1023410
A138: ZLR-06 | B138: chr8_49835734_49855734 | C138: 1 | D138: intSample | E138: 10 kb | P138: intSample | Q138: INVDUP | R138: -243514 | T138: intSample | U138: INVDUP | V138: 68.074 | X138: intSample | Y138: INVDUP | Z138: 0
A139: ZLR-06 | B139: chr9_75382601_75402601 | C139: 0 | D139: intSample | E139: 10 kb | P139: intSample | Q139: INVDUP | R139: -471514 | T139: intSample | U139: INVDUP | V139: 60.8433 | X139: intSample | Y139: INVDUP | Z139: 92588
A140: ZLR-06 | B140: chr9_75403449_75423449 | C140: 0 | D140: intSample | E140: 10 kb | P140: background | Q140: INVDUP | R140: -722514 | T140: background | U140: INVDUP | V140: 32.1613 | X140: background | Y140: INVDUP | Z140: 343588
A141: ZLR-06 | B141: chr9_75423908_75443908 | C141: 0 | D141: intSample | E141: 10 kb | P141: background | Q141: DEL | R141: -771514 | T141: background | U141: DEL | V141: 28.2955 | X141: background | Y141: DEL | Z141: 392588
A142: ZLR-06 | B142: chr9_75522466_75542466 | C142: 0 | D142: intSample | E142: 10 kb | P142: background | Q142: DUP | R142: -771514 | T142: background | U142: DUP | V142: 28.2955 | X142: background | Y142: DUP | Z142: 392588
A143: ZLR-06 | B143: chr2_146376905_146396905 | C143: 0 | D143: intRegion | E143: 10 kb | P143: background | Q143: DUP | R143: -771514 | T143: background | U143: DUP | V143: 28.2955 | X143: background | Y143: DUP | Z143: 392588
A144: ZLR-06 | B144: chr2_146488465_146508465 | C144: 0 | D144: intRegion | E144: 10 kb | P144: background | Q144: INV | R144: -772514 | T144: background | U144: INV | V144: 28.219 | X144: background | Y144: INV | Z144: 393588
A145: ZLR-06 | B145: chr4_142639381_142659381 | C145: 2 | D145: intRegion | E145: 10 kb | P145: background | Q145: INV | R145: -772514 | T145: background | U145: INV | V145: 28.219 | X145: background | Y145: INV | Z145: 393588
A146: ZLR-06 | B146: chr4_142854411_142874411 | C146: 2 | D146: intRegion | E146: 10 kb | P146: background | Q146: INVDUP | R146: -933514 | T146: background | U146: INVDUP | V146: 18.8262 | X146: background | Y146: INVDUP | Z146: 554588
A147: ZLR-06 | B147: chr10_79684897_79704897 | C147: 7 | D147: intRegion | E147: 10 kb | P147: background | Q147: INVDUP | R147: -1763510 | T147: background | U147: INVDUP | V147: 9.88654 | X147: background | Y147: INVDUP | Z147: 1384590
A148: ZLR-06 | B148: chr15_86004813_86024813 | C148: 1 | D148: intRegion | E148: 10 kb | P148: background | Q148: INS | R148: -2166510 | T148: background | U148: INS | V148: 13.5941 | X148: background | Y148: INS | Z148: 1787590
A149: ZLR-06 | B149: chr15_86021825_86041825 | C149: 1 | D149: intRegion | E149: 10 kb | P149: background | Q149: INVDUP | R149: -2391510 | T149: background | U149: INVDUP | V149: 25.2513 | X149: background | Y149: INVDUP | Z149: 2012590
A150: ZLR-06 | B150: chr8_128313084_128333084 | C150: 0 | D150: intRegion | E150: 10 kb | P150: background | Q150: INS | R150: -2513510 | T150: background | U150: INS | V150: 37.4204 | X150: background | Y150: INS | Z150: 2134590
A151: ZLR-06 | B151: chr8_128313153_128333153 | C151: 0 | D151: intRegion | E151: 10 kb | P151: background | Q151: BND | R151: -4149510 | T151: background | U151: BND | V151: 66.6172 | X151: background | Y151: BND | Z151: 3770590
A152: ZLR-06 | B152: chr8_128313315_128333315 | C152: 0 | D152: intRegion | E152: 10 kb | P152: background | Q152: DUP | R152: -4498510 | T152: background | U152: DUP | V152: 70.6356 | X152: background | Y152: DUP | Z152: 4119590
A153: ZLR-06 | B153: chr8_128313818_128333818 | C153: 0 | D153: intRegion | E153: 10 kb | P153: background | Q153: INS | R153: -5394510 | T153: background | U153: INS | V153: 68.4241 | X153: background | Y153: INS | Z153: 5015590
A154: ZLR-06 | B154: chr8_128409610_128429610 | C154: 0 | D154: intRegion | E154: 10 kb | P154: background | Q154: INVDUP | R154: -5564510 | T154: background | U154: INVDUP | V154: 74.7004 | X154: background | Y154: INVDUP | Z154: 5185590
A155: ZLR-06 | B155: chr8_128409658_128429658 | C155: 0 | D155: intRegion | E155: 10 kb | P155: background | Q155: DUP | R155: -5580510 | T155: background | U155: DUP | V155: 74.2201 | X155: background | Y155: DUP | Z155: 5201590
A156: ZLR-06 | B156: chr17_36084082_36104082 | C156: 3 | D156: intRegion | E156: 10 kb | P156: background | Q156: INVDUP | R156: -5921510 | T156: background | U156: INVDUP | V156: 57.0527 | X156: background | Y156: INVDUP | Z156: 5542590
A157: ZLR-06 | B157: chr17_36085602_36105602 | C157: 3 | D157: intRegion | E157: 10 kb | P157: background | Q157: INVDUP | R157: -6443510 | T157: background | U157: INVDUP | V157: 73.3343 | X157: background | Y157: INVDUP | Z157: 5694410
A158: ZLR-06 | B158: chr17_36085944_36105944 | C158: 3 | D158: intRegion | E158: 10 kb | P158: background | Q158: INVDUP | R158: -6941510 | T158: background | U158: INVDUP | V158: 61.0374 | X158: background | Y158: INVDUP | Z158: 5196410
A159: ZLR-06 | B159: chr13_73972772_73992772 | C159: 1 | D159: intRegion | E159: 10 kb | P159: background | Q159: INVDUP | R159: -7306510 | T159: background | U159: INVDUP | V159: 75.7365 | X159: background | Y159: INVDUP | Z159: 4831410
A160: ZLR-06 | B160: chr13_73972893_73992893 | C160: 1 | D160: intRegion | E160: 10 kb | P160: background | Q160: INVDUP | R160: -7418510 | T160: background | U160: INVDUP | V160: 72.2139 | X160: background | Y160: INVDUP | Z160: 4719410
A161: ZLR-06 | B161: chr13_73972955_73992955 | C161: 1 | D161: intRegion | E161: 10 kb | P161: background | Q161: INVDUP | R161: -7773510 | T161: background | U161: INVDUP | V161: 63.5793 | X161: background | Y161: INVDUP | Z161: 4364410
A162: ZLR-06 | B162: chr13_73912258_73932258 | C162: 1 | D162: intRegion | E162: 10 kb | P162: background | Q162: INVDUP | R162: -8289510 | T162: background | U162: INVDUP | V162: 51.6595 | X162: background | Y162: INVDUP | Z162: 3848410
A163: ZLR-06 | B163: chr13_73945322_73965322 | C163: 1 | D163: intRegion | E163: 10 kb | P163: background | Q163: INVDUP | R163: -8512510 | T163: background | U163: INVDUP | V163: 47.3527 | X163: background | Y163: INVDUP | Z163: 3625410
A164: ZLR-06 | B164: chr14_91441918_91461918 | C164: 3 | D164: intRegion | E164: 10 kb | P164: background | Q164: INVDUP | R164: -8641510 | T164: background | U164: INVDUP | V164: 49.0287 | X164: background | Y164: INVDUP | Z164: 3496410
A165: ZLR-06 | B165: chr14_91441921_91461921 | C165: 3 | D165: intRegion | E165: 10 kb | P165: background | Q165: INVDUP | R165: -9331510 | T165: background | U165: INVDUP | V165: 32.2401 | X165: background | Y165: INVDUP | Z165: 2806410
A166: ZLR-06 | B166: chr17_57747805_57767805 | C166: 9 | D166: intRegion | E166: 10 kb | P166: background | Q166: INVDUP | R166: -9469510 | T166: background | U166: INVDUP | V166: 32.2077 | X166: background | Y166: INVDUP | Z166: 2668410
A167: ZLR-06 | B167: chr17_57869163_57889163 | C167: 9 | D167: intRegion | E167: 10 kb | P167: background | Q167: INVDUP | R167: -9778510 | T167: background | U167: INVDUP | V167: 43.8434 | X167: background | Y167: INVDUP | Z167: 2359410
A168: ZLR-06 | B168: chr19_54960568_54980568 | C168: 2 | D168: intRegion | E168: 10 kb | P168: background | Q168: INVDUP | R168: -10501500 | T168: background | U168: INVDUP | V168: 31.7397 | X168: background | Y168: INVDUP | Z168: 1636410
A169: ZLR-06 | B169: chr19_54960599_54980599 | C169: 2 | D169: intRegion | E169: 10 kb | P169: background | Q169: INVDUP | R169: -11283500 | T169: background | U169: INVDUP | V169: 60.4756 | X169: background | Y169: INVDUP | Z169: 854413
A170: ZLR-06 | B170: chr19_54964755_54984755 | C170: 2 | D170: intRegion | E170: 10 kb | P170: background | Q170: INVDUP | R170: -11341500 | T170: background | U170: INVDUP | V170: 56.728 | X170: background | Y170: INVDUP | Z170: 796413
A171: ZLR-06 | B171: chr19_54964756_54984756 | C171: 2 | D171: intRegion | E171: 10 kb | P171: background | Q171: INVDUP | R171: -12116500 | T171: background | U171: INVDUP | V171: 40.5888 | X171: background | Y171: INVDUP | Z171: 21413
A172: ZLR-06 | B172: chr19_54964840_54984840 | C172: 2 | D172: intRegion | E172: 10 kb | P172: background | Q172: INVDUP | R172: -12144500 | T172: background | U172: INVDUP | V172: 39.1261 | X172: background | Y172: INVDUP | Z172: 0
A173: ZLR-06 | B173: chr19_54968038_54988038 | C173: 2 | D173: intRegion | E173: 10 kb | P173: background | Q173: INS | R173: -12546500 | T173: background | U173: INS | V173: 17.5521 | X173: background | Y173: INS | Z173: 287589
A174: ZLR-06 | B174: chr19_54968308_54988308 | C174: 2 | D174: intRegion | E174: 10 kb | P174: background | Q174: INVDUP | R174: -12884500 | T174: background | U174: INVDUP | V174: 21.1965 | X174: background | Y174: INVDUP | Z174: 625589
A175: ZLR-06 | B175: chr19_54969846_54989846 | C175: 2 | D175: intRegion | E175: 10 kb | P175: background | Q175: INVDUP | R175: -13402500 | T175: background | U175: INVDUP | V175: 72.4278 | X175: background | Y175: INVDUP | Z175: 975413
A176: ZLR-06 | B176: chr19_54973022_54993022 | C176: 2 | D176: intRegion | E176: 10 kb | P176: background | Q176: INVDUP | R176: -13656500 | T176: background | U176: INVDUP | V176: 57.6787 | X176: background | Y176: INVDUP | Z176: 721413
A177: ZLR-06 | B177: chr19_54974924_54994924 | C177: 2 | D177: intRegion | E177: 10 kb | P177: background | Q177: INVDUP | R177: -14292500 | T177: background | U177: INVDUP | V177: 60.3607 | X177: background | Y177: INVDUP | Z177: 85413
A178: ZLR-06 | B178: chr19_54973028_54993028 | C178: 2 | D178: intRegion | E178: 10 kb | P178: background | Q178: INVDUP | R178: -15129500 | T178: background | U178: INVDUP | V178: 58.2806 | X178: background | Y178: INVDUP | Z178: 670589
A179: ZLR-06 | B179: chr4_182038890_182373142 | C179: 1 | D179: intRegion | E179: 100 kb | P179: background | Q179: INVDUP | R179: -15338500 | T179: background | U179: INVDUP | V179: 40.8649 | X179: background | Y179: INVDUP | Z179: 879589
A180: ZLR-06 | B180: chr11_64874748_65075398 | C180: 0 | D180: intRegion | E180: 100 kb | P180: background | Q180: INVDUP | R180: -15748500 | T180: background | U180: INVDUP | V180: 49.7073 | X180: background | Y180: INVDUP | Z180: 1289590
A181: ZLR-06 | B181: chr10_103980707_104184259 | C181: 0 | D181: intRegion | E181: 100 kb | P181: background | Q181: INVDUP | R181: -15781500 | T181: background | U181: INVDUP | V181: 48.2329 | X181: background | Y181: INVDUP | Z181: 1322590
A182: ZLR-06 | B182: chr20_14654684_14940951 | C182: 0 | D182: intRegion | E182: 100 kb | P182: background | Q182: INVDUP | R182: -15822500 | T182: background | U182: INVDUP | V182: 47.9263 | X182: background | Y182: INVDUP | Z182: 1363590
A183: ZLR-06 | B183: chr3_137086017_137288183 | C183: 2 | D183: intSample | E183: 100 kb | P183: background | Q183: INVDUP | R183: -16807500 | T183: background | U183: INVDUP | V183: 32.6412 | X183: background | Y183: INVDUP | Z183: 2348590
A184: ZLR-06 | B184: chr9_75313449_75632466 | C184: 2 | D184: intSample | E184: 100 kb | P184: background | Q184: INS | R184: -17177500 | T184: background | U184: INS | V184: 59.0366 | X184: background | Y184: INS | Z184: 2718590
A185: ZLR-06 | B185: chr8_128223084_128519658 | C185: 2 | D185: intRegion | E185: 100 kb | P185: background | Q185: INVDUP | R185: -17245500 | T185: background | U185: INVDUP | V185: 63.6326 | X185: background | Y185: INVDUP | Z185: 2786590
A186: ZLR-06 | B186: chr15_85888611_86088611 | C186: 1 | D186: intRegion | E186: 100 kb | P186: background | Q186: INVDUP | R186: -17489500 | T186: background | U186: INVDUP | V186: 51.8804 | X186: background | Y186: INVDUP | Z186: 3030590
A187: ZLR-06 | B187: chr8_128319658_128519658 | C187: 1 | D187: intRegion | E187: 100 kb | P187: background | Q187: INVDUP | R187: -18215500 | T187: background | U187: INVDUP | V187: 52.4437 | X187: background | Y187: INVDUP | Z187: 2522410
A188: ZLR-06 | B188: chr15_85888611_86088611 | C188: 1 | D188: intRegion | E188: 100 kb | P188: background | Q188: INS | R188: -18310500 | T188: background | U188: INS | V188: 58.7346 | X188: background | Y188: INS | Z188: 2427410
A189: ZLR-06 | B189: chr8_128223315_128423315 | C189: 1 | D189: intRegion | E189: 100 kb | P189: background | Q189: INVDUP | R189: -20573500 | T189: background | U189: INVDUP | V189: 61.9871 | X189: background | Y189: INVDUP | Z189: 164413
A190: ZLR-06 | B190: chr8_128223084_128423084 | C190: 1 | D190: intRegion | E190: 100 kb | P190: background | Q190: INVDUP | R190: -20697500 | T190: background | U190: INVDUP | V190: 55.4282 | X190: background | Y190: INVDUP | Z190: 40413
A191: ZLR-06 | B191: chr8_128319658_128519658 | C191: 1 | D191: intRegion | E191: 100 kb | P191: background | Q191: INVDUP | R191: -20863500 | T191: background | U191: INVDUP | V191: 41.2734 | X191: background | Y191: INVDUP | Z191: 84589
A192: ZLR-06 | B192: chr15_85931825_86131825 | C192: 2 | D192: intRegion | E192: 100 kb | P192: background | Q192: INVDUP | R192: -20915500 | T192: background | U192: INVDUP | V192: 36.6079 | X192: background | Y192: INVDUP | Z192: 136589
A193: ZLR-06 | B193: chr8_128223084_128423084 | C193: 1 | D193: intRegion | E193: 100 kb | P193: background | Q193: DEL | R193: -22075500 | T193: background | U193: DEL | V193: 37.0385 | X193: background | Y193: DEL | Z193: 1262410
A194: ZLR-06 | B194: chr17_35995602_36195944 | C194: 3 | D194: intRegion | E194: 100 kb | P194: background | Q194: INVDUP | R194: -22188500 | T194: background | U194: INVDUP | V194: 45.0794 | X194: background | Y194: INVDUP | Z194: 1149410
A195: ZLR-06 | B195: chr11_100490122_100690122 | C195: 2 | D195: intRegion | E195: 100 kb | P195: background | Q195: INVDUP | R195: -22334500 | T195: background | U195: INVDUP | V195: 52.9254 | X195: background | Y195: INVDUP | Z195: 1003410
A196: ZLR-06 | B196: chr17_35994082_36195602 | C196: 3 | D196: intRegion | E196: 100 kb | P196: background | Q196: INVDUP | R196: -22744500 | T196: background | U196: INVDUP | V196: 64.9768 | X196: background | Y196: INVDUP | Z196: 593413
A197: ZLR-06 | B197: chr13_73882892_74082911 | C197: 2 | D197: intRegion | E197: 100 kb | P197: background | Q197: INVDUP | R197: -22961500 | T197: background | U197: INVDUP | V197: 38.5961 | X197: background | Y197: INVDUP | Z197: 376413
A198: ZLR-06 | B198: chr13_73882911_74089111 | C198: 2 | D198: intRegion | E198: 100 kb | P198: background | Q198: INVDUP | R198: -23285500 | T198: background | U198: INVDUP | V198: 25.1612 | X198: background | Y198: INVDUP | Z198: 52413
A199: ZLR-06 | B199: chr13_73880114_74082892 | C199: 2 | D199: intRegion | E199: 100 kb | P199: background | Q199: INVDUP | R199: -24175500 | T199: background | U199: INVDUP | V199: 18.8679 | X199: background | Y199: INVDUP | Z199: 796589
A200: ZLR-06 | B200: chr13_73822258_74055322 | C200: 2 | D200: intRegion | E200: 100 kb | P200: background | Q200: INVDUP | R200: -24283500 | T200: background | U200: INVDUP | V200: 23.5358 | X200: background | Y200: INVDUP | Z200: 904589
... 4300 more rows

Sheet Figure S5
A1: Figure S5
A2: Sample.ID | B2: Sample.Type | C2: Gene.Name | D2: Expr | E2: zscore | F2: pval | G2: FDR
A3: ZLR-11 | B3: Tumor | C3: AKAP13 | D3: 25.714109 | E3: 0.05189533719 | F3: 0.4793060448 | G3: 0.7596944948
A4: ZLR-06 | B4: Tumor | C4: ALDH1A1 | D4: 211.383499 | E4: 0.6085592796 | F4: 0.2714083011 | G4: 0.5428166022
A5: ZLR-12 | B5: Tumor | C5: ARHGAP42 | D5: 12.071506 | E5: 3.130525272 | F5: 0.0008724699247 | G5: 0.003489879699
A6: ZLR-06 | B6: Tumor | C6: C12orf42 | D6: 0.032891 | E6: -0.5819727534 | F6: 0.7197074832 | G6: 0.8096709185
A7: ZLR-06 | B7: Tumor | C7: C8orf22 | D7: 0 | E7: -0.1314882775 | F7: 0.5523054704 | G7: 0.7596944948
A8: ZLR-02 | B8: Tumor | C8: CAPN1 | D8: 416.133636 | E8: 2.022138067 | F8: 0.02158104518 | G8: 0.07769176265
A9: ZLR-11 | B9: Tumor | C9: CASC8 | D9: 2.749299 | E9: 1.433444063 | F9: 0.07586548686 | G9: 0.2100890405
A10: ZLR-11 | B10: Tumor | C10: CCAT2 | D10: 77.14772 | E10: 2586.767941 | F10: 0 | G10: 0
A11: ZLR-08 | B11: Tumor | C11: CDC42EP5 | D11: 50.004456 | E11: 1.164963392 | F11: 0.1220169057 | G11: 0.2745380378
A12: ZLR-16 | B12: Tumor | C12: CLTC | D12: 34.181534 | E12: -1.181452288 | F12: 0.8812884516 | G12: 0.9064681217
A13: ZLR-10 | B13: Tumor | C13: DLG5-AS1 | D13: 0.823667 | E13: -0.4525369402 | F13: 0.6745588922 | G13: 0.8094706706
A14: ZLR-06 | B14: Tumor | C14: FGF5 | D14: 0 | E14: -0.3799926169 | F14: 0.6480245521 | G14: 0.8044442716
A15: ZLR-06 | B15: Tumor | C15: FOXD2 | D15: 5.000719 | E15: 4.439661649 | F15: 4.505020904e-06 | G15: 2.316867894e-05
A16: ZLR-03 | B16: Tumor | C16: GBF1 | D16: 8.258382 | E16: -1.765459711 | F16: 0.9612567322 | G16: 0.9612567322
A17: ZLR-12 | B17: Tumor | C17: HNF1B | D17: 133.946991 | E17: 13.76243179 | F17: 2.144275656e-43 | G17: 1.543878472e-42
A18: ZLR-09 | B18: Tumor | C18: IL15 | D18: 607.173523 | E18: 66.34103586 | F18: 0 | G18: 0
A19: ZLR-06 | B19: Tumor | C19: IL20RB | D19: 247.409241 | E19: 1.546425204 | F19: 0.06100095547 | G19: 0.1830028664
A20: ZLR-09 | B20: Tumor | C20: INPP4B | D20: 9.521409 | E20: 0.1022349345 | F20: 0.4592850996 | G20: 0.7596944948
A21: ZLR-14 | B21: Tumor | C21: KLF5 | D21: 359.87616 | E21: 1.179385166 | F21: 0.1191224196 | G21: 0.2745380378
A22: ZLR-13 | B22: Tumor | C22: KLF5 | D22: 454.501129 | E22: 1.961883237 | F22: 0.02488803996 | G22: 0.08145176714
A23: ZLR-08 | B23: Tumor | C23: LENG8 | D23: 113.806114 | E23: 1.385734059 | F23: 0.08291406202 | G23: 0.213207588
A24: ZLR-08 | B24: Tumor | C24: LENG9 | D24: 58.861588 | E24: 16.24015933 | F24: 1.311210873e-59 | G24: 1.180089786e-58
A25: ZLR-01 | B25: Tumor | C25: LINC00290 | D25: 1.584017 | F25: 0 | G25: 0
A26: ZLR-14 | B26: Tumor | C26: LINC00392 | D26: 0 | E26: -0.1796235463 | F26: 0.571275941 | G26: 0.7596944948
A27: ZLR-13 | B27: Tumor | C27: LINC00392 | D27: 0 | E27: -0.1796235463 | F27: 0.571275941 | G27: 0.7596944948
A28: ZLR-04 | B28: Tumor | C28: MACROD2 | D28: 18.310736 | E28: 0.4079181725 | F28: 0.3416668754 | G28: 0.6150003756
A29: ZLR-11 | B29: Tumor | C29: PCAT1 | D29: 0 | E29: -0.840652097 | F29: 0.799728568 | G29: 0.846771425
A30: ZLR-10 | B30: Tumor | C30: POLR3A | D30: 8.71852 | E30: 0.5162061118 | F30: 0.3028552311 | G30: 0.5738309641
A31: ZLR-16 | B31: Tumor | C31: PTRH2 | D31: 19.164383 | E31: -0.7284873579 | F31: 0.7668423476 | G31: 0.8365552883
A32: ZLR-15 | B32: Tumor | C32: RPS6KA5 | D32: 46.304066 | E32: 7.671018719 | F32: 8.531782032e-15 | G32: 5.119069219e-14
A33: ZLR-06 | B33: Tumor | C33: SNAI2 | D33: 49.430519 | E33: 0.8225095963 | F33: 0.2053934637 | G33: 0.4349508643
A34: ZLR-06 | B34: Tumor | C34: SOX14 | D34: 0 | E34: -0.2297925062 | F34: 0.5908734959 | G34: 0.7596944948
A35: ZLR-01 | B35: Tumor | C35: TEMN3-AS1 | D35: 0 | E35: -0.0990147543 | F35: 0.5394367223 | G35: 0.7596944948
A36: ZLR-06 | B36: Tumor | C36: TMC1 | D36: 7.905151 | E36: 4.349850338 | F36: 6.811523839e-06 | G36: 3.065185728e-05
A37: ZLR-06 | B37: Tumor | C37: TRABD2B | D37: 0.309034 | E37: -0.2030284176 | F37: 0.5804435896 | G37: 0.7596944948
A38: ZLR-16 | B38: Tumor | C38: VMP1 | D38: 107.887634 | E38: -0.5689333225 | F38: 0.7152993047 | G38: 0.8096709185
A39: HC2016033C | B39: Tumor | C39: AKAP13 | D39: 88.296783
A40: HC2016044C | B40: Tumor | C40: AKAP13 | D40: 19.53544
A41: HC2017020C | B41: Tumor | C41: AKAP13 | D41: 13.698137
A42: HC2017028C | B42: Tumor | C42: AKAP13 | D42: 13.443248
A43: HC2017030C | B43: Tumor | C43: AKAP13 | D43: 42.61599
A44: HC2017058C | B44: Tumor | C44: AKAP13 | D44: 15.144271
A45: HC2017109C | B45: Tumor | C45: AKAP13 | D45: 16.153696
A46: HC2017116C | B46: Tumor | C46: AKAP13 | D46: 20.863001
A47: HC2019096C | B47: Tumor | C47: AKAP13 | D47: 23.976948
A48: HC2019101C | B48: Tumor | C48: AKAP13 | D48: 9.352921
A49: HC2019107C | B49: Tumor | C49: AKAP13 | D49: 20.404869
A50: HC2019200C | B50: Tumor | C50: AKAP13 | D50: 27.590143
A51: RC1 | B51: Tumor | C51: AKAP13 | D51: 93.003212
A52: RC101 | B52: Tumor | C52: AKAP13 | D52: 16.174549
A53: RC11 | B53: Tumor | C53: AKAP13 | D53: 13.691459
A54: RC12 | B54: Tumor | C54: AKAP13 | D54: 17.171671
A55: RC14 | B55: Tumor | C55: AKAP13 | D55: 46.077618
A56: RC15 | B56: Tumor | C56: AKAP13 | D56: 27.927788
A57: RC16 | B57: Tumor | C57: AKAP13 | D57: 65.351952
A58: RC17 | B58: Tumor | C58: AKAP13 | D58: 24.704575
A59: RC18 | B59: Tumor | C59: AKAP13 | D59: 60.714176
A60: RC2 | B60: Tumor | C60: AKAP13 | D60: 31.669891
A61: RC20 | B61: Tumor | C61: AKAP13 | D61: 47.879665
A62: RC21 | B62: Tumor | C62: AKAP13 | D62: 19.999969
A63: RC22 | B63: Tumor | C63: AKAP13 | D63: 16.381397
A64: RC23 | B64: Tumor | C64: AKAP13 | D64: 7.340618
A65: RC24 | B65: Tumor | C65: AKAP13 | D65: 19.197435
A66: RC25 | B66: Tumor | C66: AKAP13 | D66: 21.00305
A67: RC26 | B67: Tumor | C67: AKAP13 | D67: 19.778416
A68: RC27 | B68: Tumor | C68: AKAP13 | D68: 25.543388
A69: RC28 | B69: Tumor | C69: AKAP13 | D69: 32.712482
A70: RC29 | B70: Tumor | C70: AKAP13 | D70: 39.841148
A71: RC3 | B71: Tumor | C71: AKAP13 | D71: 34.965683
A72: RC30 | B72: Tumor | C72: AKAP13 | D72: 37.842789
A73: RC31 | B73: Tumor | C73: AKAP13 | D73: 34.261406
A74: RC32 | B74: Tumor | C74: AKAP13 | D74: 28.651827
A75: RC33 | B75: Tumor | C75: AKAP13 | D75: 22.947231
A76: RC34 | B76: Tumor | C76: AKAP13 | D76: 17.868296
A77: RC35 | B77: Tumor | C77: AKAP13 | D77: 32.310917
A78: RC36 | B78: Tumor | C78: AKAP13 | D78: 16.947989
A79: RC37 | B79: Tumor | C79: AKAP13 | D79: 21.543041
A80: RC39 | B80: Tumor | C80: AKAP13 | D80: 15.103121
A81: RC4 | B81: Tumor | C81: AKAP13 | D81: 23.073444
A82: RC41 | B82: Tumor | C82: AKAP13 | D82: 38.231369
A83: RC42 | B83: Tumor | C83: AKAP13 | D83: 10.853897
A84: RC43 | B84: Tumor | C84: AKAP13 | D84: 9.889174
A85: RC44 | B85: Tumor | C85: AKAP13 | D85: 11.893678
A86: RC45 | B86: Tumor | C86: AKAP13 | D86: 14.865469
A87: RC46 | B87: Tumor | C87: AKAP13 | D87: 21.412994
A88: RC47 | B88: Tumor | C88: AKAP13 | D88: 18.06535
A89: RC49 | B89: Tumor | C89: AKAP13 | D89: 16.586905
A90: RC5 | B90: Tumor | C90: AKAP13 | D90: 21.533373
A91: RC50 | B91: Tumor | C91: AKAP13 | D91: 13.21161
A92: RC51 | B92: Tumor | C92: AKAP13 | D92: 22.527897
A93: RC52 | B93: Tumor | C93: AKAP13 | D93: 18.468412
A94: RC53 | B94: Tumor | C94: AKAP13 | D94: 26.253201
A95: RC54 | B95: Tumor | C95: AKAP13 | D95: 36.391514
A96: RC55 | B96: Tumor | C96: AKAP13 | D96: 14.438251
A97: RC56 | B97: Tumor | C97: AKAP13 | D97: 24.755718
A98: RC57 | B98: Tumor | C98: AKAP13 | D98: 15.812679
A99: RC58 | B99: Tumor | C99: AKAP13 | D99: 37.962051
A100: RC59 | B100: Tumor | C100: AKAP13 | D100: 19.377529
A101: RC6 | B101: Tumor | C101: AKAP13 | D101: 31.125868
A102: RC60 | B102: Tumor | C102: AKAP13 | D102: 9.792433
A103: RC61 | B103: Tumor | C103: AKAP13 | D103: 27.790051
A104: RC62 | B104: Tumor | C104: AKAP13 | D104: 18.2369
A105: RC63 | B105: Tumor | C105: AKAP13 | D105: 28.902514
A106: RC64 | B106: Tumor | C106: AKAP13 | D106: 18.101608
A107: RC65 | B107: Tumor | C107: AKAP13 | D107: 28.708584
A108: RC67 | B108: Tumor | C108: AKAP13 | D108: 8.465759
A109: RC68 | B109: Tumor | C109: AKAP13 | D109: 22.113899
A110: RC70 | B110: Tumor | C110: AKAP13 | D110: 20.537497
A111: RC72 | B111: Tumor | C111: AKAP13 | D111: 23.549038
A112: RC73 | B112: Tumor | C112: AKAP13 | D112: 32.518272
A113: RC74 | B113: Tumor | C113: AKAP13 | D113: 20.803907
A114: RC75 | B114: Tumor | C114: AKAP13 | D114: 42.978893
A115: RC76 | B115: Tumor | C115: AKAP13 | D115: 26.652931
A116: RC77 | B116: Tumor | C116: AKAP13 | D116: 26.68594
A117: RC78 | B117: Tumor | C117: AKAP13 | D117: 14.49587
A118: RC79 | B118: Tumor | C118: AKAP13 | D118: 24.128941
A119: RC8 | B119: Tumor | C119: AKAP13 | D119: 17.542786
A120: RC80 | B120: Tumor | C120: AKAP13 | D120: 22.655886
A121: RC81 | B121: Tumor | C121: AKAP13 | D121: 40.518192
A122: RC82 | B122: Tumor | C122: AKAP13 | D122: 17.775852
A123: RC83 | B123: Tumor | C123: AKAP13 | D123: 20.035294
A124: RC84 | B124: Tumor | C124: AKAP13 | D124: 16.428755
A125: RC85 | B125: Tumor | C125: AKAP13 | D125: 16.845148
A126: RC86 | B126: Tumor | C126: AKAP13 | D126: 20.418316
A127: RC87 | B127: Tumor | C127: AKAP13 | D127: 17.452696
A128: RC88 | B128: Tumor | C128: AKAP13 | D128: 16.911455
A129: RC89 | B129: Tumor | C129: AKAP13 | D129: 36.361485
A130: RC9 | B130: Tumor | C130: AKAP13 | D130: 34.55756
A131: RC90 | B131: Tumor | C131: AKAP13 | D131: 16.957428
A132: RC91 | B132: Tumor | C132: AKAP13 | D132: 18.714096
A133: RC92 | B133: Tumor | C133: AKAP13 | D133: 17.684614
A134: RC93 | B134: Tumor | C134: AKAP13 | D134: 42.259274
A135: RC94 | B135: Tumor | C135: AKAP13 | D135: 15.132545
A136: RC97 | B136: Tumor | C136: AKAP13 | D136: 20.029657
A137: RC98 | B137: Tumor | C137: AKAP13 | D137: 24.437151
A138: RC99 | B138: Tumor | C138: AKAP13 | D138: 10.579956
A139: RN19 | B139: Tumor | C139: AKAP13 | D139: 12.59093
A140: HC2016151C | B140: Tumor | C140: AKAP13 | D140: 31.355207
A141: RC103 | B141: Normal | C141: AKAP13 | D141: 18.149002
A142: RC19 | B142: Normal | C142: AKAP13 | D142: 24.619514
A143: RC48 | B143: Normal | C143: AKAP13 | D143: 14.228977
A144: RC69 | B144: Normal | C144: AKAP13 | D144: 13.997452
A145: RC71 | B145: Normal | C145: AKAP13 | D145: 32.806141
A146: RN1 | B146: Normal | C146: AKAP13 | D146: 41.100231
A147: RN11 | B147: Normal | C147: AKAP13 | D147: 20.063431
A148: RN12 | B148: Normal | C148: AKAP13 | D148: 71.616821
A149: RN14 | B149: Normal | C149: AKAP13 | D149: 22.379679
A150: RN15 | B150: Normal | C150: AKAP13 | D150: 33.760326
A151: RN16 | B151: Normal | C151: AKAP13 | D151: 28.187521
A152: RN17 | B152: Normal | C152: AKAP13 | D152: 24.774004
A153: RN18 | B153: Normal | C153: AKAP13 | D153: 13.31043
A154: RN2 | B154: Normal | C154: AKAP13 | D154: 16.131634
A155: RN20 | B155: Normal | C155: AKAP13 | D155: 16.341293
A156: RN21 | B156: Normal | C156: AKAP13 | D156: 30.571394
A157: RN22 | B157: Normal | C157: AKAP13 | D157: 8.539834
A158: RN24 | B158: Normal | C158: AKAP13 | D158: 188.925995
A159: RN26 | B159: Normal | C159: AKAP13 | D159: 26.434603
A160: RN28 | B160: Normal | C160: AKAP13 | D160: 16.307634
A161: RN3 | B161: Normal | C161: AKAP13 | D161: 53.260643
A162: RN31 | B162: Normal | C162: AKAP13 | D162: 18.261925
A163: RN32 | B163: Normal | C163: AKAP13 | D163: 17.86887
A164: RN33 | B164: Normal | C164: AKAP13 | D164: 23.160212
A165: RN34 | B165: Normal | C165: AKAP13 | D165: 14.865085
A166: RN36 | B166: Normal | C166: AKAP13 | D166: 21.651159
A167: RN4 | B167: Normal | C167: AKAP13 | D167: 31.458065
A168: RN5 | B168: Normal | C168: AKAP13 | D168: 16.213577
A169: RN6 | B169: Normal | C169: AKAP13 | D169: 34.52858
A170: RN7 | B170: Normal | C170: AKAP13 | D170: 109.684586
A171: RN8 | B171: Normal | C171: AKAP13 | D171: 21.523685
A172: RN89 | B172: Normal | C172: AKAP13 | D172: 174.730118
A173: RN9 | B173: Normal | C173: AKAP13 | D173: 23.062998
A174: RN90 | B174: Normal | C174: AKAP13 | D174: 120.485817
A175: RN92 | B175: Normal | C175: AKAP13 | D175: 23.25552
A176: RN93 | B176: Normal | C176: AKAP13 | D176: 23.41312
A177: RN94 | B177: Normal | C177: AKAP13 | D177: 19.228773
A178: RN96 | B178: Normal | C178: AKAP13 | D178: 31.963745
A179: RN97 | B179: Normal | C179: AKAP13 | D179: 18.754822
A180: HC2016033C | B180: Tumor | C180: ALDH1A1 | D180: 33.979664
A181: HC2016044C | B181: Tumor | C181: ALDH1A1 | D181: 22.060179
A182: HC2017020C | B182: Tumor | C182: ALDH1A1 | D182: 702.168762
A183: HC2017028C | B183: Tumor | C183: ALDH1A1 | D183: 17.875546
A184: HC2017030C | B184: Tumor | C184: ALDH1A1 | D184: 72.375389
A185: HC2017058C | B185: Tumor | C185: ALDH1A1 | D185: 36.047256
A186: HC2017109C | B186: Tumor | C186: ALDH1A1 | D186: 58.812202
A187: HC2017116C | B187: Tumor | C187: ALDH1A1 | D187: 324.81131
A188: HC2019096C | B188: Tumor | C188: ALDH1A1 | D188: 4.079761
A189: HC2019101C | B189: Tumor | C189: ALDH1A1 | D189: 3.082879
A190: HC2019107C | B190: Tumor | C190: ALDH1A1 | D190: 72.145477
A191: HC2019200C | B191: Tumor | C191: ALDH1A1 | D191: 675.201172
A192: RC1 | B192: Tumor | C192: ALDH1A1 | D192: 77.743332
A193: RC101 | B193: Tumor | C193: ALDH1A1 | D193: 2.842368
A194: RC11 | B194: Tumor | C194: ALDH1A1 | D194: 25.034536
A195: RC12 | B195: Tumor | C195: ALDH1A1 | D195: 6.585547
A196: RC14 | B196: Tumor | C196: ALDH1A1 | D196: 177.014328
A197: RC15 | B197: Tumor | C197: ALDH1A1 | D197: 50.834648
A198: RC16 | B198: Tumor | C198: ALDH1A1 | D198: 82.233086
A199: RC17 | B199: Tumor | C199: ALDH1A1 | D199: 80.216026
A200: RC18 | B200: Tumor | C200: ALDH1A1 | D200: 172.431915
... 4630 more rows

Sheet Figure S6
A3: Figure S6a
B4: Well | C4: Well Position | D4: Sample Name | E4: Target Name | F4: CT | H4: Well | I4: Well Position | J4: Sample Name | K4: Target Name | L4: CT | N4: △ct | O4: average △ct | P4: △△ct | Q4: 2^-△△ct
B5: 1 | C5: A1 | D5: 1 Caski siLENG9 NC 21.10.28 24h | E5: 1 LENG9_F/R | F5: 24.797 | H5: 7 | I5: A7 | J5: 1 Caski siLENG9 NC 21.10.28 24h | K5: 3 GAPDH | L5: 12.375 | N5: =F5-L5 -> 12.4218511581421 | O5: =AVERAGE(N5:N7) -> 12.5387369791667 | P5: =N5-O5 -> -0.1168858210246 | Q5: =2^-P5 -> 1.0843915836228
B6: 2 | C6: A2 | D6: 1 Caski siLENG9 NC 21.10.28 24h | E6: 1 LENG9_F/R | F6: 24.971 | H6: 8 | I6: A8 | J6: 1 Caski siLENG9 NC 21.10.28 24h | K6: 3 GAPDH | L6: 12.230 | N6: =F6-L6 -> 12.7411289215088 | O6: =AVERAGE(N5:N7) -> 12.5387369791667 | P6: =N6-O6 -> 0.2023919423421 | Q6: =2^-P6 -> 0.8691084140900
B7: 3 | C7: A3 | D7: 1 Caski siLENG9 NC 21.10.28 24h | E7: 1 LENG9_F/R | F7: 24.732 | H7: 9 | I7: A9 | J7: 1 Caski siLENG9 NC 21.10.28 24h | K7: 3 GAPDH | L7: 12.279 | N7: 12.4532308578491 | O7: =AVERAGE(N5:N7) -> 12.5387369791667 | P7: -0.0855061213175 | Q7: 1.0610599134757
B8: 13 | C8: B1 | D8: 2 Caski siLENG9 #1 21.10.28 24h | E8: 1 LENG9_F/R | F8: 25.864 | H8: 19 | I8: B7 | J8: 2 Caski siLENG9 #1 21.10.28 24h | K8: 3 GAPDH | L8: 12.329 | N8: 13.5348253250122 | O8: 12.5387369791667 | P8: 0.9960883458455 | Q8: 0.5013575155439
B9: 14 | C9: B2 | D9: 2 Caski siLENG9 #1 21.10.28 24h | E9: 1 LENG9_F/R | F9: 26.101 | H9: 20 | I9: B8 | J9: 2 Caski siLENG9 #1 21.10.28 24h | K9: 3 GAPDH | L9: 12.318 | N9: 13.7825012207031 | O9: 12.5387369791667 | P9: 1.2437642415365 | Q9: 0.4222694433677
B10: 15 | C10: B3 | D10: 2 Caski siLENG9 #1 21.10.28 24h | E10: 1 LENG9_F/R | F10: 26.002 | H10: 21 | I10: B9 | J10: 2 Caski siLENG9 #1 21.10.28 24h | K10: 3 GAPDH | L10: 12.489 | N10: 13.5129747390747 | O10: 12.5387369791667 | P10: 0.9742377599080 | Q10: 0.5090087070062
B11: 25 | C11: C1 | D11: 3 Caski siLENG9 #2 21.10.28 24h | E11: 1 LENG9_F/R | F11: 26.193 | H11: 31 | I11: C7 | J11: 3 Caski siLENG9 #2 21.10.28 24h | K11: 3 GAPDH | L11: 12.415 | N11: 13.7779741287231 | O11: 12.5387369791667 | P11: 1.2392371495565 | Q11: 0.4235965811359
B12: 26 | C12: C2 | D12: 3 Caski siLENG9 #2 21.10.28 24h | E12: 1 LENG9_F/R | F12: 26.372 | H12: 32 | I12: C8 | J12: 3 Caski siLENG9 #2 21.10.28 24h | K12: 3 GAPDH | L12: 12.147 | N12: 14.2251443862915 | O12: 12.5387369791667 | P12: 1.6864074071248 | Q12: 0.3106996653947
B13: 27 | C13: C3 | D13: 3 Caski siLENG9 #2 21.10.28 24h | E13: 1 LENG9_F/R | F13: 26.319 | H13: 33 | I13: C9 | J13: 3 Caski siLENG9 #2 21.10.28 24h | K13: 3 GAPDH | L13: 12.275 | N13: 14.0448112487793 | O13: 12.5387369791667 | P13: 1.5060742696126 | Q13: 0.3520679318844
B14: 37 | C14: D1 | D14: 4 Caski siLENG9 #3 21.10.28 24h | E14: 1 LENG9_F/R | F14: 26.333 | H14: 43 | I14: D7 | J14: 4 Caski siLENG9 #3 21.10.28 24h | K14: 3 GAPDH | L14: 12.527 | N14: 13.8056077957153 | O14: 12.5387369791667 | P14: 1.2668708165487 | Q14: 0.4155601396928
B15: 38 | C15: D2 | D15: 4 Caski siLENG9 #3 21.10.28 24h | E15: 1 LENG9_F/R | F15: 26.210 | H15: 44 | I15: D8 | J15: 4 Caski siLENG9 #3 21.10.28 24h | K15: 3 GAPDH | L15: 12.301 | N15: 13.9086580276489 | O15: 12.5387369791667 | P15: 1.3699210484823 | Q15: 0.3869124215970
B16: 39 | C16: D3 | D16: 4 Caski siLENG9 #3 21.10.28 24h | E16: 1 LENG9_F/R | F16: 26.183 | H16: 45 | I16: D9 | J16: 4 Caski siLENG9 #3 21.10.28 24h | K16: 3 GAPDH | L16: 12.564 | N16: 13.6190299987793 | O16: 12.5387369791667 | P16: 1.0802930196126 | Q16: 0.4729327582598
O19: Mean | P19: SEM | Q19: N
N20: siLENG9 NC | O20: 1.004853467 | P20: 0.1181360991 | Q20: 3
N21: siLENG9 #1 | O21: 0.4775452 | P21: 0.0480228671 | Q21: 3
N22: siLENG9 #2 | O22: 0.3621214 | P22: 0.05711595359 | Q22: 3
N23: siLENG9 #3 | O23: 0.4251351 | P23: 0.04380225762 | Q23: 3
A33: Figure S6b
B34: CaSki
B35: Absorption | C35: siLENG9 NC | H35: siLENG9 #1 | M35: siLENG9 #2 | R35: siLENG9 #3
B36: 0H | C36: 0.2168 | D36: 0.2152 | E36: 0.2209 | F36: 0.2178 | G36: 0.2147 | H36: 0.2131 | I36: 0.2091 | J36: 0.212 | K36: 0.21 | L36: 0.2126 | M36: 0.1895 | N36: 0.191 | O36: 0.1947 | P36: 0.1951 | Q36: 0.1966 | R36: 0.2014 | S36: 0.2063 | T36: 0.1989 | U36: 0.196 | V36: 0.201
B37: 24H | C37: 0.3098 | D37: 0.2962 | E37: 0.3034 | F37: 0.2952 | G37: 0.3079 | H37: 0.2677 | I37: 0.2759 | J37: 0.2745 | K37: 0.2922 | L37: 0.2745 | M37: 0.2355 | N37: 0.2315 | O37: 0.238 | P37: 0.2352 | Q37: 0.2364 | R37: 0.2639 | S37: 0.2861 | T37: 0.2671 | U37: 0.2793 | V37: 0.2646
B38: 48H | C38: 0.5001 | D38: 0.488 | E38: 0.4928 | F38: 0.4752 | G38: 0.5098 | H38: 0.3607 | I38: 0.3756 | J38: 0.3703 | K38: 0.3581 | L38: 0.3842 | M38: 0.2917 | N38: 0.3109 | O38: 0.2998 | P38: 0.3082 | Q38: 0.3062 | R38: 0.3458 | S38: 0.3577 | T38: 0.3563 | U38: 0.3786 | V38: 0.3691
B39: 72H | C39: 0.62 | D39: 0.6374 | E39: 0.6229 | F39: 0.6414 | G39: 0.6365 | H39: 0.4177 | I39: 0.4426 | J39: 0.4477 | K39: 0.4465 | L39: 0.4392 | M39: 0.3604 | N39: 0.3542 | O39: 0.339 | P39: 0.3474 | Q39: 0.3574 | R39: 0.3996 | S39: 0.4026 | T39: 0.409 | U39: 0.4158 | V39: 0.4233
B40: 96H | C40: 1.0185 | D40: 0.9732 | E40: 0.9676 | F40: 0.9323 | G40: 1.0065 | H40: 0.6692 | I40: 0.6817 | J40: 0.7261 | K40: 0.7025 | L40: 0.6738 | M40: 0.5259 | N40: 0.4838 | O40: 0.5069 | P40: 0.4871 | Q40: 0.545 | R40: 0.549 | S40: 0.6012 | T40: 0.5868 | U40: 0.6085 | V40: 0.5936
B41: 120H | C41: 1.1799 | D41: 1.1666 | E41: 1.1463 | F41: 1.1492 | G41: 1.1242 | H41: 0.8732 | I41: 0.9 | J41: 0.9477 | K41: 0.9342 | L41: 1.0064 | M41: 0.7318 | N41: 0.686 | O41: 0.7483 | P41: 0.6924 | Q41: 0.7146 | R41: 0.7365 | S41: 0.7357 | T41: 0.7683 | U41: 0.7362 | V41: 0.7808
B43: Cell Proliferation Rate | C43: siLENG9 NC | H43: siLENG9 #1 | M43: siLENG9 #2 | R43: siLENG9 #3 | Y43: siLENG9 NC | AB43: siLENG9 #1 | AE43: siLENG9 #2 | AH43: siLENG9 #3
B44: 0H | C44: =(C36-C36)/C36 -> 0 | D44: =(D36-D36)/D36 -> 0 | E44: 0 | F44: 0 | G44: 0 | H44: 0 | I44: 0 | J44: 0 | K44: 0 | L44: 0 | M44: 0 | N44: 0 | O44: 0 | P44: 0 | Q44: 0 | R44: 0 | S44: 0 | T44: 0 | U44: 0 | V44: 0 | Y44: Mean | Z44: SEM | AA44: N | AB44: Mean | AC44: SEM | AD44: N | AE44: Mean | AF44: SEM | AG44: N | AH44: Mean | AI44: SEM | AJ44: N
B45: 24H | C45: =(C37-C36)/C36 -> 0.4289667897 | D45: =(D37-D36)/D36 -> 0.376394052 | E45: 0.3734721593 | F45: 0.3553719008 | G45: 0.4340940848 | H45: 0.2562177382 | I45: 0.3194643711 | J45: 0.2948113208 | K45: 0.3914285714 | L45: 0.2911571025 | M45: 0.2427440633 | N45: 0.2120418848 | O45: 0.2223934258 | P45: 0.2055356228 | Q45: 0.2024415056 | R45: 0.3103277061 | S45: 0.3868153175 | T45: 0.3428858723 | U45: 0.425 | V45: 0.3164179104 | X45: 0H | Y45: 0 | Z45: 0 | AA45: 5 | AB45: 0 | AC45: 0 | AD45: 5 | AE45: 0 | AF45: 0 | AG45: 5 | AH45: 0 | AI45: 0 | AJ45: 5
B46: 48H | C46: =(C38-C36)/C36 -> 1.306734317 | D46: =(D38-D36)/D36 -> 1.267657993 | E46: 1.230873699 | F46: 1.181818182 | G46: 1.374476013 | H46: 0.6926325669 | I46: 0.7962697274 | J46: 0.7466981132 | K46: 0.7052380952 | L46: 0.8071495767 | M46: 0.5393139842 | N46: 0.6277486911 | O46: 0.5398048279 | P46: 0.5797027166 | Q46: 0.5574771109 | R46: 0.7169811321 | S46: 0.7338826951 | T46: 0.7913524384 | U46: 0.9316326531 | V46: 0.836318408 | X46: 24H | Y46: 0.3936598 | Z46: 0.03554269844 | AA46: 5 | AB46: 0.3106158 | AC46: 0.05048916018 | AD46: 5 | AE46: 0.2170314 | AF46: 0.01627708112 | AG46: 5 | AH46: 0.3562894 | AI46: 0.04882312149 | AJ46: 5
B47: 72H | C47: =(C39-C36)/C36 -> 1.859778598 | D47: =(D39-D36)/D36 -> 1.961895911 | E47: 1.819827976 | F47: 1.944903581 | G47: 1.96460177 | H47: 0.9601126232 | I47: 1.116690579 | J47: 1.111792453 | K47: 1.126190476 | L47: 1.065851364 | M47: 0.9018469657 | N47: 0.8544502618 | O47: 0.7411402157 | P47: 0.7806253203 | Q47: 0.8179043744 | R47: 0.9841112214 | S47: 0.9515269026 | T47: 1.056309703 | U47: 1.121428571 | V47: 1.105970149 | X47: 48H | Y47: 1.272312 | Z47: 0.07340008272 | AA47: 5 | AB47: 0.7495978 | AC47: 0.05174876596 | AD47: 5 | AE47: 0.5688096 | AF47: 0.03685174385 | AG47: 5 | AH47: 0.8020334 | AI47: 0.0865505202 | AJ47: 5
B48: 96H | C48: =(C40-C36)/C36 -> 3.697878229 | D48: =(D40-D36)/D36 -> 3.522304833 | E48: 3.380262562 | F48: 3.280532599 | G48: 3.687936656 | H48: 2.140309714 | I48: 2.260162602 | J48: 2.425 | K48: 2.345238095 | L48: 2.169332079 | M48: 1.775197889 | N48: 1.532984293 | O48: 1.603492553 | P48: 1.496668375 | Q48: 1.772126144 | R48: 1.72591857 | S48: 1.914202618 | T48: 1.950226244 | U48: 2.104591837 | V48: 1.953233831 | X48: 72H | Y48: 1.9102018 | Z48: 0.06623027488 | AA48: 5 | AB48: 1.0761274 | AC48: 0.06889952587 | AD48: 5 | AE48: 0.8191932 | AF48: 0.06256229439 | AG48: 5 | AH48: 1.0438694 | AI48: 0.07437225593 | AJ48: 5
B49: 120H | C49: =(C41-C36)/C36 -> 4.442343173 | D49: =(D41-D36)/D36 -> 4.421003717 | E49: 4.189225894 | F49: 4.276400367 | G49: 4.236143456 | H49: 3.097606757 | I49: 3.304160689 | J49: 3.470283019 | K49: 3.448571429 | L49: 3.733772342 | M49: 2.861741425 | N49: 2.591623037 | O49: 2.843348742 | P49: 2.548949257 | Q49: 2.634791455 | R49: 2.656901688 | S49: 2.566165778 | T49: 2.862745098 | U49: 2.756122449 | V49: 2.884577114 | X49: 96H | Y49: 3.5137832 | Z49: 0.1847473695 | AA49: 5 | AB49: 2.2680086 | AC49: 0.1190758552 | AD49: 5 | AE49: 1.6360938 | AF49: 0.1313285333 | AG49: 5 | AH49: 1.9296348 | AI49: 0.1353968327 | AJ49: 5
X50: 120H | Y50: 4.3130232 | Z50: 0.1128727541 | AA50: 5 | AB50: 3.4108788 | AC50: 0.2338468992 | AD50: 5 | AE50: 2.6960906 | AF50: 0.1461564763 | AG50: 5 | AH50: 2.7453024 | AI50: 0.1352883243 | AJ50: 5
B51: P value | C51: NC vs #1 | D51: NC vs #2 | E51: NC vs #3
B52: 0H
B53: 24H | C53: 0.01688 | D53: 8e-06 | E53: 0.203827
B54: 48H | C54: 1e-06 | D54: <0.000001 | E54: 1.5e-05
B55: 72H | C55: <0.000001 | D55: <0.000001 | E55: <0.000001
B56: 96H | C56: 1e-06 | D56: <0.000001 | E56: <0.000001
B57: 120H | C57: 5.4e-05 | D57: <0.000001 | E57: <0.000001
A70: Figure S6c
B71: Migration
C73: siLENG NC | F73: siLENG9 #1 | I73: siLENG9 #2 | L73: siLENG9 #3
B74: numbers(counted by imageJ) | C74: 277 | D74: 233 | E74: 314 | F74: 10 | G74: 17 | H74: 24 | I74: 131 | J74: 113 | K74: 80 | L74: 2 | M74: 5 | N74: 11
B75: averge | C75: 274.6666667
B76: Relative cell numbers | C76: 1.008495146 | D76: 0.8483009709 | E76: 1.143203883 | F76: 0.03640776699 | G76: 0.06189320388 | H76: 0.08737864078 | I76: 0.4769417476 | J76: 0.411407767 | K76: 0.2912621359 | L76: 0.007281553398 | M76: 0.0182038835 | N76: 0.04004854369
B79: Invasion
C81: siLENG NC | F81: siLENG9 #1 | I81: siLENG9 #2 | L81: siLENG9 #3
B82: numbers(counted by imageJ) | C82: 69 | D82: 108 | E82: 91 | F82: 42 | G82: 32 | H82: 33 | I82: 20 | J82: 13 | K82: 21 | L82: 6 | M82: 8 | N82: 3
B83: averge | C83: 89.33333333
B84: Relative cell numbers | C84: 0.7723880597 | D84: 1.208955224 | E84: 1.018656716 | F84: 0.4701492537 | G84: 0.3582089552 | H84: 0.3694029851 | I84: 0.223880597 | J84: 0.1455223881 | K84: 0.2350746269 | L84: 0.0671641791 | M84: 0.08955223881 | N84: 0.03358208955
B87: Migration | H87: Invasion
C88: Mean | D88: SEM | E88: N | I88: Mean | J88: SEM | K88: N
B89: siLENG9 NC | C89: 1 | D89: 0.1476349167 | E89: 3 | H89: siLENG9 NC | I89: 1 | J89: 0.2188806732 | K89: 3
B90: siLENG9 #1 | C90: 0.06189333333 | D90: 0.0254855 | E90: 3 | H90: siLENG9 #1 | I90: 0.3992536667 | J90: 0.06165174471 | K90: 3
B91: siLENG9 #2 | C91: 0.393204 | D91: 0.09416902257 | E91: 3 | H91: siLENG9 #2 | I91: 0.2014926667 | J91: 0.04879408831 | K91: 3
B92: siLENG9 #3 | C92: 0.021845 | D92: 0.01668417613 | E92: 3 | H92: siLENG9 #3 | I92: 0.06343266667 | J92: 0.02817094889 | K92: 3

Sheet Figure S7
A1: Figure S7
A2: Sample.ID | B2: LINC00290 | C2: HPV.E6 | D2: HPV.E7
A3: ZLR-04 | B3: 0 | C3: 91.442123 | D3: 212.843582
A4: ZLR-01 | B4: 1.584017 | C4: 2.910028 | D4: 8.120026
A5: ZLR-02 | B5: 0 | C5: 140.751831 | D5: 460.193756
A6: ZLR-03 | B6: 0 | C6: 67.78392 | D6: 178.248245
A7: ZLR-14 | B7: 0 | C7: 162.948975 | D7: 285.64917
A8: ZLR-16 | B8: 0 | C8: 72.972107 | D8: 235.492279
A9: ZLR-12 | B9: 0 | C9: 271.554199 | D9: 539.181152
A10: ZLR-13 | B10: 0 | C10: 777.193176 | D10: 1719.043945
A11: ZLR-06 | B11: 0 | C11: 320.53717 | D11: 683.443604
A12: ZLR-11 | B12: 0 | C12: 600.083618 | D12: 1250.994873
A13: ZLR-09 | B13: 0 | C13: 703.96051 | D13: 1261.580444
A14: ZLR-15 | B14: 0 | C14: 152.059875 | D14: 217.956497
A15: ZLR-10 | B15: 0 | C15: 12.851626 | D15: 20.339226
A16: ZLR-08 | B16: 0 | C16: 504.267548 | D16: 1213.561279
A17: HC2016033C | B17: 0 | C17: 40.405949 | D17: 96.672592
A18: HC2016151C | B18: 0 | C18: 52.30439 | D18: 146.381607
A19: HC2017020C | B19: 0 | C19: 117.920761 | D19: 280.533325
A20: HC2017028C | B20: 0 | C20: 63.197765 | D20: 200.452789
A21: HC2017058C | B21: 0 | C21: 36.06554 | D21: 83.060493
A22: HC2017109C | B22: 0 | C22: 1.147353 | D22: 2.295923
A23: HC2017116C | B23: 0 | C23: 580.619141 | D23: 1208.329834
A24: HC2019107C | B24: 0 | C24: 10.274934 | D24: 21.260851
A25: HC2019200C | B25: 0 | C25: 219.651337 | D25: 515.775024
A26: RC1 | B26: 0 | C26: 2.108794 | D26: 4.63569
A27: RC101 | B27: 0 | C27: 234.221191 | D27: 427.096069
A28: RC11 | B28: 0 | C28: 57.743877 | D28: 131.994293
A29: RC12 | B29: 0 | C29: 29.330008 | D29: 51.988766
A30: RC14 | B30: 0 | C30: 160.218246 | D30: 301.982544
A31: RC15 | B31: 0 | C31: 168.863937 | D31: 397.285583
A32: RC16 | B32: 0 | C32: 157.151855 | D32: 329.702148
A33: RC17 | B33: 0 | C33: 29.826656 | D33: 69.880051
A34: RC18 | B34: 0 | C34: 55.046951 | D34: 131.817291
A35: RC2 | B35: 0 | C35: 176.401245 | D35: 510.203979
A36: RC20 | B36: 0 | C36: 319.172028 | D36: 813.058655
A37: RC21 | B37: 0 | C37: 72.561821 | D37: 168.884583
A38: RC22 | B38: 0 | C38: 224.86618 | D38: 431.28833
A39: RC23 | B39: 0 | C39: 29.295427 | D39: 71.680534
A40: RC24 | B40: 0 | C40: 0.0414 | D40: 0.172874
A41: RC25 | B41: 0 | C41: 0 | D41: 0.074168
A42: RC26 | B42: 0 | C42: 90.159714 | D42: 204.218796
A43: RC27 | B43: 0 | C43: 206.898407 | D43: 332.572083
A44: RC28 | B44: 0 | C44: 520.771606 | D44: 970.868958
A45: RC29 | B45: 0 | C45: 246.251328 | D45: 717.498413
A46: RC3 | B46: 0 | C46: 0.546565 | D46: 1.423142
A47: RC30 | B47: 0 | C47: 119.543404 | D47: 243.284363
A48: RC32 | B48: 0 | C48: 58.450119 | D48: 96.469704
A49: RC33 | B49: 0 | C49: 200.420715 | D49: 389.689789
A50: RC34 | B50: 0 | C50: 155.824554 | D50: 378.569031
A51: RC35 | B51: 0 | C51: 298.227905 | D51: 646.131226
A52: RC36 | B52: 0 | C52: 0.158338 | D52: 0.628407
A53: RC39 | B53: 0 | C53: 89.191803 | D53: 199.87764
A54: RC41 | B54: 0 | C54: 167.829895 | D54: 577.015503
A55: RC42 | B55: 0 | C55: 86.142815 | D55: 243.758163
A56: RC43 | B56: 0 | C56: 1.350974 | D56: 4.290979
A57: RC44 | B57: 0 | C57: 501.379547 | D57: 1174.335449
A58: RC45 | B58: 0 | C58: 56.969776 | D58: 138.277191
A59: RC46 | B59: 0 | C59: 73.279419 | D59: 139.707108
A60: RC47 | B60: 0 | C60: 124.900269 | D60: 263.138367
A61: RC49 | B61: 0 | C61: 141.749939 | D61: 305.80011
A62: RC50 | B62: 0 | C62: 72.214684 | D62: 133.04216
A63: RC51 | B63: 0 | C63: 271.327148 | D63: 480.902313
A64: RC52 | B64: 0 | C64: 0.27301 | D64: 0.559252
A65: RC53 | B65: 0 | C65: 94.058662 | D65: 217.533142
A66: RC54 | B66: 0 | C66: 360.918793 | D66: 612.0047
A67: RC55 | B67: 0 | C67: 102.824753 | D67: 143.613373
A68: RC56 | B68: 0 | C68: 375.188629 | D68: 662.531189
A69: RC57 | B69: 0 | C69: 981.155823 | D69: 1977.63269
A70: RC58 | B70: 0 | C70: 43.169685 | D70: 76.588287
A71: RC59 | B71: 0 | C71: 164.432587 | D71: 236.51709
A72: RC60 | B72: 0 | C72: 0.574844 | D72: 0.425437
A73: RC61 | B73: 0 | C73: 71.62796 | D73: 235.427368
A74: RC62 | B74: 0 | C74: 154.918732 | D74: 293.593903
A75: RC63 | B75: 0 | C75: 190.191803 | D75: 426.334595
A76: RC64 | B76: 0 | C76: 447.130951 | D76: 621.770996
A77: RC65 | B77: 0 | C77: 184.577377 | D77: 309.632324
A78: RC67 | B78: 0 | C78: 137.092087 | D78: 331.329529
A79: RC68 | B79: 0 | C79: 41.810581 | D79: 87.4757
A80: RC70 | B80: 0 | C80: 304.520569 | D80: 590.121826
A81: RC72 | B81: 0 | C81: 55.778843 | D81: 93.49942
A82: RC73 | B82: 0 | C82: 0.3576 | D82: 1.048957
A83: RC74 | B83: 0 | C83: 197.342316 | D83: 391.747192
A84: RC75 | B84: 0 | C84: 72.992683 | D84: 436.561951
A85: RC76 | B85: 0 | C85: 116.629601 | D85: 342.699341
A86: RC77 | B86: 0 | C86: 336.769592 | D86: 723.838074
A87: RC78 | B87: 0 | C87: 181.884216 | D87: 411.710175
A88: RC79 | B88: 0 | C88: 179.103333 | D88: 381.891052
A89: RC8 | B89: 0 | C89: 302.83725 | D89: 890.909668
A90: RC80 | B90: 0 | C90: 67.909447 | D90: 163.887299
A91: RC81 | B91: 0 | C91: 63.33588 | D91: 161.559326
A92: RC82 | B92: 0 | C92: 144.775742 | D92: 264.963959
A93: RC83 | B93: 0 | C93: 164.920563 | D93: 358.962311
A94: RC84 | B94: 0 | C94: 142.259796 | D94: 257.864014
A95: RC85 | B95: 0 | C95: 141.079971 | D95: 277.199432
A96: RC86 | B96: 0 | C96: 170.008255 | D96: 337.403778
A97: RC87 | B97: 0 | C97: 656.836792 | D97: 2062.412842
A98: RC88 | B98: 0 | C98: 231.448166 | D98: 449.309631
A99: RC9 | B99: 0 | C99: 115.06321 | D99: 236.340836
A100: RC90 | B100: 0 | C100: 1539.100708 | D100: 3096.275879
A101: RC91 | B101: 0 | C101: 171.437668 | D101: 308.453522
A102: RC92 | B102: 0 | C102: 81.334442 | D102: 112.413216
A103: RC94 | B103: 0 | C103: 323.041534 | D103: 554.163208
A104: RC98 | B104: 0 | C104: 132.986954 | D104: 214.05687
A105: RC99 | B105: 0 | C105: 225.103058 | D105: 522.192688

Sheet Figure S8
A1: Figure S8a | D1: Figure S8b | H1: Figure S8c
A2: PLID | B2: count | D2: PLID | E2: svType | F2: count | H2: svType | I2: svLength
A3: ZLR-06 | B3: 9263 | D3: ZLR-06 | E3: DEL | F3: 1036 | H3: INS | I3: 72
A4: ZLR-07 | B4: 5543 | D4: ZLR-06 | E4: DUP | F4: 583 | H4: DEL | I4: 140
A5: ZLR-09 | B5: 5111 | D5: ZLR-06 | E5: INS | F5: 667 | H5: DEL | I5: 206
A6: ZLR-10 | B6: 3211 | D6: ZLR-06 | E6: BND | F6: 740 | H6: DEL | I6: 518
A7: ZLR-11 | B7: 9541 | D7: ZLR-06 | E7: INVDUP | F7: 5458 | H7: INS | I7: 122
A8: ZLR-12 | B8: 7791 | D8: ZLR-06 | E8: INV | F8: 779 | H8: DEL | I8: 62
A9: ZLR-13 | B9: 10917 | D9: ZLR-07 | E9: DEL | F9: 852 | H9: DEL | I9: 173
A10: ZLR-14 | B10: 3157 | D10: ZLR-07 | E10: DUP | F10: 405 | H10: INS | I10: 136
A11: ZLR-15 | B11: 5699 | D11: ZLR-07 | E11: BND | F11: 431 | H11: DEL | I11: 61
A12: ZLR-16 | B12: 5404 | D12: ZLR-07 | E12: INVDUP | F12: 2830 | H12: DUP | I12: 63211
A13: ZLR-01 | B13: 11219 | D13: ZLR-07 | E13: INS | F13: 596 | H13: DUP | I13: 286
A14: ZLR-02 | B14: 1979 | D14: ZLR-07 | E14: INV | F14: 429 | H14: DEL | I14: 52625
A15: ZLR-03 | B15: 2424 | D15: ZLR-09 | E15: BND | F15: 606 | H15: INVDUP | I15: 1462
A16: ZLR-04 | B16: 5688 | D16: ZLR-09 | E16: DUP | F16: 434 | H16: DUP | I16: 2404
D17: ZLR-09 | E17: INS | F17: 477 | H17: DEL | I17: 767
D18: ZLR-09 | E18: INV | F18: 677 | H18: DUP | I18: 244
D19: ZLR-09 | E19: DEL | F19: 827 | H19: DUP | I19: 42984
D20: ZLR-09 | E20: INVDUP | F20: 2090 | H20: DUP | I20: 841
D21: ZLR-10 | E21: DEL | F21: 786 | H21: DEL | I21: 3914
D22: ZLR-10 | E22: DUP | F22: 362 | H22: DEL | I22: 5937
D23: ZLR-10 | E23: INS | F23: 510 | H23: DUP | I23: 56447
D24: ZLR-10 | E24: INVDUP | F24: 754 | H24: DEL | I24: 200
D25: ZLR-10 | E25: INV | F25: 389 | H25: DEL | I25: 149
D26: ZLR-10 | E26: BND | F26: 410 | H26: DEL | I26: 57
D27: ZLR-11 | E27: BND | F27: 517 | H27: DUP | I27: 641
D28: ZLR-11 | E28: DEL | F28: 813 | H28: INS | I28: 55
D29: ZLR-11 | E29: INS | F29: 559 | H29: DEL | I29: 214
D30: ZLR-11 | E30: INV | F30: 488 | H30: DEL | I30: 116
D31: ZLR-11 | E31: INVDUP | F31: 6734 | H31: INVDUP | I31: 363
D32: ZLR-11 | E32: DUP | F32: 430 | H32: DEL | I32: 65
D33: ZLR-12 | E33: DUP | F33: 402 | H33: INS | I33: 283
D34: ZLR-12 | E34: INS | F34: 572 | H34: INS | I34: 63
D35: ZLR-12 | E35: INV | F35: 373 | H35: INVDUP | I35: 1003
D36: ZLR-12 | E36: INVDUP | F36: 5242 | H36: INS | I36: 83
D37: ZLR-12 | E37: DEL | F37: 799 | H37: INVDUP | I37: 247
D38: ZLR-12 | E38: BND | F38: 403 | H38: DEL | I38: 61
D39: ZLR-13 | E39: DEL | F39: 995 | H39: INVDUP | I39: 4024
D40: ZLR-13 | E40: DUP | F40: 557 | H40: INVDUP | I40: 411
D41: ZLR-13 | E41: BND | F41: 575 | H41: INV | I41: 65024
D42: ZLR-13 | E42: INV | F42: 585 | H42: INV | I42: 61433
D43: ZLR-13 | E43: INVDUP | F43: 7552 | H43: INV | I43: 55436
D44: ZLR-13 | E44: INS | F44: 653 | H44: DUP | I44: 224230
D45: ZLR-14 | E45: INVDUP | F45: 64 | H45: INVDUP | I45: 1929
D46: ZLR-14 | E46: INS | F46: 619 | H46: DEL | I46: 23263
D47: ZLR-14 | E47: INV | F47: 529 | H47: INV | I47: 404954
D48: ZLR-14 | E48: BND | F48: 521 | H48: INV | I48: 1582
D49: ZLR-14 | E49: DEL | F49: 934 | H49: DUP | I49: 6296
D50: ZLR-14 | E50: DUP | F50: 490 | H50: INVDUP | I50: 60
D51: ZLR-15 | E51: DUP | F51: 537 | H51: INV | I51: 4835242
D52: ZLR-15 | E52: INS | F52: 620 | H52: INVDUP | I52: 2176
D53: ZLR-15 | E53: BND | F53: 664 | H53: DEL | I53: 334264
D54: ZLR-15 | E54: DEL | F54: 979 | H54: DUP | I54: 334248
D55: ZLR-15 | E55: INVDUP | F55: 2260 | H55: INV | I55: 84105
D56: ZLR-15 | E56: INV | F56: 639 | H56: DEL | I56: 1762
D57: ZLR-16 | E57: INVDUP | F57: 1491 | H57: INV | I57: 79240
D58: ZLR-16 | E58: DEL | F58: 1124 | H58: DUP | I58: 62795
D59: ZLR-16 | E59: INV | F59: 681 | H59: INV | I59: 2084
D60: ZLR-16 | E60: BND | F60: 802 | H60: DEL | I60: 197562
D61: ZLR-16 | E61: DUP | F61: 621 | H61: INV | I61: 134407
D62: ZLR-16 | E62: INS | F62: 685 | H62: INVDUP | I62: 744
D63: ZLR-01 | E63: BND | F63: 680 | H63: INS | I63: 4999
D64: ZLR-01 | E64: INS | F64: 242 | H64: INVDUP | I64: 3049
D65: ZLR-01 | E65: INV | F65: 617 | H65: DEL | I65: 164
D66: ZLR-01 | E66: DEL | F66: 9164 | H66: INS | I66: 55
D67: ZLR-01 | E67: DUP | F67: 439 | H67: INVDUP | I67: 3795
D68: ZLR-01 | E68: INVDUP | F68: 77 | H68: INVDUP | I68: 2222
D69: ZLR-02 | E69: INVDUP | F69: 342 | H69: INVDUP | I69: 515
D70: ZLR-02 | E70: DEL | F70: 347 | H70: INVDUP | I70: 1015
D71: ZLR-02 | E71: DUP | F71: 342 | H71: INVDUP | I71: 2790
D72: ZLR-02 | E72: BND | F72: 338 | H72: DUP | I72: 426
D73: ZLR-02 | E73: INS | F73: 262 | H73: DEL | I73: 63183
D74: ZLR-02 | E74: INV | F74: 348 | H74: DEL | I74: 24927
D75: ZLR-03 | E75: BND | F75: 312 | H75: DUP | I75: 24611
D76: ZLR-03 | E76: DEL | F76: 281 | H76: INVDUP | I76: 323
D77: ZLR-03 | E77: INV | F77: 385 | H77: INS | I77: 999
D78: ZLR-03 | E78: INVDUP | F78: 920 | H78: INS | I78: 71
D79: ZLR-03 | E79: DUP | F79: 309 | H79: DEL | I79: 2953
D80: ZLR-03 | E80: INS | F80: 217 | H80: INVDUP | I80: 1046
D81: ZLR-04 | E81: BND | F81: 830 | H81: INS | I81: 124
D82: ZLR-04 | E82: DEL | F82: 710 | H82: INVDUP | I82: 108
D83: ZLR-04 | E83: DUP | F83: 710 | H83: INV | I83: 99318
D84: ZLR-04 | E84: INS | F84: 458 | H84: INV | I84: 33613
D85: ZLR-04 | E85: INV | F85: 830 | H85: INVDUP | I85: 1514
D86: ZLR-04 | E86: INVDUP | F86: 2150 | H86: INVDUP | I86: 1444
H87: INV | I87: 7001
H88: INVDUP | I88: 1127
H89: INVDUP | I89: 8822
H90: INVDUP | I90: 160
H91: INVDUP | I91: 1096
H92: DEL | I92: 150006
H93: INVDUP | I93: 1469
H94: DEL | I94: 122
H95: INS | I95: 5652
H96: INS | I96: 275
H97: INV | I97: 100
H98: INV | I98: 313
H99: INVDUP | I99: 1443
H100: INVDUP | I100: 2748
H101: INVDUP | I101: 689
H102: INVDUP | I102: 402
H103: INVDUP | I103: 1367
H104: DUP | I104: 240
H105: INVDUP | I105: 2255
H106: INVDUP | I106: 1696
H107: INVDUP | I107: 147
H108: INVDUP | I108: 637
H109: INVDUP | I109: 2627
H110: INV | I110: 264933
H111: INV | I111: 240297
H112: INVDUP | I112: 4575
H113: INVDUP | I113: 4495
H114: INVDUP | I114: 81
H115: INVDUP | I115: 425
H116: INVDUP | I116: 102
H117: INVDUP | I117: 1516
H118: DEL | I118: 62
H119: DUP | I119: 197
H120: INVDUP | I120: 75
H121: INV | I121: 250620
H122: INV | I122: 216169
H123: INV | I123: 212691
H124: INV | I124: 185518
H125: INV | I125: 179753
H126: INV | I126: 171362
H127: INVDUP | I127: 1347
H128: INVDUP | I128: 749
H129: INVDUP | I129: 861
H130: DEL | I130: 404
H131: DUP | I131: 1893
H132: DUP | I132: 4518
H133: INV | I133: 3817
H134: INV | I134: 1184
H135: INVDUP | I135: 350
H136: INVDUP | I136: 242
H137: INS | I137: 383
H138: INVDUP | I138: 780
H139: INS | I139: 3594
H140: DUP | I140: 888
H141: INS | I141: 67
H142: INVDUP | I142: 2146
H143: DUP | I143: 967
H144: INVDUP | I144: 2107
H145: INVDUP | I145: 1309
H146: INVDUP | I146: 353
H147: INVDUP | I147: 73
H148: INVDUP | I148: 201
H149: INVDUP | I149: 795
H150: INVDUP | I150: 986
H151: INVDUP | I151: 145
H152: INVDUP | I152: 371
H153: INVDUP | I153: 72
H154: INVDUP | I154: 4060
H155: INVDUP | I155: 259
H156: INVDUP | I156: 1977
H157: INVDUP | I157: 1582
H158: INVDUP | I158: 2267
H159: INVDUP | I159: 1364
H160: INVDUP | I160: 174
H161: INS | I161: 999
H162: INVDUP | I162: 189
H163: INVDUP | I163: 1740
H164: INVDUP | I164: 2769
H165: INVDUP | I165: 4611
H166: INVDUP | I166: 287
H167: INVDUP | I167: 359
H168: INVDUP | I168: 1798
H169: INVDUP | I169: 236
H170: INVDUP | I170: 621
H171: INVDUP | I171: 1018
H172: INS | I172: 303
H173: INVDUP | I173: 493
H174: INVDUP | I174: 769
H175: INVDUP | I175: 434
H176: INS | I176: 2534
H177: INVDUP | I177: 1357
H178: INVDUP | I178: 2128
H179: INVDUP | I179: 80
H180: INVDUP | I180: 63
H181: DEL | I181: 54
H182: INVDUP | I182: 287
H183: INVDUP | I183: 2227
H184: INVDUP | I184: 944
H185: INVDUP | I185: 261
H186: INVDUP | I186: 324
H187: INVDUP | I187: 692
H188: INVDUP | I188: 910
H189: INVDUP | I189: 371
H190: INVDUP | I190: 650
H191: INVDUP | I191: 650
H192: INVDUP | I192: 104
H193: INVDUP | I193: 185
H194: INVDUP | I194: 3115
H195: INVDUP | I195: 689
H196: INVDUP | I196: 91
H197: INVDUP | I197: 2487
H198: INVDUP | I198: 1454
H199: INVDUP | I199: 1011
H200: INVDUP | I200: 2789
... 4300 more rows

Sheet Figure S9
A1: Figure S9a | E1: Figure S9b | J1: Figure S9c
A2: intType | B2: svType | C2: GCContent | E2: intType | F2: svType | G2: RecombVal_bin | H2: percentage | J2: intType | K2: ChrState | L2: percentage
A3: background | B3: BND | C3: 0.387 | E3: background | F3: BND | G3: (0,0.2] | H3: 0.8983887734 | J3: background | K3: 10_TssBiv | L3: 0.0001986207773
A4: background | B4: BND | C4: 0.38 | E4: intRegion | F4: BND | G4: (0,0.2] | H4: 1 | J4: background | K4: 11_BivFlnk | L4: 0.002804525376
A5: background | B5: INS | C5: 0.624 | E5: intSample | F5: BND | G5: (0,0.2] | H5: 0.875 | J5: background | K5: 12_EnhBiv | L5: 0.0002462897639
A6: background | B6: DEL | C6: 0.406 | E6: background | F6: DEL | G6: (0,0.2] | H6: 0.8018940645 | J6: background | K6: 13_ReprPC | L6: 0.009001493628
A7: background | B7: BND | C7: 0.463 | E7: intRegion | F7: DEL | G7: (0,0.2] | H7: 0.7611940299 | J7: background | K7: 14_ReprPCWk | L7: 0.1157720787
A8: background | B8: BND | C8: 0.524 | E8: intSample | F8: DEL | G8: (0,0.2] | H8: 0.7692307692 | J8: background | K8: 15_Quies | L8: 0.6913989259
A9: background | B9: BND | C9: 0.493 | E9: background | F9: DUP | G9: (0,0.2] | H9: 0.7980094632 | J9: background | K9: 1_TssA | L9: 0.005704388725
A10: background | B10: DEL | C10: 0.542 | E10: intRegion | F10: DUP | G10: (0,0.2] | H10: 0.8571428571 | J10: background | K10: 2_TssAFlnk | L10: 0.004814567642
A11: background | B11: DEL | C11: 0.69 | E11: intSample | F11: DUP | G11: (0,0.2] | H11: 0.8095238095 | J11: background | K11: 3_TxFlnk | L11: 0.0003575173992
A12: background | B12: INS | C12: 0.515 | E12: background | F12: INS | G12: (0,0.2] | H12: 0.7536101083 | J12: background | K12: 4_Tx | L12: 0.01628690374
A13: background | B13: DEL | C13: 0.596 | E13: intRegion | F13: INS | G13: (0,0.2] | H13: 0.7307692308 | J13: background | K13: 5_TxWk | L13: 0.1038627769
A14: background | B14: DEL | C14: 0.692 | E14: intSample | F14: INS | G14: (0,0.2] | H14: 0.8 | J14: background | K14: 6_EnhG | L14: 0.001461848921
A15: background | B15: INS | C15: 0.686 | E15: background | F15: INV | G15: (0,0.2] | H15: 0.7652412598 | J15: background | K15: 7_Enh | L15: 0.02017192614
A16: background | B16: DEL | C16: 0.56 | E16: intRegion | F16: INV | G16: (0,0.2] | H16: 0.8915662651 | J16: background | K16: 8_ZNF/Rpts | L16: 0.01080497029
A17: background | B17: DUP | C17: 0.726 | E17: intSample | F17: INV | G17: (0,0.2] | H17: 0.9090909091 | J17: background | K17: 9_Het | L17: 0.01711316617
A18: background | B18: DUP | C18: 0.506 | E18: background | F18: INVDUP | G18: (0,0.2] | H18: 0.8367335309 | J18: intRegion | K18: 13_ReprPC | L18: 0.002100840336
A19: background | B19: DEL | C19: 0.704 | E19: intRegion | F19: INVDUP | G19: (0,0.2] | H19: 0.8782287823 | J19: intRegion | K19: 14_ReprPCWk | L19: 0.09033613445
A20: background | B20: INVDUP | C20: 0.5 | E20: intSample | F20: INVDUP | G20: (0,0.2] | H20: 0.7924528302 | J20: intRegion | K20: 15_Quies | L20: 0.7163865546
A21: background | B21: DUP | C21: 0.593 | E21: background | F21: BND | G21: (0.2,0.4] | H21: 0.02208939709 | J21: intRegion | K21: 1_TssA | L21: 0.006302521008
A22: background | B22: DEL | C22: 0.593 | E22: background | F22: DEL | G22: (0.2,0.4] | H22: 0.05951987667 | J22: intRegion | K22: 2_TssAFlnk | L22: 0.01050420168
A23: background | B23: DUP | C23: 0.626 | E23: intRegion | F23: DEL | G23: (0.2,0.4] | H23: 0.02985074627 | J23: intRegion | K23: 4_Tx | L23: 0.01470588235
A24: background | B24: DUP | C24: 0.622 | E24: background | F24: DUP | G24: (0.2,0.4] | H24: 0.06722140643 | J24: intRegion | K24: 5_TxWk | L24: 0.1218487395
A25: background | B25: DUP | C25: 0.622 | E25: background | F25: INS | G25: (0.2,0.4] | H25: 0.05836341757 | J25: intRegion | K25: 6_EnhG | L25: 0.002100840336
A26: background | B26: DEL | C26: 0.626 | E26: intRegion | F26: INS | G26: (0.2,0.4] | H26: 0.07692307692 | J26: intRegion | K26: 7_Enh | L26: 0.03151260504
A27: background | B27: DEL | C27: 0.634 | E27: background | F27: INV | G27: (0.2,0.4] | H27: 0.08942502167 | J27: intRegion | K27: 9_Het | L27: 0.004201680672
A28: background | B28: DUP | C28: 0.619 | E28: background | F28: INVDUP | G28: (0.2,0.4] | H28: 0.04893720082 | J28: intSample | K28: 14_ReprPCWk | L28: 0.06140350877
A29: background | B29: DEL | C29: 0.592 | E29: intRegion | F29: INVDUP | G29: (0.2,0.4] | H29: 0.0295202952 | J29: intSample | K29: 15_Quies | L29: 0.7105263158
A30: background | B30: DEL | C30: 0.579 | E30: intSample | F30: INVDUP | G30: (0.2,0.4] | H30: 0.01886792453 | J30: intSample | K30: 2_TssAFlnk | L30: 0.008771929825
A31: background | B31: DEL | C31: 0.573 | E31: background | F31: BND | G31: (0.4,0.6] | H31: 0.01767151767 | J31: intSample | K31: 3_TxFlnk | L31: 0.008771929825
A32: background | B32: DUP | C32: 0.639 | E32: intSample | F32: BND | G32: (0.4,0.6] | H32: 0.125 | J32: intSample | K32: 4_Tx | L32: 0.008771929825
A33: background | B33: INS | C33: 0.696 | E33: background | F33: DEL | G33: (0.4,0.6] | H33: 0.02477700694 | J33: intSample | K33: 5_TxWk | L33: 0.1228070175
A34: background | B34: DEL | C34: 0.575 | E34: background | F34: DUP | G34: (0.4,0.6] | H34: 0.01582639909 | J34: intSample | K34: 6_EnhG | L34: 0.01754385965
A35: background | B35: DEL | C35: 0.569 | E35: background | F35: INS | G35: (0.4,0.6] | H35: 0.02993381468 | J35: intSample | K35: 7_Enh | L35: 0.05263157895
A36: background | B36: INVDUP | C36: 0.652 | E36: background | F36: INV | G36: (0.4,0.6] | H36: 0.03062698642 | J36: intSample | K36: 9_Het | L36: 0.008771929825
A37: background | B37: DEL | C37: 0.633 | E37: background | F37: INVDUP | G37: (0.4,0.6] | H37: 0.02390585822
A38: background | B38: INS | C38: 0.649 | E38: intRegion | F38: INVDUP | G38: (0.4,0.6] | H38: 0.007380073801
A39: background | B39: INS | C39: 0.479 | E39: intSample | F39: INVDUP | G39: (0.4,0.6] | H39: 0.05660377358
A40: background | B40: INVDUP | C40: 0.315 | E40: background | F40: BND | G40: (0.6,0.8] | H40: 0.0103950104
A41: background | B41: INS | C41: 0.547 | E41: background | F41: DEL | G41: (0.6,0.8] | H41: 0.01343464376
A42: background | B42: INVDUP | C42: 0.458 | E42: intRegion | F42: DEL | G42: (0.6,0.8] | H42: 0.01492537313
A43: background | B43: DEL | C43: 0.602 | E43: background | F43: DUP | G43: (0.6,0.8] | H43: 0.01908957416
A44: background | B44: INVDUP | C44: 0.441 | E44: background | F44: INS | G44: (0.6,0.8] | H44: 0.01699759326
A45: background | B45: INVDUP | C45: 0.558 | E45: intRegion | F45: INS | G45: (0.6,0.8] | H45: 0.1538461538
A46: background | B46: INV | C46: 0.438 | E46: background | F46: INV | G46: (0.6,0.8] | H46: 0.027882115
A47: background | B47: INV | C47: 0.429 | E47: background | F47: INVDUP | G47: (0.6,0.8] | H47: 0.0135343059
A48: background | B48: INV | C48: 0.483 | E48: intRegion | F48: INVDUP | G48: (0.6,0.8] | H48: 0.0147601476
A49: background | B49: DUP | C49: 0.47 | E49: background | F49: BND | G49: (0.8,1] | H49: 0.005457380457
A50: background | B50: INVDUP | C50: 0.41 | E50: background | F50: DEL | G50: (0.8,1] | H50: 0.01255368352
A51: background | B51: DEL | C51: 0.61 | E51: intRegion | F51: DEL | G51: (0.8,1] | H51: 0.02985074627
A52: background | B52: INV | C52: 0.382 | E52: background | F52: DUP | G52: (0.8,1] | H52: 0.009463207701
A53: background | B53: INV | C53: 0.381 | E53: background | F53: INS | G53: (0.8,1] | H53: 0.01504211793
A54: background | B54: DUP | C54: 0.489 | E54: background | F54: INV | G54: (0.8,1] | H54: 0.01805836463
A55: background | B55: INVDUP | C55: 0.304 | E55: background | F55: INVDUP | G55: (0.8,1] | H55: 0.009602233873
A56: background | B56: INV | C56: 0.469 | E56: intRegion | F56: INVDUP | G56: (0.8,1] | H56: 0.0147601476
A57: background | B57: INVDUP | C57: 0.384 | E57: background | F57: BND | G57: > 1 | H57: 0.045997921
A58: background | B58: DEL | C58: 0.504 | E58: background | F58: DEL | G58: > 1 | H58: 0.08782072459
A59: background | B59: DUP | C59: 0.621 | E59: intRegion | F59: DEL | G59: > 1 | H59: 0.1641791045
A60: background | B60: INV | C60: 0.428 | E60: intSample | F60: DEL | G60: > 1 | H60: 0.2307692308
A61: background | B61: DEL | C61: 0.428 | E61: background | F61: DUP | G61: > 1 | H61: 0.09038994942
A62: background | B62: INV | C62: 0.388 | E62: intRegion | F62: DUP | G62: > 1 | H62: 0.1428571429
A63: background | B63: DUP | C63: 0.45 | E63: intSample | F63: DUP | G63: > 1 | H63: 0.1904761905
A64: background | B64: INV | C64: 0.401 | E64: background | F64: INS | G64: > 1 | H64: 0.1260529483
A65: background | B65: DEL | C65: 0.574 | E65: intRegion | F65: INS | G65: > 1 | H65: 0.03846153846
A66: background | B66: BND | C66: 0.344 | E66: intSample | F66: INS | G66: > 1 | H66: 0.2
A67: background | B67: INV | C67: 0.459 | E67: background | F67: INV | G67: > 1 | H67: 0.06876625253
A68: background | B68: BND | C68: 0.467 | E68: intRegion | F68: INV | G68: > 1 | H68: 0.1084337349
A69: background | B69: BND | C69: 0.498 | E69: intSample | F69: INV | G69: > 1 | H69: 0.09090909091
A70: background | B70: INVDUP | C70: 0.312 | E70: background | F70: INVDUP | G70: > 1 | H70: 0.0672868703
A71: background | B71: INS | C71: 0.488 | E71: intRegion | F71: INVDUP | G71: > 1 | H71: 0.05535055351
A72: background | B72: INVDUP | C72: 0.54 | E72: intSample | F72: INVDUP | G72: > 1 | H72: 0.1320754717
A73: background | B73: DEL | C73: 0.476
A74: background | B74: INS | C74: 0.527
A75: background | B75: INVDUP | C75: 0.462
A76: background | B76: INVDUP | C76: 0.61
A77: background | B77: INVDUP | C77: 0.468
A78: background | B78: INVDUP | C78: 0.516
A79: background | B79: INVDUP | C79: 0.521
A80: background | B80: DUP | C80: 0.31
A81: background | B81: DEL | C81: 0.448
A82: background | B82: DEL | C82: 0.524
A83: background | B83: DUP | C83: 0.489
A84: background | B84: INVDUP | C84: 0.418
A85: background | B85: INS | C85: 0.464
A86: background | B86: INS | C86: 0.488
A87: background | B87: DEL | C87: 0.437
A88: background | B88: INVDUP | C88: 0.371
A89: background | B89: INS | C89: 0.413
A90: background | B90: INVDUP | C90: 0.536
A91: background | B91: INV | C91: 0.403
A92: background | B92: INV | C92: 0.394
A93: background | B93: INVDUP | C93: 0.489
A94: background | B94: INVDUP | C94: 0.514
A95: background | B95: INV | C95: 0.46
A96: background | B96: INVDUP | C96: 0.469
A97: background | B97: INVDUP | C97: 0.485
A98: background | B98: INVDUP | C98: 0.449
A99: background | B99: INVDUP | C99: 0.432
A100: background | B100: DEL | C100: 0.044
A101: background | B101: INVDUP | C101: 0.335
A102: background | B102: DEL | C102: 0.43
A103: background | B103: INS | C103: 0.564
A104: background | B104: INS | C104: 0.515
A105: background | B105: INV | C105: 0.532
A106: background | B106: INV | C106: 0.495
A107: background | B107: BND | C107: 0.583
A108: background | B108: BND | C108: 0.747
A109: background | B109: INVDUP | C109: 0.353
A110: background | B110: INVDUP | C110: 0.475
A111: background | B111: INVDUP | C111: 0.44
A112: background | B112: INVDUP | C112: 0.286
A113: background | B113: INVDUP | C113: 0.286
A114: background | B114: DUP | C114: 0.531
A115: background | B115: INVDUP | C115: 0.363
A116: background | B116: INVDUP | C116: 0.457
A117: background | B117: INVDUP | C117: 0.441
A118: background | B118: INVDUP | C118: 0.422
A119: background | B119: BND | C119: 0.448
A120: background | B120: INVDUP | C120: 0.474
A121: background | B121: INV | C121: 0.627
A122: background | B122: INV | C122: 0.568
A123: background | B123: INVDUP | C123: 0.521
A124: background | B124: INVDUP | C124: 0.429
A125: background | B125: INVDUP | C125: 0.366
A126: background | B126: INVDUP | C126: 0.351
A127: background | B127: INVDUP | C127: 0.42
A128: background | B128: INVDUP | C128: 0.405
A129: background | B129: DEL | C129: 0.4
A130: background | B130: DUP | C130: 0.49
A131: background | B131: INVDUP | C131: 0.385
A132: background | B132: INV | C132: 0.445
A133: background | B133: INV | C133: 0.465
A134: background | B134: INV | C134: 0.334
A135: background | B135: INV | C135: 0.303
A136: background | B136: INV | C136: 0.366
A137: background | B137: INV | C137: 0.419
A138: intSample | B138: INVDUP | C138: 0.34
A139: intSample | B139: INVDUP | C139: 0.531
A140: background | B140: INVDUP | C140: 0.324
A141: background | B141: DEL | C141: 0.436
A142: background | B142: DUP | C142: 0.436
A143: background | B143: DUP | C143: 0.436
A144: background | B144: INV | C144: 0.517
A145: background | B145: INV | C145: 0.517
A146: background | B146: INVDUP | C146: 0.383
A147: background | B147: INVDUP | C147: 0.391
A148: background | B148: INS | C148: 0.35
A149: background | B149: INVDUP | C149: 0.414
A150: background | B150: INS | C150: 0.41
A151: background | B151: BND | C151: 0.35
A152: background | B152: DUP | C152: 0.443
A153: background | B153: INS | C153: 0.539
A154: background | B154: INVDUP | C154: 0.491
A155: background | B155: DUP | C155: 0.517
A156: background | B156: INVDUP | C156: 0.403
A157: background | B157: INVDUP | C157: 0.407
A158: background | B158: INVDUP | C158: 0.452
A159: background | B159: INVDUP | C159: 0.512
A160: background | B160: INVDUP | C160: 0.353
A161: background | B161: INVDUP | C161: 0.446
A162: background | B162: INVDUP | C162: 0.397
A163: background | B163: INVDUP | C163: 0.393
A164: background | B164: INVDUP | C164: 0.346
A165: background | B165: INVDUP | C165: 0.396
A166: background | B166: INVDUP | C166: 0.429
A167: background | B167: INVDUP | C167: 0.391
A168: background | B168: INVDUP | C168: 0.423
A169: background | B169: INVDUP | C169: 0.42
A170: background | B170: INVDUP | C170: 0.441
A171: background | B171: INVDUP | C171: 0.385
A172: background | B172: INVDUP | C172: 0.297
A173: background | B173: INS | C173: 0.338
A174: background | B174: INVDUP | C174: 0.324
A175: background | B175: INVDUP | C175: 0.319
A176: background | B176: INVDUP | C176: 0.398
A177: background | B177: INVDUP | C177: 0.386
A178: background | B178: INVDUP | C178: 0.338
A179: background | B179: INVDUP | C179: 0.433
A180: background | B180: INVDUP | C180: 0.284
A181: background | B181: INVDUP | C181: 0.312
A182: background | B182: INVDUP | C182: 0.303
A183: background | B183: INVDUP | C183: 0.396
A184: background | B184: INS | C184: 0.419
A185: background | B185: INVDUP | C185: 0.386
A186: background | B186: INVDUP | C186: 0.472
A187: background | B187: INVDUP | C187: 0.342
A188: background | B188: INS | C188: 0.339
A189: background | B189: INVDUP | C189: 0.445
A190: background | B190: INVDUP | C190: 0.31
A191: background | B191: INVDUP | C191: 0.29
A192: background | B192: INVDUP | C192: 0.394
A193: background | B193: DEL | C193: 0.357
A194: background | B194: INVDUP | C194: 0.381
A195: background | B195: INVDUP | C195: 0.365
A196: background | B196: INVDUP | C196: 0.396
A197: background | B197: INVDUP | C197: 0.296
A198: background | B198: INVDUP | C198: 0.389
A199: background | B199: INVDUP | C199: 0.362
A200: background | B200: INVDUP | C200: 0.411
... 4300 more rows
